﻿Dept/Family,Entity,Expense Type,Expense Area,Supplier,Payment Date, Amount ,SME,UNSPCC Code,UNSPCC Description
"Department for Levelling Up, Housing and Communities",Homes England,Land Registry Fees,Corporate Resources,HM LAND REGISTRY,01/12/2023, £261.00 ,PUB,80131700,Escrow and title services
"Department for Levelling Up, Housing and Communities",Homes England,Land Registry Fees,Corporate Resources,HM LAND REGISTRY,04/12/2023, £273.00 ,PUB,80131700,Escrow and title services
"Department for Levelling Up, Housing and Communities",Homes England,Land Registry Fees,Corporate Resources,HM LAND REGISTRY,07/12/2023, £357.00 ,PUB,80131700,Escrow and title services
"Department for Levelling Up, Housing and Communities",Homes England,Land Registry Fees,Corporate Resources,HM LAND REGISTRY,15/12/2023, £273.00 ,PUB,80131700,Escrow and title services
"Department for Levelling Up, Housing and Communities",Homes England,Land Registry Fees,Corporate Resources,HM LAND REGISTRY,22/12/2023, £255.00 ,PUB,80131700,Escrow and title services
"Department for Levelling Up, Housing and Communities",Homes England,Land Registry Fees,Corporate Resources,HM LAND REGISTRY,31/12/2023, £273.00 ,PUB,80131700,Escrow and title services
"Department for Levelling Up, Housing and Communities",Homes England,REV GRNTS TO LOCAL AUTHORITIES,Investment,WIGAN COUNCIL,22/12/2023," £8,750.00 ",PUB,None,Grants
"Department for Levelling Up, Housing and Communities",Homes England,REV GRNTS TO LOCAL AUTHORITIES,Investment,WIGAN COUNCIL,22/12/2023," £1,458.00 ",PUB,None,Grants
"Department for Levelling Up, Housing and Communities",Homes England,REV GRNTS TO LOCAL AUTHORITIES,Investment,WIGAN COUNCIL,22/12/2023," £1,458.00 ",PUB,None,Grants
"Department for Levelling Up, Housing and Communities",Homes England,REV GRNTS TO LOCAL AUTHORITIES,Investment,WIGAN COUNCIL,22/12/2023," £1,458.00 ",PUB,None,Grants
"Department for Levelling Up, Housing and Communities",Homes England,REV GRNTS TO LOCAL AUTHORITIES,Investment,WIGAN COUNCIL,22/12/2023," £1,458.00 ",PUB,None,Grants
"Department for Levelling Up, Housing and Communities",Homes England,REV GRNTS TO LOCAL AUTHORITIES,Investment,WIGAN COUNCIL,22/12/2023," £1,458.00 ",PUB,None,Grants
"Department for Levelling Up, Housing and Communities",Homes England,REV GRNTS TO LOCAL AUTHORITIES,Investment,WIGAN COUNCIL,22/12/2023," £1,458.00 ",PUB,None,Grants
"Department for Levelling Up, Housing and Communities",Homes England,CAP GRNTS TO LOCAL AUTHORITIES,Investment,WIRRAL METROPOLITAN BOROUGH COUNCIL,22/12/2023," £40,000.00 ",PUB,None,Grants
"Department for Levelling Up, Housing and Communities",Homes England,CAP GRNTS TO LOCAL AUTHORITIES,Investment,GATESHEAD METROPOLITAN BOROUGH COUNCIL,13/12/2023," £200,525.00 ",PUB,None,Grants
"Department for Levelling Up, Housing and Communities",Homes England,CAP GRNTS TO LOCAL AUTHORITIES,Investment,GATESHEAD METROPOLITAN BOROUGH COUNCIL,13/12/2023," £153,704.00 ",PUB,None,Grants
"Department for Levelling Up, Housing and Communities",Homes England,CAP GRNTS TO LOCAL AUTHORITIES,Investment,GATESHEAD METROPOLITAN BOROUGH COUNCIL,13/12/2023," £372,957.00 ",PUB,None,Grants
"Department for Levelling Up, Housing and Communities",Homes England,CAP GRNTS TO LOCAL AUTHORITIES,Investment,GATESHEAD METROPOLITAN BOROUGH COUNCIL,13/12/2023," £76,851.00 ",PUB,None,Grants
"Department for Levelling Up, Housing and Communities",Homes England,REV GRNTS TO LOCAL AUTHORITIES,Investment,GATESHEAD METROPOLITAN BOROUGH COUNCIL,22/12/2023," £1,167.00 ",PUB,None,Grants
"Department for Levelling Up, Housing and Communities",Homes England,REV GRNTS TO LOCAL AUTHORITIES,Investment,GATESHEAD METROPOLITAN BOROUGH COUNCIL,22/12/2023," £1,167.00 ",PUB,None,Grants
"Department for Levelling Up, Housing and Communities",Homes England,REV GRNTS TO LOCAL AUTHORITIES,Investment,GATESHEAD METROPOLITAN BOROUGH COUNCIL,22/12/2023," £1,167.00 ",PUB,None,Grants
"Department for Levelling Up, Housing and Communities",Homes England,REV GRNTS TO LOCAL AUTHORITIES,Investment,GATESHEAD METROPOLITAN BOROUGH COUNCIL,22/12/2023," £1,166.00 ",PUB,None,Grants
"Department for Levelling Up, Housing and Communities",Homes England,REV GRNTS TO LOCAL AUTHORITIES,Investment,GATESHEAD METROPOLITAN BOROUGH COUNCIL,22/12/2023," £1,167.00 ",PUB,None,Grants
"Department for Levelling Up, Housing and Communities",Homes England,REV GRNTS TO LOCAL AUTHORITIES,Investment,GATESHEAD METROPOLITAN BOROUGH COUNCIL,22/12/2023," £1,167.00 ",PUB,None,Grants
"Department for Levelling Up, Housing and Communities",Homes England,REV GRNTS TO LOCAL AUTHORITIES,Investment,GATESHEAD METROPOLITAN BOROUGH COUNCIL,22/12/2023," £1,167.00 ",PUB,None,Grants
"Department for Levelling Up, Housing and Communities",Homes England,REV GRNTS TO LOCAL AUTHORITIES,Investment,GATESHEAD METROPOLITAN BOROUGH COUNCIL,22/12/2023," £1,167.00 ",PUB,None,Grants
"Department for Levelling Up, Housing and Communities",Homes England,REV GRNTS TO LOCAL AUTHORITIES,Investment,GATESHEAD METROPOLITAN BOROUGH COUNCIL,22/12/2023," £1,167.00 ",PUB,None,Grants
"Department for Levelling Up, Housing and Communities",Homes England,REV GRNTS TO LOCAL AUTHORITIES,Investment,GATESHEAD METROPOLITAN BOROUGH COUNCIL,22/12/2023," £1,167.00 ",PUB,None,Grants
"Department for Levelling Up, Housing and Communities",Homes England,REV GRNTS TO LOCAL AUTHORITIES,Investment,GATESHEAD METROPOLITAN BOROUGH COUNCIL,22/12/2023," £1,167.00 ",PUB,None,Grants
"Department for Levelling Up, Housing and Communities",Homes England,REV GRNTS TO LOCAL AUTHORITIES,Investment,GATESHEAD METROPOLITAN BOROUGH COUNCIL,22/12/2023," £1,167.00 ",PUB,None,Grants
"Department for Levelling Up, Housing and Communities",Homes England,REV GRNTS TO LOCAL AUTHORITIES,Investment,GATESHEAD METROPOLITAN BOROUGH COUNCIL,22/12/2023," £1,167.00 ",PUB,None,Grants
"Department for Levelling Up, Housing and Communities",Homes England,REV GRNTS TO LOCAL AUTHORITIES,Investment,GATESHEAD METROPOLITAN BOROUGH COUNCIL,22/12/2023," £1,167.00 ",PUB,None,Grants
"Department for Levelling Up, Housing and Communities",Homes England,REV GRNTS TO LOCAL AUTHORITIES,Investment,GATESHEAD METROPOLITAN BOROUGH COUNCIL,22/12/2023," £1,167.00 ",PUB,None,Grants
"Department for Levelling Up, Housing and Communities",Homes England,CAP GRNTS TO LOCAL AUTHORITIES,Investment,NEWCASTLE CITY COUNCIL,21/12/2023," £1,485,000.00 ",PUB,None,Grants
"Department for Levelling Up, Housing and Communities",Homes England,REV GRNTS TO LOCAL AUTHORITIES,Investment,NORTH TYNESIDE COUNCIL,22/12/2023," £1,750.00 ",PUB,None,Grants
"Department for Levelling Up, Housing and Communities",Homes England,REV GRNTS TO LOCAL AUTHORITIES,Investment,NORTH TYNESIDE COUNCIL,22/12/2023," £1,750.00 ",PUB,None,Grants
"Department for Levelling Up, Housing and Communities",Homes England,REV GRNTS TO LOCAL AUTHORITIES,Investment,NORTH TYNESIDE COUNCIL,22/12/2023," £1,750.00 ",PUB,None,Grants
"Department for Levelling Up, Housing and Communities",Homes England,REV GRNTS TO LOCAL AUTHORITIES,Investment,NORTH TYNESIDE COUNCIL,22/12/2023," £1,750.00 ",PUB,None,Grants
"Department for Levelling Up, Housing and Communities",Homes England,REV GRNTS TO LOCAL AUTHORITIES,Investment,NORTH TYNESIDE COUNCIL,22/12/2023," £1,750.00 ",PUB,None,Grants
"Department for Levelling Up, Housing and Communities",Homes England,REV GRNTS TO LOCAL AUTHORITIES,Investment,SOUTH TYNESIDE COUNCIL,22/12/2023," £1,875.00 ",PUB,None,Grants
"Department for Levelling Up, Housing and Communities",Homes England,REV GRNTS TO LOCAL AUTHORITIES,Investment,SOUTH TYNESIDE COUNCIL,22/12/2023," £4,503.00 ",PUB,None,Grants
"Department for Levelling Up, Housing and Communities",Homes England,REV GRNTS TO LOCAL AUTHORITIES,Investment,SOUTH TYNESIDE COUNCIL,22/12/2023," £1,875.00 ",PUB,None,Grants
"Department for Levelling Up, Housing and Communities",Homes England,REV GRNTS TO LOCAL AUTHORITIES,Investment,SOUTH TYNESIDE COUNCIL,22/12/2023," £1,875.00 ",PUB,None,Grants
"Department for Levelling Up, Housing and Communities",Homes England,CAP GRNTS TO LOCAL AUTHORITIES,Investment,DUDLEY METROPOLITAN BOROUGH COUNCIL,22/12/2023," £151,250.00 ",PUB,None,Grants
"Department for Levelling Up, Housing and Communities",Homes England,REV GRNTS TO LOCAL AUTHORITIES,Investment,SOLIHULL METROPOLITAN BOROUGH COUNCIL,22/12/2023," £2,329.00 ",PUB,None,Grants
"Department for Levelling Up, Housing and Communities",Homes England,REV GRNTS TO LOCAL AUTHORITIES,Investment,SOLIHULL METROPOLITAN BOROUGH COUNCIL,22/12/2023," £2,254.00 ",PUB,None,Grants
"Department for Levelling Up, Housing and Communities",Homes England,REV GRNTS TO LOCAL AUTHORITIES,Investment,SOLIHULL METROPOLITAN BOROUGH COUNCIL,22/12/2023," £2,254.00 ",PUB,None,Grants
"Department for Levelling Up, Housing and Communities",Homes England,REV GRNTS TO LOCAL AUTHORITIES,Investment,SOLIHULL METROPOLITAN BOROUGH COUNCIL,22/12/2023," £2,254.00 ",PUB,None,Grants
"Department for Levelling Up, Housing and Communities",Homes England,REV GRNTS TO LOCAL AUTHORITIES,Investment,SOLIHULL METROPOLITAN BOROUGH COUNCIL,22/12/2023," £2,328.00 ",PUB,None,Grants
"Department for Levelling Up, Housing and Communities",Homes England,REV GRNTS TO LOCAL AUTHORITIES,Investment,SOLIHULL METROPOLITAN BOROUGH COUNCIL,22/12/2023," £2,328.00 ",PUB,None,Grants
"Department for Levelling Up, Housing and Communities",Homes England,REV GRNTS TO LOCAL AUTHORITIES,Investment,WOLVERHAMPTON CITY COUNCIL,22/12/2023," £18,125.00 ",PUB,None,Grants
"Department for Levelling Up, Housing and Communities",Homes England,REV GRNTS TO LOCAL AUTHORITIES,Investment,LEEDS CITY COUNCIL,21/12/2023," £22,500.00 ",PUB,None,Grants
"Department for Levelling Up, Housing and Communities",Homes England,REV GRNTS TO LOCAL AUTHORITIES,Investment,LEEDS CITY COUNCIL,21/12/2023," £2,500.00 ",PUB,None,Grants
"Department for Levelling Up, Housing and Communities",Homes England,REV GRNTS TO LOCAL AUTHORITIES,Investment,LEEDS CITY COUNCIL,22/12/2023," £25,000.00 ",PUB,None,Grants
"Department for Levelling Up, Housing and Communities",Homes England,REV GRNTS TO LOCAL AUTHORITIES,Investment,LEEDS CITY COUNCIL,22/12/2023," £22,500.00 ",PUB,None,Grants
"Department for Levelling Up, Housing and Communities",Homes England,REV GRNTS TO LOCAL AUTHORITIES,Investment,LEEDS CITY COUNCIL,22/12/2023," £25,000.00 ",PUB,None,Grants
"Department for Levelling Up, Housing and Communities",Homes England,CAP GRNTS TO LOCAL AUTHORITIES,Investment,THE COUNTY COUNCIL OF DURHAM,18/12/2023," £33,750.00 ",PUB,None,Grants
"Department for Levelling Up, Housing and Communities",Homes England,CAP GRNTS TO LOCAL AUTHORITIES,Investment,THE COUNTY COUNCIL OF DURHAM,18/12/2023," £33,750.00 ",PUB,None,Grants
"Department for Levelling Up, Housing and Communities",Homes England,CAP GRNTS TO LOCAL AUTHORITIES,Investment,THE COUNTY COUNCIL OF DURHAM,18/12/2023," £33,750.00 ",PUB,None,Grants
"Department for Levelling Up, Housing and Communities",Homes England,CAP GRNTS TO LOCAL AUTHORITIES,Investment,THE COUNTY COUNCIL OF DURHAM,18/12/2023," £33,750.00 ",PUB,None,Grants
"Department for Levelling Up, Housing and Communities",Homes England,CAP GRNTS TO LOCAL AUTHORITIES,Investment,THE COUNTY COUNCIL OF DURHAM,18/12/2023," £33,750.00 ",PUB,None,Grants
"Department for Levelling Up, Housing and Communities",Homes England,CAP GRNTS TO LOCAL AUTHORITIES,Investment,THE COUNTY COUNCIL OF DURHAM,18/12/2023," £33,750.00 ",PUB,None,Grants
"Department for Levelling Up, Housing and Communities",Homes England,CAP GRNTS TO LOCAL AUTHORITIES,Investment,THE COUNTY COUNCIL OF DURHAM,18/12/2023," £33,750.00 ",PUB,None,Grants
"Department for Levelling Up, Housing and Communities",Homes England,CAP GRNTS TO LOCAL AUTHORITIES,Investment,THE COUNTY COUNCIL OF DURHAM,18/12/2023," £33,750.00 ",PUB,None,Grants
"Department for Levelling Up, Housing and Communities",Homes England,CAP GRNTS TO LOCAL AUTHORITIES,Investment,THE COUNTY COUNCIL OF DURHAM,18/12/2023," £33,750.00 ",PUB,None,Grants
"Department for Levelling Up, Housing and Communities",Homes England,CAP GRNTS TO LOCAL AUTHORITIES,Investment,THE COUNTY COUNCIL OF DURHAM,20/12/2023," £11,250.00 ",PUB,None,Grants
"Department for Levelling Up, Housing and Communities",Homes England,CAP GRNTS TO LOCAL AUTHORITIES,Investment,THE COUNTY COUNCIL OF DURHAM,20/12/2023," £11,250.00 ",PUB,None,Grants
"Department for Levelling Up, Housing and Communities",Homes England,CAP GRNTS TO LOCAL AUTHORITIES,Investment,THE COUNTY COUNCIL OF DURHAM,20/12/2023," £11,250.00 ",PUB,None,Grants
"Department for Levelling Up, Housing and Communities",Homes England,CAP GRNTS TO LOCAL AUTHORITIES,Investment,THE COUNTY COUNCIL OF DURHAM,20/12/2023," £33,750.00 ",PUB,None,Grants
"Department for Levelling Up, Housing and Communities",Homes England,CAP GRNTS TO LOCAL AUTHORITIES,Investment,THE COUNTY COUNCIL OF DURHAM,20/12/2023," £11,250.00 ",PUB,None,Grants
"Department for Levelling Up, Housing and Communities",Homes England,CAP GRNTS TO LOCAL AUTHORITIES,Investment,THE COUNTY COUNCIL OF DURHAM,20/12/2023," £33,750.00 ",PUB,None,Grants
"Department for Levelling Up, Housing and Communities",Homes England,CAP GRNTS TO LOCAL AUTHORITIES,Investment,THE COUNTY COUNCIL OF DURHAM,20/12/2023," £11,250.00 ",PUB,None,Grants
"Department for Levelling Up, Housing and Communities",Homes England,CAP GRNTS TO LOCAL AUTHORITIES,Investment,THE COUNTY COUNCIL OF DURHAM,20/12/2023," £18,000.00 ",PUB,None,Grants
"Department for Levelling Up, Housing and Communities",Homes England,CAP GRNTS TO LOCAL AUTHORITIES,Investment,THE COUNTY COUNCIL OF DURHAM,22/12/2023," £18,000.00 ",PUB,None,Grants
"Department for Levelling Up, Housing and Communities",Homes England,REV GRNTS TO LOCAL AUTHORITIES,Investment,THE COUNTY COUNCIL OF DURHAM,22/12/2023," £1,752.00 ",PUB,None,Grants
"Department for Levelling Up, Housing and Communities",Homes England,REV GRNTS TO LOCAL AUTHORITIES,Investment,THE COUNTY COUNCIL OF DURHAM,22/12/2023," £1,752.00 ",PUB,None,Grants
"Department for Levelling Up, Housing and Communities",Homes England,REV GRNTS TO LOCAL AUTHORITIES,Investment,THE COUNTY COUNCIL OF DURHAM,22/12/2023," £1,752.00 ",PUB,None,Grants
"Department for Levelling Up, Housing and Communities",Homes England,REV GRNTS TO LOCAL AUTHORITIES,Investment,THE COUNTY COUNCIL OF DURHAM,22/12/2023," £1,752.00 ",PUB,None,Grants
"Department for Levelling Up, Housing and Communities",Homes England,REV GRNTS TO LOCAL AUTHORITIES,Investment,THE COUNTY COUNCIL OF DURHAM,22/12/2023," £1,752.00 ",PUB,None,Grants
"Department for Levelling Up, Housing and Communities",Homes England,REV GRNTS TO LOCAL AUTHORITIES,Investment,THE COUNTY COUNCIL OF DURHAM,22/12/2023," £5,609.00 ",PUB,None,Grants
"Department for Levelling Up, Housing and Communities",Homes England,REV GRNTS TO LOCAL AUTHORITIES,Investment,THE COUNTY COUNCIL OF DURHAM,22/12/2023," £1,752.00 ",PUB,None,Grants
"Department for Levelling Up, Housing and Communities",Homes England,REV GRNTS TO LOCAL AUTHORITIES,Investment,THE COUNTY COUNCIL OF DURHAM,22/12/2023," £1,752.00 ",PUB,None,Grants
"Department for Levelling Up, Housing and Communities",Homes England,REV GRNTS TO LOCAL AUTHORITIES,Investment,THE COUNTY COUNCIL OF DURHAM,22/12/2023," £10,695.00 ",PUB,None,Grants
"Department for Levelling Up, Housing and Communities",Homes England,REV GRNTS TO LOCAL AUTHORITIES,Investment,THE COUNTY COUNCIL OF DURHAM,22/12/2023," £1,752.00 ",PUB,None,Grants
"Department for Levelling Up, Housing and Communities",Homes England,REV GRNTS TO LOCAL AUTHORITIES,Investment,NORTHUMBERLAND COUNTY COUNCIL,22/12/2023," £4,375.00 ",PUB,None,Grants
"Department for Levelling Up, Housing and Communities",Homes England,ENGINEERING FEES,Development,WARRINGTON BOROUGH COUNCIL,01/12/2023," £20,000.00 ",PUB,81101500,Civil Engineering
"Department for Levelling Up, Housing and Communities",Homes England,CAP GRNTS TO LOCAL AUTHORITIES,Investment,CHESHIRE WEST AND CHESTER COUNCIL,06/12/2023," £34,615.00 ",PUB,None,Grants
"Department for Levelling Up, Housing and Communities",Homes England,CAP GRNTS TO LOCAL AUTHORITIES,Investment,CHESHIRE WEST AND CHESTER COUNCIL,06/12/2023," £34,615.00 ",PUB,None,Grants
"Department for Levelling Up, Housing and Communities",Homes England,CAP GRNTS TO LOCAL AUTHORITIES,Investment,CHESHIRE WEST AND CHESTER COUNCIL,08/12/2023," £3,461.00 ",PUB,None,Grants
"Department for Levelling Up, Housing and Communities",Homes England,REV GRNTS TO LOCAL AUTHORITIES,Investment,CHESHIRE WEST AND CHESTER COUNCIL,22/12/2023," £2,009.00 ",PUB,None,Grants
"Department for Levelling Up, Housing and Communities",Homes England,REV GRNTS TO LOCAL AUTHORITIES,Investment,CHESHIRE WEST AND CHESTER COUNCIL,22/12/2023," £2,009.00 ",PUB,None,Grants
"Department for Levelling Up, Housing and Communities",Homes England,REV GRNTS TO LOCAL AUTHORITIES,Investment,CHESHIRE WEST AND CHESTER COUNCIL,22/12/2023," £2,009.00 ",PUB,None,Grants
"Department for Levelling Up, Housing and Communities",Homes England,REV GRNTS TO LOCAL AUTHORITIES,Investment,CHESHIRE WEST AND CHESTER COUNCIL,22/12/2023," £2,009.00 ",PUB,None,Grants
"Department for Levelling Up, Housing and Communities",Homes England,REV GRNTS TO LOCAL AUTHORITIES,Investment,CHESHIRE WEST AND CHESTER COUNCIL,22/12/2023," £2,009.00 ",PUB,None,Grants
"Department for Levelling Up, Housing and Communities",Homes England,REV GRNTS TO LOCAL AUTHORITIES,Investment,CHESHIRE WEST AND CHESTER COUNCIL,22/12/2023," £2,009.00 ",PUB,None,Grants
"Department for Levelling Up, Housing and Communities",Homes England,REV GRNTS TO LOCAL AUTHORITIES,Investment,CHESHIRE WEST AND CHESTER COUNCIL,22/12/2023," £2,009.00 ",PUB,None,Grants
"Department for Levelling Up, Housing and Communities",Homes England,CAP GRNTS TO LOCAL AUTHORITIES,Investment,KINGSTON UPON HULL CITY COUNCIL,14/12/2023," £31,091.00 ",PUB,None,Grants
"Department for Levelling Up, Housing and Communities",Homes England,CAP GRNTS TO LOCAL AUTHORITIES,Investment,KINGSTON UPON HULL CITY COUNCIL,18/12/2023," £34,545.00 ",PUB,None,Grants
"Department for Levelling Up, Housing and Communities",Homes England,CAP GRNTS TO LOCAL AUTHORITIES,Investment,KINGSTON UPON HULL CITY COUNCIL,22/12/2023," £31,091.00 ",PUB,None,Grants
"Department for Levelling Up, Housing and Communities",Homes England,REV GRNTS TO LOCAL AUTHORITIES,Investment,KINGSTON UPON HULL CITY COUNCIL,22/12/2023," £20,259.00 ",PUB,None,Grants
"Department for Levelling Up, Housing and Communities",Homes England,REV GRNTS TO LOCAL AUTHORITIES,Investment,KINGSTON UPON HULL CITY COUNCIL,22/12/2023," £20,259.00 ",PUB,None,Grants
"Department for Levelling Up, Housing and Communities",Homes England,REV GRNTS TO LOCAL AUTHORITIES,Investment,KINGSTON UPON HULL CITY COUNCIL,22/12/2023," £20,259.00 ",PUB,None,Grants
"Department for Levelling Up, Housing and Communities",Homes England,CAP GRNTS TO LOCAL AUTHORITIES,Investment,EAST RIDING OF YORKSHIRE COUNCIL,05/12/2023," £26,000.00 ",PUB,None,Grants
"Department for Levelling Up, Housing and Communities",Homes England,CAP GRNTS TO LOCAL AUTHORITIES,Investment,EAST RIDING OF YORKSHIRE COUNCIL,12/12/2023," £22,750.00 ",PUB,None,Grants
"Department for Levelling Up, Housing and Communities",Homes England,CAP GRNTS TO LOCAL AUTHORITIES,Investment,EAST RIDING OF YORKSHIRE COUNCIL,18/12/2023," £22,750.00 ",PUB,None,Grants
"Department for Levelling Up, Housing and Communities",Homes England,CAP GRNTS TO LOCAL AUTHORITIES,Investment,EAST RIDING OF YORKSHIRE COUNCIL,18/12/2023," £22,750.00 ",PUB,None,Grants
"Department for Levelling Up, Housing and Communities",Homes England,CAP GRNTS TO LOCAL AUTHORITIES,Investment,CITY OF YORK COUNCIL,06/12/2023," £12,000.00 ",PUB,None,Grants
"Department for Levelling Up, Housing and Communities",Homes England,CAP GRNTS TO LOCAL AUTHORITIES,Investment,CITY OF YORK COUNCIL,22/12/2023," £19,200.00 ",PUB,None,Grants
"Department for Levelling Up, Housing and Communities",Homes England,CAP GRNTS TO LOCAL AUTHORITIES,Investment,CITY OF YORK COUNCIL,22/12/2023," £16,800.00 ",PUB,None,Grants
"Department for Levelling Up, Housing and Communities",Homes England,REV GRNTS TO LOCAL AUTHORITIES,Investment,DERBY CITY COUNCIL,22/12/2023," £1,750.00 ",PUB,None,Grants
"Department for Levelling Up, Housing and Communities",Homes England,REV GRNTS TO LOCAL AUTHORITIES,Investment,DERBY CITY COUNCIL,22/12/2023," £1,750.00 ",PUB,None,Grants
"Department for Levelling Up, Housing and Communities",Homes England,REV GRNTS TO LOCAL AUTHORITIES,Investment,DERBY CITY COUNCIL,22/12/2023," £1,750.00 ",PUB,None,Grants
"Department for Levelling Up, Housing and Communities",Homes England,REV GRNTS TO LOCAL AUTHORITIES,Investment,DERBY CITY COUNCIL,22/12/2023," £1,750.00 ",PUB,None,Grants
"Department for Levelling Up, Housing and Communities",Homes England,REV GRNTS TO LOCAL AUTHORITIES,Investment,DERBY CITY COUNCIL,22/12/2023," £1,750.00 ",PUB,None,Grants
"Department for Levelling Up, Housing and Communities",Homes England,REV GRNTS TO LOCAL AUTHORITIES,Investment,DERBY CITY COUNCIL,22/12/2023," £1,750.00 ",PUB,None,Grants
"Department for Levelling Up, Housing and Communities",Homes England,REV GRNTS TO LOCAL AUTHORITIES,Investment,DERBY CITY COUNCIL,22/12/2023," £1,750.00 ",PUB,None,Grants
"Department for Levelling Up, Housing and Communities",Homes England,REV GRNTS TO LOCAL AUTHORITIES,Investment,DERBY CITY COUNCIL,22/12/2023," £1,750.00 ",PUB,None,Grants
"Department for Levelling Up, Housing and Communities",Homes England,REV GRNTS TO LOCAL AUTHORITIES,Investment,DERBY CITY COUNCIL,22/12/2023," £1,750.00 ",PUB,None,Grants
"Department for Levelling Up, Housing and Communities",Homes England,REV GRNTS TO LOCAL AUTHORITIES,Investment,DERBY CITY COUNCIL,22/12/2023," £1,750.00 ",PUB,None,Grants
"Department for Levelling Up, Housing and Communities",Homes England,REV GRNTS TO LOCAL AUTHORITIES,Investment,DERBY CITY COUNCIL,22/12/2023," £1,750.00 ",PUB,None,Grants
"Department for Levelling Up, Housing and Communities",Homes England,REV GRNTS TO LOCAL AUTHORITIES,Investment,DERBY CITY COUNCIL,22/12/2023," £1,750.00 ",PUB,None,Grants
"Department for Levelling Up, Housing and Communities",Homes England,REV GRNTS TO LOCAL AUTHORITIES,Investment,DERBY CITY COUNCIL,22/12/2023," £1,750.00 ",PUB,None,Grants
"Department for Levelling Up, Housing and Communities",Homes England,REV GRNTS TO LOCAL AUTHORITIES,Investment,DERBY CITY COUNCIL,22/12/2023," £1,750.00 ",PUB,None,Grants
"Department for Levelling Up, Housing and Communities",Homes England,REV GRNTS TO LOCAL AUTHORITIES,Investment,DERBY CITY COUNCIL,22/12/2023," £1,750.00 ",PUB,None,Grants
"Department for Levelling Up, Housing and Communities",Homes England,REV GRNTS TO LOCAL AUTHORITIES,Investment,DERBY CITY COUNCIL,22/12/2023," £1,750.00 ",PUB,None,Grants
"Department for Levelling Up, Housing and Communities",Homes England,REV GRNTS TO LOCAL AUTHORITIES,Investment,DERBY CITY COUNCIL,22/12/2023," £1,750.00 ",PUB,None,Grants
"Department for Levelling Up, Housing and Communities",Homes England,REV GRNTS TO LOCAL AUTHORITIES,Investment,DERBY CITY COUNCIL,22/12/2023," £1,750.00 ",PUB,None,Grants
"Department for Levelling Up, Housing and Communities",Homes England,REV GRNTS TO LOCAL AUTHORITIES,Investment,DERBY CITY COUNCIL,22/12/2023," £1,750.00 ",PUB,None,Grants
"Department for Levelling Up, Housing and Communities",Homes England,REV GRNTS TO LOCAL AUTHORITIES,Investment,DERBY CITY COUNCIL,22/12/2023," £1,750.00 ",PUB,None,Grants
"Department for Levelling Up, Housing and Communities",Homes England,REV GRNTS TO LOCAL AUTHORITIES,Investment,DERBY CITY COUNCIL,22/12/2023," £1,750.00 ",PUB,None,Grants
"Department for Levelling Up, Housing and Communities",Homes England,REV GRNTS TO LOCAL AUTHORITIES,Investment,DERBY CITY COUNCIL,22/12/2023," £1,750.00 ",PUB,None,Grants
"Department for Levelling Up, Housing and Communities",Homes England,REV GRNTS TO LOCAL AUTHORITIES,Investment,DERBY CITY COUNCIL,22/12/2023," £1,750.00 ",PUB,None,Grants
"Department for Levelling Up, Housing and Communities",Homes England,REV GRNTS TO LOCAL AUTHORITIES,Investment,DERBY CITY COUNCIL,22/12/2023," £1,750.00 ",PUB,None,Grants
"Department for Levelling Up, Housing and Communities",Homes England,REV GRNTS TO LOCAL AUTHORITIES,Investment,DERBY CITY COUNCIL,22/12/2023," £1,750.00 ",PUB,None,Grants
"Department for Levelling Up, Housing and Communities",Homes England,REV GRNTS TO LOCAL AUTHORITIES,Investment,DERBY CITY COUNCIL,22/12/2023," £1,750.00 ",PUB,None,Grants
"Department for Levelling Up, Housing and Communities",Homes England,REV GRNTS TO LOCAL AUTHORITIES,Investment,DERBY CITY COUNCIL,22/12/2023," £1,750.00 ",PUB,None,Grants
"Department for Levelling Up, Housing and Communities",Homes England,REV GRNTS TO LOCAL AUTHORITIES,Investment,DERBY CITY COUNCIL,22/12/2023," £1,750.00 ",PUB,None,Grants
"Department for Levelling Up, Housing and Communities",Homes England,REV GRNTS TO LOCAL AUTHORITIES,Investment,DERBY CITY COUNCIL,22/12/2023," £1,750.00 ",PUB,None,Grants
"Department for Levelling Up, Housing and Communities",Homes England,REV GRNTS TO LOCAL AUTHORITIES,Investment,DERBY CITY COUNCIL,22/12/2023," £1,750.00 ",PUB,None,Grants
"Department for Levelling Up, Housing and Communities",Homes England,CAP GRNTS TO LOCAL AUTHORITIES,Investment,SHROPSHIRE COUNCIL,18/12/2023," £120,000.00 ",PUB,None,Grants
"Department for Levelling Up, Housing and Communities",Homes England,CAP GRNTS TO LOCAL AUTHORITIES,Investment,BRISTOL CITY COUNCIL,15/12/2023," £120,000.00 ",PUB,None,Grants
"Department for Levelling Up, Housing and Communities",Homes England,REV GRNTS TO LOCAL AUTHORITIES,Investment,CORNWALL COUNCIL,22/12/2023," £1,109.00 ",PUB,None,Grants
"Department for Levelling Up, Housing and Communities",Homes England,REV GRNTS TO LOCAL AUTHORITIES,Investment,CORNWALL COUNCIL,22/12/2023," £1,350.00 ",PUB,None,Grants
"Department for Levelling Up, Housing and Communities",Homes England,REV GRNTS TO LOCAL AUTHORITIES,Investment,CORNWALL COUNCIL,22/12/2023," £1,350.00 ",PUB,None,Grants
"Department for Levelling Up, Housing and Communities",Homes England,REV GRNTS TO LOCAL AUTHORITIES,Investment,CORNWALL COUNCIL,22/12/2023," £1,350.00 ",PUB,None,Grants
"Department for Levelling Up, Housing and Communities",Homes England,REV GRNTS TO LOCAL AUTHORITIES,Investment,CORNWALL COUNCIL,22/12/2023," £1,350.00 ",PUB,None,Grants
"Department for Levelling Up, Housing and Communities",Homes England,REV GRNTS TO LOCAL AUTHORITIES,Investment,CORNWALL COUNCIL,22/12/2023," £1,350.00 ",PUB,None,Grants
"Department for Levelling Up, Housing and Communities",Homes England,REV GRNTS TO LOCAL AUTHORITIES,Investment,CORNWALL COUNCIL,22/12/2023," £1,350.00 ",PUB,None,Grants
"Department for Levelling Up, Housing and Communities",Homes England,REV GRNTS TO LOCAL AUTHORITIES,Investment,CORNWALL COUNCIL,22/12/2023," £1,108.00 ",PUB,None,Grants
"Department for Levelling Up, Housing and Communities",Homes England,REV GRNTS TO LOCAL AUTHORITIES,Investment,CORNWALL COUNCIL,22/12/2023," £1,350.00 ",PUB,None,Grants
"Department for Levelling Up, Housing and Communities",Homes England,REV GRNTS TO LOCAL AUTHORITIES,Investment,CORNWALL COUNCIL,22/12/2023," £1,108.00 ",PUB,None,Grants
"Department for Levelling Up, Housing and Communities",Homes England,REV GRNTS TO LOCAL AUTHORITIES,Investment,CORNWALL COUNCIL,22/12/2023," £1,110.00 ",PUB,None,Grants
"Department for Levelling Up, Housing and Communities",Homes England,REV GRNTS TO LOCAL AUTHORITIES,Investment,CORNWALL COUNCIL,22/12/2023," £1,350.00 ",PUB,None,Grants
"Department for Levelling Up, Housing and Communities",Homes England,REV GRNTS TO LOCAL AUTHORITIES,Investment,CORNWALL COUNCIL,22/12/2023," £1,108.00 ",PUB,None,Grants
"Department for Levelling Up, Housing and Communities",Homes England,REV GRNTS TO LOCAL AUTHORITIES,Investment,CORNWALL COUNCIL,22/12/2023," £1,350.00 ",PUB,None,Grants
"Department for Levelling Up, Housing and Communities",Homes England,REV GRNTS TO LOCAL AUTHORITIES,Investment,CORNWALL COUNCIL,22/12/2023," £1,108.00 ",PUB,None,Grants
"Department for Levelling Up, Housing and Communities",Homes England,REV GRNTS TO LOCAL AUTHORITIES,Investment,CORNWALL COUNCIL,22/12/2023," £1,108.00 ",PUB,None,Grants
"Department for Levelling Up, Housing and Communities",Homes England,REV GRNTS TO LOCAL AUTHORITIES,Investment,CORNWALL COUNCIL,22/12/2023," £1,108.00 ",PUB,None,Grants
"Department for Levelling Up, Housing and Communities",Homes England,REV GRNTS TO LOCAL AUTHORITIES,Investment,CORNWALL COUNCIL,22/12/2023," £1,350.00 ",PUB,None,Grants
"Department for Levelling Up, Housing and Communities",Homes England,REV GRNTS TO LOCAL AUTHORITIES,Investment,CORNWALL COUNCIL,22/12/2023," £3,079.00 ",PUB,None,Grants
"Department for Levelling Up, Housing and Communities",Homes England,REV GRNTS TO LOCAL AUTHORITIES,Investment,CORNWALL COUNCIL,22/12/2023," £1,350.00 ",PUB,None,Grants
"Department for Levelling Up, Housing and Communities",Homes England,REV GRNTS TO LOCAL AUTHORITIES,Investment,CORNWALL COUNCIL,22/12/2023," £4,434.00 ",PUB,None,Grants
"Department for Levelling Up, Housing and Communities",Homes England,REV GRNTS TO LOCAL AUTHORITIES,Investment,SWINDON BOROUGH COUNCIL,22/12/2023, £575.00 ,PUB,None,Grants
"Department for Levelling Up, Housing and Communities",Homes England,REV GRNTS TO LOCAL AUTHORITIES,Investment,SWINDON BOROUGH COUNCIL,22/12/2023, £575.00 ,PUB,None,Grants
"Department for Levelling Up, Housing and Communities",Homes England,REV GRNTS TO LOCAL AUTHORITIES,Investment,SWINDON BOROUGH COUNCIL,22/12/2023, £575.00 ,PUB,None,Grants
"Department for Levelling Up, Housing and Communities",Homes England,REV GRNTS TO LOCAL AUTHORITIES,Investment,SWINDON BOROUGH COUNCIL,22/12/2023, £575.00 ,PUB,None,Grants
"Department for Levelling Up, Housing and Communities",Homes England,CAP GRNTS TO LOCAL AUTHORITIES,Investment,WILTSHIRE COUNCIL,08/12/2023," £40,628.00 ",PUB,None,Grants
"Department for Levelling Up, Housing and Communities",Homes England,CAP GRNTS TO LOCAL AUTHORITIES,Investment,WILTSHIRE COUNCIL,08/12/2023," £40,628.00 ",PUB,None,Grants
"Department for Levelling Up, Housing and Communities",Homes England,CAP GRNTS TO LOCAL AUTHORITIES,Investment,WILTSHIRE COUNCIL,11/12/2023," £88,000.00 ",PUB,None,Grants
"Department for Levelling Up, Housing and Communities",Homes England,CAP GRNTS TO LOCAL AUTHORITIES,Investment,WILTSHIRE COUNCIL,11/12/2023," £132,000.00 ",PUB,None,Grants
"Department for Levelling Up, Housing and Communities",Homes England,CAP GRNTS TO LOCAL AUTHORITIES,Investment,WILTSHIRE COUNCIL,11/12/2023," £45,143.00 ",PUB,None,Grants
"Department for Levelling Up, Housing and Communities",Homes England,CAP GRNTS TO LOCAL AUTHORITIES,Investment,WILTSHIRE COUNCIL,11/12/2023," £45,143.00 ",PUB,None,Grants
"Department for Levelling Up, Housing and Communities",Homes England,CAP GRNTS TO LOCAL AUTHORITIES,Investment,WILTSHIRE COUNCIL,12/12/2023," £77,000.00 ",PUB,None,Grants
"Department for Levelling Up, Housing and Communities",Homes England,CAP GRNTS TO LOCAL AUTHORITIES,Investment,WILTSHIRE COUNCIL,12/12/2023," £115,500.00 ",PUB,None,Grants
"Department for Levelling Up, Housing and Communities",Homes England,REV GRNTS TO LOCAL AUTHORITIES,Investment,WILTSHIRE COUNCIL,22/12/2023, £938.00 ,PUB,None,Grants
"Department for Levelling Up, Housing and Communities",Homes England,REV GRNTS TO LOCAL AUTHORITIES,Investment,WILTSHIRE COUNCIL,22/12/2023," £7,500.00 ",PUB,None,Grants
"Department for Levelling Up, Housing and Communities",Homes England,REV GRNTS TO LOCAL AUTHORITIES,Investment,WILTSHIRE COUNCIL,22/12/2023, £938.00 ,PUB,None,Grants
"Department for Levelling Up, Housing and Communities",Homes England,REV GRNTS TO LOCAL AUTHORITIES,Investment,WILTSHIRE COUNCIL,22/12/2023, £938.00 ,PUB,None,Grants
"Department for Levelling Up, Housing and Communities",Homes England,REV GRNTS TO LOCAL AUTHORITIES,Investment,WILTSHIRE COUNCIL,22/12/2023, £938.00 ,PUB,None,Grants
"Department for Levelling Up, Housing and Communities",Homes England,REV GRNTS TO LOCAL AUTHORITIES,Investment,LUTON BOROUGH COUNCIL,22/12/2023, £783.00 ,PUB,None,Grants
"Department for Levelling Up, Housing and Communities",Homes England,REV GRNTS TO LOCAL AUTHORITIES,Investment,LUTON BOROUGH COUNCIL,22/12/2023, £621.00 ,PUB,None,Grants
"Department for Levelling Up, Housing and Communities",Homes England,REV GRNTS TO LOCAL AUTHORITIES,Investment,LUTON BOROUGH COUNCIL,22/12/2023, £921.00 ,PUB,None,Grants
"Department for Levelling Up, Housing and Communities",Homes England,REV GRNTS TO LOCAL AUTHORITIES,Investment,LUTON BOROUGH COUNCIL,22/12/2023, £695.00 ,PUB,None,Grants
"Department for Levelling Up, Housing and Communities",Homes England,REV GRNTS TO LOCAL AUTHORITIES,Investment,LUTON BOROUGH COUNCIL,22/12/2023, £887.00 ,PUB,None,Grants
"Department for Levelling Up, Housing and Communities",Homes England,REV GRNTS TO LOCAL AUTHORITIES,Investment,LUTON BOROUGH COUNCIL,22/12/2023, £291.00 ,PUB,None,Grants
"Department for Levelling Up, Housing and Communities",Homes England,REV GRNTS TO LOCAL AUTHORITIES,Investment,CENTRAL BEDFORDSHIRE COUNCIL,22/12/2023," £1,892.00 ",PUB,None,Grants
"Department for Levelling Up, Housing and Communities",Homes England,REV GRNTS TO LOCAL AUTHORITIES,Investment,CENTRAL BEDFORDSHIRE COUNCIL,22/12/2023," £1,892.00 ",PUB,None,Grants
"Department for Levelling Up, Housing and Communities",Homes England,REV GRNTS TO LOCAL AUTHORITIES,Investment,CENTRAL BEDFORDSHIRE COUNCIL,22/12/2023," £1,893.00 ",PUB,None,Grants
"Department for Levelling Up, Housing and Communities",Homes England,REV GRNTS TO LOCAL AUTHORITIES,Investment,CENTRAL BEDFORDSHIRE COUNCIL,22/12/2023," £2,420.00 ",PUB,None,Grants
"Department for Levelling Up, Housing and Communities",Homes England,REV GRNTS TO LOCAL AUTHORITIES,Investment,CENTRAL BEDFORDSHIRE COUNCIL,22/12/2023," £1,893.00 ",PUB,None,Grants
"Department for Levelling Up, Housing and Communities",Homes England,REV GRNTS TO LOCAL AUTHORITIES,Investment,CENTRAL BEDFORDSHIRE COUNCIL,22/12/2023," £1,713.00 ",PUB,None,Grants
"Department for Levelling Up, Housing and Communities",Homes England,REV GRNTS TO LOCAL AUTHORITIES,"Markets, Partners & Places",SOUTHEND ON SEA CITY COUNCIL,13/12/2023," £16,276.00 ",PUB,None,Grants
"Department for Levelling Up, Housing and Communities",Homes England,REV GRNTS TO LOCAL AUTHORITIES,Investment,SOUTHEND ON SEA CITY COUNCIL,22/12/2023," £1,797.00 ",PUB,None,Grants
"Department for Levelling Up, Housing and Communities",Homes England,REV GRNTS TO LOCAL AUTHORITIES,Investment,SOUTHEND ON SEA CITY COUNCIL,22/12/2023," £1,797.00 ",PUB,None,Grants
"Department for Levelling Up, Housing and Communities",Homes England,REV GRNTS TO LOCAL AUTHORITIES,Investment,SOUTHEND ON SEA CITY COUNCIL,22/12/2023," £1,797.00 ",PUB,None,Grants
"Department for Levelling Up, Housing and Communities",Homes England,REV GRNTS TO LOCAL AUTHORITIES,Investment,SOUTHEND ON SEA CITY COUNCIL,22/12/2023," £1,797.00 ",PUB,None,Grants
"Department for Levelling Up, Housing and Communities",Homes England,REV GRNTS TO LOCAL AUTHORITIES,Investment,SOUTHEND ON SEA CITY COUNCIL,22/12/2023," £1,797.00 ",PUB,None,Grants
"Department for Levelling Up, Housing and Communities",Homes England,REV GRNTS TO LOCAL AUTHORITIES,Investment,SOUTHEND ON SEA CITY COUNCIL,22/12/2023," £1,797.00 ",PUB,None,Grants
"Department for Levelling Up, Housing and Communities",Homes England,REV GRNTS TO LOCAL AUTHORITIES,Investment,SOUTHEND ON SEA CITY COUNCIL,22/12/2023," £7,191.00 ",PUB,None,Grants
"Department for Levelling Up, Housing and Communities",Homes England,REV GRNTS TO LOCAL AUTHORITIES,Investment,SOUTHEND ON SEA CITY COUNCIL,22/12/2023," £1,797.00 ",PUB,None,Grants
"Department for Levelling Up, Housing and Communities",Homes England,REV GRNTS TO LOCAL AUTHORITIES,Investment,SOUTHEND ON SEA CITY COUNCIL,22/12/2023," £1,797.00 ",PUB,None,Grants
"Department for Levelling Up, Housing and Communities",Homes England,REV GRNTS TO LOCAL AUTHORITIES,Investment,SOUTHEND ON SEA CITY COUNCIL,22/12/2023," £1,797.00 ",PUB,None,Grants
"Department for Levelling Up, Housing and Communities",Homes England,REV GRNTS TO LOCAL AUTHORITIES,Investment,SOUTHEND ON SEA CITY COUNCIL,22/12/2023," £1,797.00 ",PUB,None,Grants
"Department for Levelling Up, Housing and Communities",Homes England,REV GRNTS TO LOCAL AUTHORITIES,Investment,SOUTHEND ON SEA CITY COUNCIL,22/12/2023," £1,797.00 ",PUB,None,Grants
"Department for Levelling Up, Housing and Communities",Homes England,REV GRNTS TO LOCAL AUTHORITIES,Investment,SOUTHEND ON SEA CITY COUNCIL,22/12/2023," £1,797.00 ",PUB,None,Grants
"Department for Levelling Up, Housing and Communities",Homes England,REV GRNTS TO LOCAL AUTHORITIES,Investment,SOUTHEND ON SEA CITY COUNCIL,22/12/2023," £1,797.00 ",PUB,None,Grants
"Department for Levelling Up, Housing and Communities",Homes England,CAP GRNTS TO LOCAL AUTHORITIES,Investment,WOKINGHAM BOROUGH COUNCIL,20/12/2023," £40,433.00 ",PUB,None,Grants
"Department for Levelling Up, Housing and Communities",Homes England,REV GRNTS TO LOCAL AUTHORITIES,Investment,MILTON KEYNES CITY COUNCIL,22/12/2023," £1,737.00 ",PUB,None,Grants
"Department for Levelling Up, Housing and Communities",Homes England,REV GRNTS TO LOCAL AUTHORITIES,Investment,MILTON KEYNES CITY COUNCIL,22/12/2023," £1,737.00 ",PUB,None,Grants
"Department for Levelling Up, Housing and Communities",Homes England,REV GRNTS TO LOCAL AUTHORITIES,Investment,MILTON KEYNES CITY COUNCIL,22/12/2023," £1,737.00 ",PUB,None,Grants
"Department for Levelling Up, Housing and Communities",Homes England,REV GRNTS TO LOCAL AUTHORITIES,Investment,MILTON KEYNES CITY COUNCIL,22/12/2023," £1,762.00 ",PUB,None,Grants
"Department for Levelling Up, Housing and Communities",Homes England,REV GRNTS TO LOCAL AUTHORITIES,Investment,MILTON KEYNES CITY COUNCIL,22/12/2023," £1,737.00 ",PUB,None,Grants
"Department for Levelling Up, Housing and Communities",Homes England,REV GRNTS TO LOCAL AUTHORITIES,Investment,MILTON KEYNES CITY COUNCIL,22/12/2023," £1,836.00 ",PUB,None,Grants
"Department for Levelling Up, Housing and Communities",Homes England,REV GRNTS TO LOCAL AUTHORITIES,Investment,MILTON KEYNES CITY COUNCIL,22/12/2023," £1,538.00 ",PUB,None,Grants
"Department for Levelling Up, Housing and Communities",Homes England,REV GRNTS TO LOCAL AUTHORITIES,Investment,MILTON KEYNES CITY COUNCIL,22/12/2023," £1,765.00 ",PUB,None,Grants
"Department for Levelling Up, Housing and Communities",Homes England,REV GRNTS TO LOCAL AUTHORITIES,Investment,MILTON KEYNES CITY COUNCIL,22/12/2023," £3,970.00 ",PUB,None,Grants
"Department for Levelling Up, Housing and Communities",Homes England,REV GRNTS TO LOCAL AUTHORITIES,Investment,MILTON KEYNES CITY COUNCIL,22/12/2023," £1,737.00 ",PUB,None,Grants
"Department for Levelling Up, Housing and Communities",Homes England,REV GRNTS TO LOCAL AUTHORITIES,Investment,MILTON KEYNES CITY COUNCIL,22/12/2023," £1,737.00 ",PUB,None,Grants
"Department for Levelling Up, Housing and Communities",Homes England,REV GRNTS TO LOCAL AUTHORITIES,Investment,MILTON KEYNES CITY COUNCIL,22/12/2023," £1,739.00 ",PUB,None,Grants
"Department for Levelling Up, Housing and Communities",Homes England,REV GRNTS TO LOCAL AUTHORITIES,Investment,MILTON KEYNES CITY COUNCIL,22/12/2023," £1,960.00 ",PUB,None,Grants
"Department for Levelling Up, Housing and Communities",Homes England,REV GRNTS TO LOCAL AUTHORITIES,Investment,MILTON KEYNES CITY COUNCIL,22/12/2023," £1,919.00 ",PUB,None,Grants
"Department for Levelling Up, Housing and Communities",Homes England,REV GRNTS TO LOCAL AUTHORITIES,Investment,MILTON KEYNES CITY COUNCIL,22/12/2023," £1,309.00 ",PUB,None,Grants
"Department for Levelling Up, Housing and Communities",Homes England,REV GRNTS TO LOCAL AUTHORITIES,Investment,MILTON KEYNES CITY COUNCIL,22/12/2023," £1,757.00 ",PUB,None,Grants
"Department for Levelling Up, Housing and Communities",Homes England,REV GRNTS TO LOCAL AUTHORITIES,Investment,MILTON KEYNES CITY COUNCIL,22/12/2023," £1,755.00 ",PUB,None,Grants
"Department for Levelling Up, Housing and Communities",Homes England,REV GRNTS TO LOCAL AUTHORITIES,Investment,MILTON KEYNES CITY COUNCIL,22/12/2023," £1,923.00 ",PUB,None,Grants
"Department for Levelling Up, Housing and Communities",Homes England,REV GRNTS TO LOCAL AUTHORITIES,Investment,MILTON KEYNES CITY COUNCIL,22/12/2023," £1,737.00 ",PUB,None,Grants
"Department for Levelling Up, Housing and Communities",Homes England,REV GRNTS TO LOCAL AUTHORITIES,Investment,MILTON KEYNES CITY COUNCIL,22/12/2023," £1,935.00 ",PUB,None,Grants
"Department for Levelling Up, Housing and Communities",Homes England,REV GRNTS TO LOCAL AUTHORITIES,Investment,MILTON KEYNES CITY COUNCIL,22/12/2023," £1,960.00 ",PUB,None,Grants
"Department for Levelling Up, Housing and Communities",Homes England,REV GRNTS TO LOCAL AUTHORITIES,Investment,MILTON KEYNES CITY COUNCIL,22/12/2023," £1,737.00 ",PUB,None,Grants
"Department for Levelling Up, Housing and Communities",Homes England,REV GRNTS TO LOCAL AUTHORITIES,Investment,MILTON KEYNES CITY COUNCIL,22/12/2023," £1,737.00 ",PUB,None,Grants
"Department for Levelling Up, Housing and Communities",Homes England,REV GRNTS TO LOCAL AUTHORITIES,Investment,MILTON KEYNES CITY COUNCIL,22/12/2023," £1,737.00 ",PUB,None,Grants
"Department for Levelling Up, Housing and Communities",Homes England,REV GRNTS TO LOCAL AUTHORITIES,Investment,MILTON KEYNES CITY COUNCIL,22/12/2023," £1,472.00 ",PUB,None,Grants
"Department for Levelling Up, Housing and Communities",Homes England,REV GRNTS TO LOCAL AUTHORITIES,Investment,MILTON KEYNES CITY COUNCIL,22/12/2023," £1,737.00 ",PUB,None,Grants
"Department for Levelling Up, Housing and Communities",Homes England,REV GRNTS TO LOCAL AUTHORITIES,Investment,MILTON KEYNES CITY COUNCIL,22/12/2023," £1,737.00 ",PUB,None,Grants
"Department for Levelling Up, Housing and Communities",Homes England,REV GRNTS TO LOCAL AUTHORITIES,Investment,MILTON KEYNES CITY COUNCIL,22/12/2023," £1,737.00 ",PUB,None,Grants
"Department for Levelling Up, Housing and Communities",Homes England,REV GRNTS TO LOCAL AUTHORITIES,Investment,MILTON KEYNES CITY COUNCIL,22/12/2023," £1,737.00 ",PUB,None,Grants
"Department for Levelling Up, Housing and Communities",Homes England,REV GRNTS TO LOCAL AUTHORITIES,Investment,BRIGHTON & HOVE CITY COUNCIL,11/12/2023," £3,000.00 ",PUB,None,Grants
"Department for Levelling Up, Housing and Communities",Homes England,REV GRNTS TO LOCAL AUTHORITIES,Investment,BRIGHTON & HOVE CITY COUNCIL,11/12/2023," £27,000.00 ",PUB,None,Grants
"Department for Levelling Up, Housing and Communities",Homes England,REV GRNTS TO LOCAL AUTHORITIES,Investment,BRIGHTON & HOVE CITY COUNCIL,21/12/2023," £2,093.00 ",PUB,None,Grants
"Department for Levelling Up, Housing and Communities",Homes England,REV GRNTS TO LOCAL AUTHORITIES,Investment,BRIGHTON & HOVE CITY COUNCIL,22/12/2023," £1,575.00 ",PUB,None,Grants
"Department for Levelling Up, Housing and Communities",Homes England,REV GRNTS TO LOCAL AUTHORITIES,Investment,BRIGHTON & HOVE CITY COUNCIL,22/12/2023," £1,934.00 ",PUB,None,Grants
"Department for Levelling Up, Housing and Communities",Homes England,REV GRNTS TO LOCAL AUTHORITIES,Investment,BRIGHTON & HOVE CITY COUNCIL,22/12/2023," £1,934.00 ",PUB,None,Grants
"Department for Levelling Up, Housing and Communities",Homes England,REV GRNTS TO LOCAL AUTHORITIES,Investment,BRIGHTON & HOVE CITY COUNCIL,22/12/2023," £1,454.00 ",PUB,None,Grants
"Department for Levelling Up, Housing and Communities",Homes England,REV GRNTS TO LOCAL AUTHORITIES,Investment,BRIGHTON & HOVE CITY COUNCIL,22/12/2023," £1,454.00 ",PUB,None,Grants
"Department for Levelling Up, Housing and Communities",Homes England,REV GRNTS TO LOCAL AUTHORITIES,Investment,BRIGHTON & HOVE CITY COUNCIL,22/12/2023," £1,575.00 ",PUB,None,Grants
"Department for Levelling Up, Housing and Communities",Homes England,REV GRNTS TO LOCAL AUTHORITIES,Investment,BRIGHTON & HOVE CITY COUNCIL,22/12/2023," £1,934.00 ",PUB,None,Grants
"Department for Levelling Up, Housing and Communities",Homes England,REV GRNTS TO LOCAL AUTHORITIES,Investment,BRIGHTON & HOVE CITY COUNCIL,22/12/2023," £1,454.00 ",PUB,None,Grants
"Department for Levelling Up, Housing and Communities",Homes England,REV GRNTS TO LOCAL AUTHORITIES,Investment,BRIGHTON & HOVE CITY COUNCIL,22/12/2023," £1,454.00 ",PUB,None,Grants
"Department for Levelling Up, Housing and Communities",Homes England,REV GRNTS TO LOCAL AUTHORITIES,Investment,BRIGHTON & HOVE CITY COUNCIL,22/12/2023," £1,454.00 ",PUB,None,Grants
"Department for Levelling Up, Housing and Communities",Homes England,REV GRNTS TO LOCAL AUTHORITIES,Investment,BRIGHTON & HOVE CITY COUNCIL,22/12/2023," £1,575.00 ",PUB,None,Grants
"Department for Levelling Up, Housing and Communities",Homes England,REV GRNTS TO LOCAL AUTHORITIES,Investment,BRIGHTON & HOVE CITY COUNCIL,22/12/2023," £1,454.00 ",PUB,None,Grants
"Department for Levelling Up, Housing and Communities",Homes England,REV GRNTS TO LOCAL AUTHORITIES,Investment,BRIGHTON & HOVE CITY COUNCIL,22/12/2023," £1,892.00 ",PUB,None,Grants
"Department for Levelling Up, Housing and Communities",Homes England,REV GRNTS TO LOCAL AUTHORITIES,Investment,BRIGHTON & HOVE CITY COUNCIL,22/12/2023," £1,575.00 ",PUB,None,Grants
"Department for Levelling Up, Housing and Communities",Homes England,REV GRNTS TO LOCAL AUTHORITIES,Investment,BRIGHTON & HOVE CITY COUNCIL,22/12/2023," £1,934.00 ",PUB,None,Grants
"Department for Levelling Up, Housing and Communities",Homes England,REV GRNTS TO LOCAL AUTHORITIES,Investment,BRIGHTON & HOVE CITY COUNCIL,22/12/2023," £1,454.00 ",PUB,None,Grants
"Department for Levelling Up, Housing and Communities",Homes England,REV GRNTS TO LOCAL AUTHORITIES,Investment,BRIGHTON & HOVE CITY COUNCIL,22/12/2023," £1,575.00 ",PUB,None,Grants
"Department for Levelling Up, Housing and Communities",Homes England,REV GRNTS TO LOCAL AUTHORITIES,Investment,BRIGHTON & HOVE CITY COUNCIL,22/12/2023," £1,575.00 ",PUB,None,Grants
"Department for Levelling Up, Housing and Communities",Homes England,REV GRNTS TO LOCAL AUTHORITIES,Investment,BRIGHTON & HOVE CITY COUNCIL,22/12/2023," £1,934.00 ",PUB,None,Grants
"Department for Levelling Up, Housing and Communities",Homes England,REV GRNTS TO LOCAL AUTHORITIES,Investment,BRIGHTON & HOVE CITY COUNCIL,22/12/2023," £1,454.00 ",PUB,None,Grants
"Department for Levelling Up, Housing and Communities",Homes England,REV GRNTS TO LOCAL AUTHORITIES,Investment,BRIGHTON & HOVE CITY COUNCIL,22/12/2023," £1,575.00 ",PUB,None,Grants
"Department for Levelling Up, Housing and Communities",Homes England,REV GRNTS TO LOCAL AUTHORITIES,Investment,BRIGHTON & HOVE CITY COUNCIL,22/12/2023," £1,575.00 ",PUB,None,Grants
"Department for Levelling Up, Housing and Communities",Homes England,REV GRNTS TO LOCAL AUTHORITIES,Investment,BRIGHTON & HOVE CITY COUNCIL,22/12/2023," £1,934.00 ",PUB,None,Grants
"Department for Levelling Up, Housing and Communities",Homes England,REV GRNTS TO LOCAL AUTHORITIES,Investment,BRIGHTON & HOVE CITY COUNCIL,22/12/2023," £1,934.00 ",PUB,None,Grants
"Department for Levelling Up, Housing and Communities",Homes England,REV GRNTS TO LOCAL AUTHORITIES,Investment,BRIGHTON & HOVE CITY COUNCIL,22/12/2023," £1,934.00 ",PUB,None,Grants
"Department for Levelling Up, Housing and Communities",Homes England,REV GRNTS TO LOCAL AUTHORITIES,Investment,BRIGHTON & HOVE CITY COUNCIL,22/12/2023," £1,454.00 ",PUB,None,Grants
"Department for Levelling Up, Housing and Communities",Homes England,REV GRNTS TO LOCAL AUTHORITIES,Investment,BRIGHTON & HOVE CITY COUNCIL,22/12/2023," £1,575.00 ",PUB,None,Grants
"Department for Levelling Up, Housing and Communities",Homes England,REV GRNTS TO LOCAL AUTHORITIES,Investment,BRIGHTON & HOVE CITY COUNCIL,22/12/2023," £1,934.00 ",PUB,None,Grants
"Department for Levelling Up, Housing and Communities",Homes England,REV GRNTS TO LOCAL AUTHORITIES,Investment,BRIGHTON & HOVE CITY COUNCIL,22/12/2023," £1,934.00 ",PUB,None,Grants
"Department for Levelling Up, Housing and Communities",Homes England,REV GRNTS TO LOCAL AUTHORITIES,Investment,BRIGHTON & HOVE CITY COUNCIL,22/12/2023," £1,454.00 ",PUB,None,Grants
"Department for Levelling Up, Housing and Communities",Homes England,REV GRNTS TO LOCAL AUTHORITIES,Investment,BRIGHTON & HOVE CITY COUNCIL,22/12/2023," £1,454.00 ",PUB,None,Grants
"Department for Levelling Up, Housing and Communities",Homes England,REV GRNTS TO LOCAL AUTHORITIES,Investment,BRIGHTON & HOVE CITY COUNCIL,22/12/2023," £1,575.00 ",PUB,None,Grants
"Department for Levelling Up, Housing and Communities",Homes England,REV GRNTS TO LOCAL AUTHORITIES,Investment,BRIGHTON & HOVE CITY COUNCIL,22/12/2023," £1,934.00 ",PUB,None,Grants
"Department for Levelling Up, Housing and Communities",Homes England,REV GRNTS TO LOCAL AUTHORITIES,Investment,BRIGHTON & HOVE CITY COUNCIL,22/12/2023," £1,454.00 ",PUB,None,Grants
"Department for Levelling Up, Housing and Communities",Homes England,REV GRNTS TO LOCAL AUTHORITIES,Investment,BRIGHTON & HOVE CITY COUNCIL,22/12/2023," £1,454.00 ",PUB,None,Grants
"Department for Levelling Up, Housing and Communities",Homes England,REV GRNTS TO LOCAL AUTHORITIES,Investment,BRIGHTON & HOVE CITY COUNCIL,22/12/2023," £1,575.00 ",PUB,None,Grants
"Department for Levelling Up, Housing and Communities",Homes England,REV GRNTS TO LOCAL AUTHORITIES,Investment,BRIGHTON & HOVE CITY COUNCIL,22/12/2023," £1,454.00 ",PUB,None,Grants
"Department for Levelling Up, Housing and Communities",Homes England,REV GRNTS TO LOCAL AUTHORITIES,Investment,BRIGHTON & HOVE CITY COUNCIL,22/12/2023," £1,892.00 ",PUB,None,Grants
"Department for Levelling Up, Housing and Communities",Homes England,REV GRNTS TO LOCAL AUTHORITIES,Investment,BRIGHTON & HOVE CITY COUNCIL,22/12/2023," £1,575.00 ",PUB,None,Grants
"Department for Levelling Up, Housing and Communities",Homes England,REV GRNTS TO LOCAL AUTHORITIES,Investment,BRIGHTON & HOVE CITY COUNCIL,22/12/2023," £1,575.00 ",PUB,None,Grants
"Department for Levelling Up, Housing and Communities",Homes England,REV GRNTS TO LOCAL AUTHORITIES,Investment,BRIGHTON & HOVE CITY COUNCIL,22/12/2023," £1,934.00 ",PUB,None,Grants
"Department for Levelling Up, Housing and Communities",Homes England,REV GRNTS TO LOCAL AUTHORITIES,Investment,BRIGHTON & HOVE CITY COUNCIL,22/12/2023," £1,934.00 ",PUB,None,Grants
"Department for Levelling Up, Housing and Communities",Homes England,REV GRNTS TO LOCAL AUTHORITIES,Investment,BRIGHTON & HOVE CITY COUNCIL,22/12/2023," £1,454.00 ",PUB,None,Grants
"Department for Levelling Up, Housing and Communities",Homes England,REV GRNTS TO LOCAL AUTHORITIES,Investment,BRIGHTON & HOVE CITY COUNCIL,22/12/2023," £1,575.00 ",PUB,None,Grants
"Department for Levelling Up, Housing and Communities",Homes England,REV GRNTS TO LOCAL AUTHORITIES,Investment,BRIGHTON & HOVE CITY COUNCIL,22/12/2023," £1,934.00 ",PUB,None,Grants
"Department for Levelling Up, Housing and Communities",Homes England,REV GRNTS TO LOCAL AUTHORITIES,Investment,BRIGHTON & HOVE CITY COUNCIL,22/12/2023," £1,454.00 ",PUB,None,Grants
"Department for Levelling Up, Housing and Communities",Homes England,REV GRNTS TO LOCAL AUTHORITIES,Investment,BRIGHTON & HOVE CITY COUNCIL,22/12/2023," £1,454.00 ",PUB,None,Grants
"Department for Levelling Up, Housing and Communities",Homes England,REV GRNTS TO LOCAL AUTHORITIES,Investment,BRIGHTON & HOVE CITY COUNCIL,22/12/2023," £1,575.00 ",PUB,None,Grants
"Department for Levelling Up, Housing and Communities",Homes England,REV GRNTS TO LOCAL AUTHORITIES,Investment,BRIGHTON & HOVE CITY COUNCIL,22/12/2023," £1,575.00 ",PUB,None,Grants
"Department for Levelling Up, Housing and Communities",Homes England,REV GRNTS TO LOCAL AUTHORITIES,Investment,BRIGHTON & HOVE CITY COUNCIL,22/12/2023," £1,934.00 ",PUB,None,Grants
"Department for Levelling Up, Housing and Communities",Homes England,REV GRNTS TO LOCAL AUTHORITIES,Investment,BRIGHTON & HOVE CITY COUNCIL,22/12/2023," £1,934.00 ",PUB,None,Grants
"Department for Levelling Up, Housing and Communities",Homes England,REV GRNTS TO LOCAL AUTHORITIES,Investment,BRIGHTON & HOVE CITY COUNCIL,22/12/2023," £1,454.00 ",PUB,None,Grants
"Department for Levelling Up, Housing and Communities",Homes England,REV GRNTS TO LOCAL AUTHORITIES,Investment,BRIGHTON & HOVE CITY COUNCIL,22/12/2023," £1,454.00 ",PUB,None,Grants
"Department for Levelling Up, Housing and Communities",Homes England,REV GRNTS TO LOCAL AUTHORITIES,Investment,BRIGHTON & HOVE CITY COUNCIL,22/12/2023," £1,575.00 ",PUB,None,Grants
"Department for Levelling Up, Housing and Communities",Homes England,REV GRNTS TO LOCAL AUTHORITIES,Investment,BRIGHTON & HOVE CITY COUNCIL,22/12/2023," £1,934.00 ",PUB,None,Grants
"Department for Levelling Up, Housing and Communities",Homes England,REV GRNTS TO LOCAL AUTHORITIES,Investment,BRIGHTON & HOVE CITY COUNCIL,22/12/2023," £1,934.00 ",PUB,None,Grants
"Department for Levelling Up, Housing and Communities",Homes England,REV GRNTS TO LOCAL AUTHORITIES,Investment,BRIGHTON & HOVE CITY COUNCIL,22/12/2023," £1,454.00 ",PUB,None,Grants
"Department for Levelling Up, Housing and Communities",Homes England,REV GRNTS TO LOCAL AUTHORITIES,Investment,BRIGHTON & HOVE CITY COUNCIL,22/12/2023," £1,454.00 ",PUB,None,Grants
"Department for Levelling Up, Housing and Communities",Homes England,REV GRNTS TO LOCAL AUTHORITIES,Investment,BRIGHTON & HOVE CITY COUNCIL,22/12/2023," £1,575.00 ",PUB,None,Grants
"Department for Levelling Up, Housing and Communities",Homes England,REV GRNTS TO LOCAL AUTHORITIES,Investment,BRIGHTON & HOVE CITY COUNCIL,22/12/2023," £1,934.00 ",PUB,None,Grants
"Department for Levelling Up, Housing and Communities",Homes England,REV GRNTS TO LOCAL AUTHORITIES,Investment,BRIGHTON & HOVE CITY COUNCIL,22/12/2023," £1,454.00 ",PUB,None,Grants
"Department for Levelling Up, Housing and Communities",Homes England,REV GRNTS TO LOCAL AUTHORITIES,Investment,BRIGHTON & HOVE CITY COUNCIL,22/12/2023," £1,454.00 ",PUB,None,Grants
"Department for Levelling Up, Housing and Communities",Homes England,REV GRNTS TO LOCAL AUTHORITIES,Investment,BRIGHTON & HOVE CITY COUNCIL,22/12/2023," £1,575.00 ",PUB,None,Grants
"Department for Levelling Up, Housing and Communities",Homes England,REV GRNTS TO LOCAL AUTHORITIES,Investment,BRIGHTON & HOVE CITY COUNCIL,22/12/2023," £1,892.00 ",PUB,None,Grants
"Department for Levelling Up, Housing and Communities",Homes England,REV GRNTS TO LOCAL AUTHORITIES,Investment,BRIGHTON & HOVE CITY COUNCIL,22/12/2023," £1,575.00 ",PUB,None,Grants
"Department for Levelling Up, Housing and Communities",Homes England,REV GRNTS TO LOCAL AUTHORITIES,Investment,BRIGHTON & HOVE CITY COUNCIL,22/12/2023," £1,575.00 ",PUB,None,Grants
"Department for Levelling Up, Housing and Communities",Homes England,REV GRNTS TO LOCAL AUTHORITIES,Investment,BRIGHTON & HOVE CITY COUNCIL,22/12/2023," £1,934.00 ",PUB,None,Grants
"Department for Levelling Up, Housing and Communities",Homes England,REV GRNTS TO LOCAL AUTHORITIES,Investment,BRIGHTON & HOVE CITY COUNCIL,22/12/2023," £1,575.00 ",PUB,None,Grants
"Department for Levelling Up, Housing and Communities",Homes England,REV GRNTS TO LOCAL AUTHORITIES,Investment,BRIGHTON & HOVE CITY COUNCIL,22/12/2023," £1,575.00 ",PUB,None,Grants
"Department for Levelling Up, Housing and Communities",Homes England,REV GRNTS TO LOCAL AUTHORITIES,Investment,BRIGHTON & HOVE CITY COUNCIL,22/12/2023," £1,934.00 ",PUB,None,Grants
"Department for Levelling Up, Housing and Communities",Homes England,REV GRNTS TO LOCAL AUTHORITIES,Investment,BRIGHTON & HOVE CITY COUNCIL,22/12/2023," £1,454.00 ",PUB,None,Grants
"Department for Levelling Up, Housing and Communities",Homes England,REV GRNTS TO LOCAL AUTHORITIES,Investment,BRIGHTON & HOVE CITY COUNCIL,22/12/2023," £1,575.00 ",PUB,None,Grants
"Department for Levelling Up, Housing and Communities",Homes England,REV GRNTS TO LOCAL AUTHORITIES,Investment,BRIGHTON & HOVE CITY COUNCIL,22/12/2023," £1,934.00 ",PUB,None,Grants
"Department for Levelling Up, Housing and Communities",Homes England,REV GRNTS TO LOCAL AUTHORITIES,Investment,BRIGHTON & HOVE CITY COUNCIL,22/12/2023," £1,454.00 ",PUB,None,Grants
"Department for Levelling Up, Housing and Communities",Homes England,REV GRNTS TO LOCAL AUTHORITIES,Investment,BRIGHTON & HOVE CITY COUNCIL,22/12/2023," £1,575.00 ",PUB,None,Grants
"Department for Levelling Up, Housing and Communities",Homes England,REV GRNTS TO LOCAL AUTHORITIES,Investment,BRIGHTON & HOVE CITY COUNCIL,22/12/2023," £1,934.00 ",PUB,None,Grants
"Department for Levelling Up, Housing and Communities",Homes England,REV GRNTS TO LOCAL AUTHORITIES,Investment,BRIGHTON & HOVE CITY COUNCIL,22/12/2023," £1,934.00 ",PUB,None,Grants
"Department for Levelling Up, Housing and Communities",Homes England,REV GRNTS TO LOCAL AUTHORITIES,Investment,BRIGHTON & HOVE CITY COUNCIL,22/12/2023," £1,454.00 ",PUB,None,Grants
"Department for Levelling Up, Housing and Communities",Homes England,REV GRNTS TO LOCAL AUTHORITIES,Investment,BRIGHTON & HOVE CITY COUNCIL,22/12/2023," £1,861.00 ",PUB,None,Grants
"Department for Levelling Up, Housing and Communities",Homes England,REV GRNTS TO LOCAL AUTHORITIES,Investment,BRIGHTON & HOVE CITY COUNCIL,22/12/2023," £1,575.00 ",PUB,None,Grants
"Department for Levelling Up, Housing and Communities",Homes England,REV GRNTS TO LOCAL AUTHORITIES,Investment,BRIGHTON & HOVE CITY COUNCIL,22/12/2023," £1,454.00 ",PUB,None,Grants
"Department for Levelling Up, Housing and Communities",Homes England,REV GRNTS TO LOCAL AUTHORITIES,Investment,BRIGHTON & HOVE CITY COUNCIL,22/12/2023," £1,454.00 ",PUB,None,Grants
"Department for Levelling Up, Housing and Communities",Homes England,REV GRNTS TO LOCAL AUTHORITIES,Investment,BRIGHTON & HOVE CITY COUNCIL,22/12/2023," £1,934.00 ",PUB,None,Grants
"Department for Levelling Up, Housing and Communities",Homes England,REV GRNTS TO LOCAL AUTHORITIES,Investment,BRIGHTON & HOVE CITY COUNCIL,22/12/2023," £1,892.00 ",PUB,None,Grants
"Department for Levelling Up, Housing and Communities",Homes England,REV GRNTS TO LOCAL AUTHORITIES,Investment,BRIGHTON & HOVE CITY COUNCIL,22/12/2023," £1,575.00 ",PUB,None,Grants
"Department for Levelling Up, Housing and Communities",Homes England,REV GRNTS TO LOCAL AUTHORITIES,Investment,BRIGHTON & HOVE CITY COUNCIL,22/12/2023," £1,575.00 ",PUB,None,Grants
"Department for Levelling Up, Housing and Communities",Homes England,REV GRNTS TO LOCAL AUTHORITIES,Investment,BRIGHTON & HOVE CITY COUNCIL,22/12/2023," £1,934.00 ",PUB,None,Grants
"Department for Levelling Up, Housing and Communities",Homes England,REV GRNTS TO LOCAL AUTHORITIES,Investment,BRIGHTON & HOVE CITY COUNCIL,22/12/2023," £1,454.00 ",PUB,None,Grants
"Department for Levelling Up, Housing and Communities",Homes England,REV GRNTS TO LOCAL AUTHORITIES,Investment,BRIGHTON & HOVE CITY COUNCIL,22/12/2023," £1,575.00 ",PUB,None,Grants
"Department for Levelling Up, Housing and Communities",Homes England,REV GRNTS TO LOCAL AUTHORITIES,Investment,BRIGHTON & HOVE CITY COUNCIL,22/12/2023," £1,575.00 ",PUB,None,Grants
"Department for Levelling Up, Housing and Communities",Homes England,REV GRNTS TO LOCAL AUTHORITIES,Investment,BRIGHTON & HOVE CITY COUNCIL,22/12/2023," £1,934.00 ",PUB,None,Grants
"Department for Levelling Up, Housing and Communities",Homes England,REV GRNTS TO LOCAL AUTHORITIES,Investment,BRIGHTON & HOVE CITY COUNCIL,22/12/2023," £1,934.00 ",PUB,None,Grants
"Department for Levelling Up, Housing and Communities",Homes England,REV GRNTS TO LOCAL AUTHORITIES,Investment,BRIGHTON & HOVE CITY COUNCIL,22/12/2023," £1,934.00 ",PUB,None,Grants
"Department for Levelling Up, Housing and Communities",Homes England,REV GRNTS TO LOCAL AUTHORITIES,Investment,BRIGHTON & HOVE CITY COUNCIL,22/12/2023," £1,454.00 ",PUB,None,Grants
"Department for Levelling Up, Housing and Communities",Homes England,SERVICE CHARGE,Development,ASDA STORES LTD,15/12/2023," £1,091.03 ",LAR,80131500,Lease and rental of property or building
"Department for Levelling Up, Housing and Communities",Homes England,CAP GRNTS TO LOCAL AUTHORITIES,Investment,DOVER DISTRICT COUNCIL,13/12/2023," £319,389.78 ",PUB,None,Grants
"Department for Levelling Up, Housing and Communities",Homes England,REV GRNTS TO LOCAL AUTHORITIES,Investment,CAMBRIDGE CITY COUNCIL,22/12/2023," £1,071.00 ",PUB,None,Grants
"Department for Levelling Up, Housing and Communities",Homes England,REV GRNTS TO LOCAL AUTHORITIES,Investment,CAMBRIDGE CITY COUNCIL,22/12/2023," £1,072.00 ",PUB,None,Grants
"Department for Levelling Up, Housing and Communities",Homes England,REV GRNTS TO LOCAL AUTHORITIES,Investment,CAMBRIDGE CITY COUNCIL,22/12/2023," £1,071.00 ",PUB,None,Grants
"Department for Levelling Up, Housing and Communities",Homes England,REV GRNTS TO LOCAL AUTHORITIES,Investment,CAMBRIDGE CITY COUNCIL,22/12/2023," £1,072.00 ",PUB,None,Grants
"Department for Levelling Up, Housing and Communities",Homes England,REV GRNTS TO LOCAL AUTHORITIES,Investment,CAMBRIDGE CITY COUNCIL,22/12/2023," £1,071.00 ",PUB,None,Grants
"Department for Levelling Up, Housing and Communities",Homes England,REV GRNTS TO LOCAL AUTHORITIES,Investment,CAMBRIDGE CITY COUNCIL,22/12/2023," £1,072.00 ",PUB,None,Grants
"Department for Levelling Up, Housing and Communities",Homes England,REV GRNTS TO LOCAL AUTHORITIES,Investment,CAMBRIDGE CITY COUNCIL,22/12/2023," £1,071.00 ",PUB,None,Grants
"Department for Levelling Up, Housing and Communities",Homes England,REV GRNTS TO LOCAL AUTHORITIES,Investment,CAMBRIDGE CITY COUNCIL,22/12/2023," £1,071.00 ",PUB,None,Grants
"Department for Levelling Up, Housing and Communities",Homes England,REV GRNTS TO LOCAL AUTHORITIES,Investment,CAMBRIDGE CITY COUNCIL,22/12/2023," £1,071.00 ",PUB,None,Grants
"Department for Levelling Up, Housing and Communities",Homes England,REV GRNTS TO LOCAL AUTHORITIES,Investment,CAMBRIDGE CITY COUNCIL,22/12/2023," £1,072.00 ",PUB,None,Grants
"Department for Levelling Up, Housing and Communities",Homes England,REV GRNTS TO LOCAL AUTHORITIES,Investment,CAMBRIDGE CITY COUNCIL,22/12/2023," £1,071.00 ",PUB,None,Grants
"Department for Levelling Up, Housing and Communities",Homes England,REV GRNTS TO LOCAL AUTHORITIES,Investment,CAMBRIDGE CITY COUNCIL,22/12/2023," £1,071.00 ",PUB,None,Grants
"Department for Levelling Up, Housing and Communities",Homes England,REV GRNTS TO LOCAL AUTHORITIES,Investment,CAMBRIDGE CITY COUNCIL,22/12/2023," £1,497.00 ",PUB,None,Grants
"Department for Levelling Up, Housing and Communities",Homes England,REV GRNTS TO LOCAL AUTHORITIES,Investment,CAMBRIDGE CITY COUNCIL,22/12/2023," £1,072.00 ",PUB,None,Grants
"Department for Levelling Up, Housing and Communities",Homes England,REV GRNTS TO LOCAL AUTHORITIES,Investment,EXETER CITY COUNCIL,22/12/2023," £1,425.00 ",PUB,None,Grants
"Department for Levelling Up, Housing and Communities",Homes England,REV GRNTS TO LOCAL AUTHORITIES,Investment,EXETER CITY COUNCIL,22/12/2023," £1,425.00 ",PUB,None,Grants
"Department for Levelling Up, Housing and Communities",Homes England,REV GRNTS TO LOCAL AUTHORITIES,Investment,EXETER CITY COUNCIL,22/12/2023," £1,425.00 ",PUB,None,Grants
"Department for Levelling Up, Housing and Communities",Homes England,REV GRNTS TO LOCAL AUTHORITIES,Investment,EXETER CITY COUNCIL,22/12/2023," £1,425.00 ",PUB,None,Grants
"Department for Levelling Up, Housing and Communities",Homes England,REV GRNTS TO LOCAL AUTHORITIES,Investment,EXETER CITY COUNCIL,22/12/2023," £1,425.00 ",PUB,None,Grants
"Department for Levelling Up, Housing and Communities",Homes England,REV GRNTS TO LOCAL AUTHORITIES,Investment,EXETER CITY COUNCIL,22/12/2023," £1,425.00 ",PUB,None,Grants
"Department for Levelling Up, Housing and Communities",Homes England,REV GRNTS TO LOCAL AUTHORITIES,Investment,EXETER CITY COUNCIL,22/12/2023," £9,500.00 ",PUB,None,Grants
"Department for Levelling Up, Housing and Communities",Homes England,REV GRNTS TO LOCAL AUTHORITIES,Investment,EXETER CITY COUNCIL,22/12/2023," £1,425.00 ",PUB,None,Grants
"Department for Levelling Up, Housing and Communities",Homes England,REV GRNTS TO LOCAL AUTHORITIES,Investment,EXETER CITY COUNCIL,22/12/2023," £1,425.00 ",PUB,None,Grants
"Department for Levelling Up, Housing and Communities",Homes England,REV GRNTS TO LOCAL AUTHORITIES,Investment,EXETER CITY COUNCIL,22/12/2023," £1,425.00 ",PUB,None,Grants
"Department for Levelling Up, Housing and Communities",Homes England,REV GRNTS TO LOCAL AUTHORITIES,Investment,EXETER CITY COUNCIL,22/12/2023," £9,500.00 ",PUB,None,Grants
"Department for Levelling Up, Housing and Communities",Homes England,REV GRNTS TO LOCAL AUTHORITIES,Investment,EXETER CITY COUNCIL,22/12/2023," £1,425.00 ",PUB,None,Grants
"Department for Levelling Up, Housing and Communities",Homes England,REV GRNTS TO LOCAL AUTHORITIES,Investment,EXETER CITY COUNCIL,22/12/2023, £950.00 ,PUB,None,Grants
"Department for Levelling Up, Housing and Communities",Homes England,REV GRNTS TO LOCAL AUTHORITIES,Investment,EXETER CITY COUNCIL,22/12/2023," £1,425.00 ",PUB,None,Grants
"Department for Levelling Up, Housing and Communities",Homes England,REV GRNTS TO LOCAL AUTHORITIES,Investment,EXETER CITY COUNCIL,22/12/2023, £950.00 ,PUB,None,Grants
"Department for Levelling Up, Housing and Communities",Homes England,REV GRNTS TO LOCAL AUTHORITIES,Investment,EXETER CITY COUNCIL,22/12/2023," £1,425.00 ",PUB,None,Grants
"Department for Levelling Up, Housing and Communities",Homes England,REV GRNTS TO LOCAL AUTHORITIES,Investment,EXETER CITY COUNCIL,22/12/2023," £1,425.00 ",PUB,None,Grants
"Department for Levelling Up, Housing and Communities",Homes England,REV GRNTS TO LOCAL AUTHORITIES,Investment,EXETER CITY COUNCIL,22/12/2023, £950.00 ,PUB,None,Grants
"Department for Levelling Up, Housing and Communities",Homes England,REV GRNTS TO LOCAL AUTHORITIES,Investment,EXETER CITY COUNCIL,22/12/2023," £1,900.00 ",PUB,None,Grants
"Department for Levelling Up, Housing and Communities",Homes England,REV GRNTS TO LOCAL AUTHORITIES,Investment,EXETER CITY COUNCIL,22/12/2023, £950.00 ,PUB,None,Grants
"Department for Levelling Up, Housing and Communities",Homes England,REV GRNTS TO LOCAL AUTHORITIES,Investment,TEIGNBRIDGE DISTRICT COUNCIL,19/12/2023," £6,900.00 ",PUB,None,Grants
"Department for Levelling Up, Housing and Communities",Homes England,REV GRNTS TO LOCAL AUTHORITIES,Investment,TEIGNBRIDGE DISTRICT COUNCIL,22/12/2023," £5,400.00 ",PUB,None,Grants
"Department for Levelling Up, Housing and Communities",Homes England,REV GRNTS TO LOCAL AUTHORITIES,Investment,TEIGNBRIDGE DISTRICT COUNCIL,22/12/2023," £1,800.00 ",PUB,None,Grants
"Department for Levelling Up, Housing and Communities",Homes England,REV GRNTS TO LOCAL AUTHORITIES,Investment,TEIGNBRIDGE DISTRICT COUNCIL,22/12/2023," £1,800.00 ",PUB,None,Grants
"Department for Levelling Up, Housing and Communities",Homes England,REV GRNTS TO LOCAL AUTHORITIES,Investment,TEIGNBRIDGE DISTRICT COUNCIL,22/12/2023," £1,800.00 ",PUB,None,Grants
"Department for Levelling Up, Housing and Communities",Homes England,REV GRNTS TO LOCAL AUTHORITIES,Investment,TEIGNBRIDGE DISTRICT COUNCIL,22/12/2023," £1,800.00 ",PUB,None,Grants
"Department for Levelling Up, Housing and Communities",Homes England,STAFF RECRUITMENT COSTS,Chief Operating Officer,LPFA,04/12/2023," £7,500.71 ",SMA,84131700,Pension funds
"Department for Levelling Up, Housing and Communities",Homes England,REV GRNTS TO LOCAL AUTHORITIES,Investment,EASTBOURNE BOROUGH COUNCIL,05/12/2023," £1,550.00 ",PUB,None,Grants
"Department for Levelling Up, Housing and Communities",Homes England,REV GRNTS TO LOCAL AUTHORITIES,Investment,EASTBOURNE BOROUGH COUNCIL,13/12/2023," £37,500.00 ",PUB,None,Grants
"Department for Levelling Up, Housing and Communities",Homes England,REV GRNTS TO LOCAL AUTHORITIES,Investment,EASTBOURNE BOROUGH COUNCIL,14/12/2023," £3,750.00 ",PUB,None,Grants
"Department for Levelling Up, Housing and Communities",Homes England,REV GRNTS TO LOCAL AUTHORITIES,Investment,EASTBOURNE BOROUGH COUNCIL,22/12/2023," £1,033.00 ",PUB,None,Grants
"Department for Levelling Up, Housing and Communities",Homes England,REV GRNTS TO LOCAL AUTHORITIES,Investment,EASTBOURNE BOROUGH COUNCIL,22/12/2023," £1,575.00 ",PUB,None,Grants
"Department for Levelling Up, Housing and Communities",Homes England,REV GRNTS TO LOCAL AUTHORITIES,Investment,EASTBOURNE BOROUGH COUNCIL,22/12/2023," £1,344.00 ",PUB,None,Grants
"Department for Levelling Up, Housing and Communities",Homes England,REV GRNTS TO LOCAL AUTHORITIES,Investment,EASTBOURNE BOROUGH COUNCIL,22/12/2023, £775.00 ,PUB,None,Grants
"Department for Levelling Up, Housing and Communities",Homes England,REV GRNTS TO LOCAL AUTHORITIES,Investment,EASTBOURNE BOROUGH COUNCIL,22/12/2023," £1,575.00 ",PUB,None,Grants
"Department for Levelling Up, Housing and Communities",Homes England,REV GRNTS TO LOCAL AUTHORITIES,Investment,EASTBOURNE BOROUGH COUNCIL,22/12/2023," £2,066.00 ",PUB,None,Grants
"Department for Levelling Up, Housing and Communities",Homes England,REV GRNTS TO LOCAL AUTHORITIES,Investment,EASTBOURNE BOROUGH COUNCIL,22/12/2023," £1,575.00 ",PUB,None,Grants
"Department for Levelling Up, Housing and Communities",Homes England,REV GRNTS TO LOCAL AUTHORITIES,Investment,EASTBOURNE BOROUGH COUNCIL,22/12/2023," £1,575.00 ",PUB,None,Grants
"Department for Levelling Up, Housing and Communities",Homes England,REV GRNTS TO LOCAL AUTHORITIES,Investment,EASTBOURNE BOROUGH COUNCIL,22/12/2023," £1,575.00 ",PUB,None,Grants
"Department for Levelling Up, Housing and Communities",Homes England,REV GRNTS TO LOCAL AUTHORITIES,Investment,EASTBOURNE BOROUGH COUNCIL,22/12/2023," £1,344.00 ",PUB,None,Grants
"Department for Levelling Up, Housing and Communities",Homes England,REV GRNTS TO LOCAL AUTHORITIES,Investment,EASTBOURNE BOROUGH COUNCIL,22/12/2023," £1,575.00 ",PUB,None,Grants
"Department for Levelling Up, Housing and Communities",Homes England,REV GRNTS TO LOCAL AUTHORITIES,Investment,EASTBOURNE BOROUGH COUNCIL,22/12/2023," £1,575.00 ",PUB,None,Grants
"Department for Levelling Up, Housing and Communities",Homes England,REV GRNTS TO LOCAL AUTHORITIES,Investment,EASTBOURNE BOROUGH COUNCIL,22/12/2023," £1,344.00 ",PUB,None,Grants
"Department for Levelling Up, Housing and Communities",Homes England,REV GRNTS TO LOCAL AUTHORITIES,Investment,EASTBOURNE BOROUGH COUNCIL,22/12/2023, £775.00 ,PUB,None,Grants
"Department for Levelling Up, Housing and Communities",Homes England,REV GRNTS TO LOCAL AUTHORITIES,Investment,EASTBOURNE BOROUGH COUNCIL,22/12/2023," £1,575.00 ",PUB,None,Grants
"Department for Levelling Up, Housing and Communities",Homes England,REV GRNTS TO LOCAL AUTHORITIES,Investment,WEALDEN DISTRICT COUNCIL,22/12/2023," £2,100.00 ",PUB,None,Grants
"Department for Levelling Up, Housing and Communities",Homes England,REV GRNTS TO LOCAL AUTHORITIES,Investment,WEALDEN DISTRICT COUNCIL,22/12/2023," £10,750.00 ",PUB,None,Grants
"Department for Levelling Up, Housing and Communities",Homes England,REV GRNTS TO LOCAL AUTHORITIES,Investment,WEALDEN DISTRICT COUNCIL,22/12/2023," £2,100.00 ",PUB,None,Grants
"Department for Levelling Up, Housing and Communities",Homes England,REV GRNTS TO LOCAL AUTHORITIES,Investment,WEALDEN DISTRICT COUNCIL,22/12/2023," £2,100.00 ",PUB,None,Grants
"Department for Levelling Up, Housing and Communities",Homes England,REV GRNTS TO LOCAL AUTHORITIES,Investment,WEALDEN DISTRICT COUNCIL,22/12/2023," £2,100.00 ",PUB,None,Grants
"Department for Levelling Up, Housing and Communities",Homes England,REV GRNTS TO LOCAL AUTHORITIES,Investment,COLCHESTER CITY COUNCIL,22/12/2023," £1,511.00 ",PUB,None,Grants
"Department for Levelling Up, Housing and Communities",Homes England,REV GRNTS TO LOCAL AUTHORITIES,Investment,COLCHESTER CITY COUNCIL,22/12/2023," £1,511.00 ",PUB,None,Grants
"Department for Levelling Up, Housing and Communities",Homes England,REV GRNTS TO LOCAL AUTHORITIES,Investment,COLCHESTER CITY COUNCIL,22/12/2023," £1,511.00 ",PUB,None,Grants
"Department for Levelling Up, Housing and Communities",Homes England,REV GRNTS TO LOCAL AUTHORITIES,Investment,COLCHESTER CITY COUNCIL,22/12/2023," £1,511.00 ",PUB,None,Grants
"Department for Levelling Up, Housing and Communities",Homes England,REV GRNTS TO LOCAL AUTHORITIES,Investment,COLCHESTER CITY COUNCIL,22/12/2023," £1,511.00 ",PUB,None,Grants
"Department for Levelling Up, Housing and Communities",Homes England,REV GRNTS TO LOCAL AUTHORITIES,Investment,COLCHESTER CITY COUNCIL,22/12/2023," £1,511.00 ",PUB,None,Grants
"Department for Levelling Up, Housing and Communities",Homes England,OTHER PROFESSIONAL FEES,Development,ENVIRONMENT AGENCY,04/12/2023, £840.00 ,PUB,77101500,Environmental auditing
"Department for Levelling Up, Housing and Communities",Homes England,IRON MOUNTAIN-STORAGE,Corporate Resources,IRON MOUNTAIN (UK) LTD,22/12/2023," £4,673.65 ",LAR,78131800,Specialized warehousing and storage
"Department for Levelling Up, Housing and Communities",Homes England,IRON MOUNTAIN-STORAGE,Corporate Resources,IRON MOUNTAIN (UK) LTD,22/12/2023," £5,015.45 ",LAR,78131800,Specialized warehousing and storage
"Department for Levelling Up, Housing and Communities",Homes England,CAP GRNTS TO LOCAL AUTHORITIES,Investment,DACORUM BOROUGH COUNCIL,22/12/2023," £152,364.00 ",PUB,None,Grants
"Department for Levelling Up, Housing and Communities",Homes England,REV GRNTS TO LOCAL AUTHORITIES,Investment,EAST HERTFORDSHIRE DISTRICT COUNCIL,22/12/2023," £13,750.00 ",PUB,None,Grants
"Department for Levelling Up, Housing and Communities",Homes England,REV GRNTS TO LOCAL AUTHORITIES,Investment,STEVENGE BOROUGH COUNCIL,22/12/2023," £5,687.00 ",PUB,None,Grants
"Department for Levelling Up, Housing and Communities",Homes England,REV GRNTS TO LOCAL AUTHORITIES,Investment,STEVENGE BOROUGH COUNCIL,22/12/2023," £29,750.00 ",PUB,None,Grants
"Department for Levelling Up, Housing and Communities",Homes England,REV GRNTS TO LOCAL AUTHORITIES,Investment,STEVENGE BOROUGH COUNCIL,22/12/2023," £12,512.00 ",PUB,None,Grants
"Department for Levelling Up, Housing and Communities",Homes England,REV GRNTS TO LOCAL AUTHORITIES,Investment,STEVENGE BOROUGH COUNCIL,22/12/2023," £9,100.00 ",PUB,None,Grants
"Department for Levelling Up, Housing and Communities",Homes England,CAP GRNTS TO LOCAL AUTHORITIES,Investment,ASHFORD BOROUGH COUNCIL,08/12/2023," £75,000.00 ",PUB,None,Grants
"Department for Levelling Up, Housing and Communities",Homes England,REV GRNTS TO LOCAL AUTHORITIES,Investment,ASHFORD BOROUGH COUNCIL,22/12/2023," £1,563.00 ",PUB,None,Grants
"Department for Levelling Up, Housing and Communities",Homes England,REV GRNTS TO LOCAL AUTHORITIES,Investment,DOVER DISTRICT COUNCIL,12/12/2023," £97,200.00 ",PUB,None,Grants
"Department for Levelling Up, Housing and Communities",Homes England,REV GRNTS TO LOCAL AUTHORITIES,Investment,DOVER DISTRICT COUNCIL,22/12/2023," £108,000.00 ",PUB,None,Grants
"Department for Levelling Up, Housing and Communities",Homes England,REV GRNTS TO LOCAL AUTHORITIES,Investment,DOVER DISTRICT COUNCIL,22/12/2023," £1,377.00 ",PUB,None,Grants
"Department for Levelling Up, Housing and Communities",Homes England,REV GRNTS TO LOCAL AUTHORITIES,Investment,DOVER DISTRICT COUNCIL,22/12/2023," £4,131.00 ",PUB,None,Grants
"Department for Levelling Up, Housing and Communities",Homes England,REV GRNTS TO LOCAL AUTHORITIES,Investment,DOVER DISTRICT COUNCIL,22/12/2023," £1,376.00 ",PUB,None,Grants
"Department for Levelling Up, Housing and Communities",Homes England,REV GRNTS TO LOCAL AUTHORITIES,Investment,DOVER DISTRICT COUNCIL,22/12/2023," £1,376.00 ",PUB,None,Grants
"Department for Levelling Up, Housing and Communities",Homes England,REV GRNTS TO LOCAL AUTHORITIES,Investment,MAIDSTONE BOROUGH COUNCIL,22/12/2023," £21,667.00 ",PUB,None,Grants
"Department for Levelling Up, Housing and Communities",Homes England,REV GRNTS TO LOCAL AUTHORITIES,Investment,FOLKESTONE & HYTHE DISTRICT COUNCIL,22/12/2023," £2,478.00 ",PUB,None,Grants
"Department for Levelling Up, Housing and Communities",Homes England,REV GRNTS TO LOCAL AUTHORITIES,Investment,FOLKESTONE & HYTHE DISTRICT COUNCIL,22/12/2023," £2,478.00 ",PUB,None,Grants
"Department for Levelling Up, Housing and Communities",Homes England,REV GRNTS TO LOCAL AUTHORITIES,Investment,FOLKESTONE & HYTHE DISTRICT COUNCIL,22/12/2023," £2,478.00 ",PUB,None,Grants
"Department for Levelling Up, Housing and Communities",Homes England,REV GRNTS TO LOCAL AUTHORITIES,Investment,LANCASTER CITY COUNCIL,22/12/2023," £20,000.00 ",PUB,None,Grants
"Department for Levelling Up, Housing and Communities",Homes England,POSTAGE/COURIERS,Chief Operating Officer,MK LONDON LINK,20/12/2023, £366.30 ,SMA,78102200,Postal and small parcel and courier services
"Department for Levelling Up, Housing and Communities",Homes England,TAXATION ADVICE  & PENALTIES,Corporate Resources,RSM UK AUDIT LLP,11/12/2023," £2,700.00 ",LAR,84111800,Taxation issues and preparation
"Department for Levelling Up, Housing and Communities",Homes England,ROADS AND CAR PARKS,Development,GROUND CONTROL LIMITED,22/12/2023, £544.52 ,LAR,72101500,Building maintenance and repair services
"Department for Levelling Up, Housing and Communities",Homes England,REV GRNTS TO LOCAL AUTHORITIES,Investment,NORTH KESTEVEN DISTRICT COUNCIL,22/12/2023," £4,189.00 ",PUB,None,Grants
"Department for Levelling Up, Housing and Communities",Homes England,REV GRNTS TO LOCAL AUTHORITIES,Investment,SOUTH HOLLAND DISTRICT COUNCIL,22/12/2023," £2,974.00 ",PUB,None,Grants
"Department for Levelling Up, Housing and Communities",Homes England,REV GRNTS TO LOCAL AUTHORITIES,Investment,SOUTH HOLLAND DISTRICT COUNCIL,22/12/2023," £1,410.00 ",PUB,None,Grants
"Department for Levelling Up, Housing and Communities",Homes England,REV GRNTS TO LOCAL AUTHORITIES,Investment,SOUTH HOLLAND DISTRICT COUNCIL,22/12/2023," £2,973.00 ",PUB,None,Grants
"Department for Levelling Up, Housing and Communities",Homes England,REV GRNTS TO LOCAL AUTHORITIES,Investment,SOUTH HOLLAND DISTRICT COUNCIL,22/12/2023," £3,064.00 ",PUB,None,Grants
"Department for Levelling Up, Housing and Communities",Homes England,REV GRNTS TO LOCAL AUTHORITIES,Investment,SOUTH HOLLAND DISTRICT COUNCIL,22/12/2023," £1,411.00 ",PUB,None,Grants
"Department for Levelling Up, Housing and Communities",Homes England,REV GRNTS TO LOCAL AUTHORITIES,Investment,SOUTH HOLLAND DISTRICT COUNCIL,22/12/2023," £1,411.00 ",PUB,None,Grants
"Department for Levelling Up, Housing and Communities",Homes England,REV GRNTS TO LOCAL AUTHORITIES,Investment,SOUTH HOLLAND DISTRICT COUNCIL,22/12/2023," £1,411.00 ",PUB,None,Grants
"Department for Levelling Up, Housing and Communities",Homes England,REV GRNTS TO LOCAL AUTHORITIES,Investment,SOUTH HOLLAND DISTRICT COUNCIL,22/12/2023," £2,844.00 ",PUB,None,Grants
"Department for Levelling Up, Housing and Communities",Homes England,REV GRNTS TO LOCAL AUTHORITIES,Investment,GREAT YARMOUTH BOROUGH COUNCIL,22/12/2023," £2,027.00 ",PUB,None,Grants
"Department for Levelling Up, Housing and Communities",Homes England,REV GRNTS TO LOCAL AUTHORITIES,Investment,GREAT YARMOUTH BOROUGH COUNCIL,22/12/2023," £2,027.00 ",PUB,None,Grants
"Department for Levelling Up, Housing and Communities",Homes England,REV GRNTS TO LOCAL AUTHORITIES,Investment,GREAT YARMOUTH BOROUGH COUNCIL,22/12/2023," £2,027.00 ",PUB,None,Grants
"Department for Levelling Up, Housing and Communities",Homes England,REV GRNTS TO LOCAL AUTHORITIES,Investment,GREAT YARMOUTH BOROUGH COUNCIL,22/12/2023," £3,452.00 ",PUB,None,Grants
"Department for Levelling Up, Housing and Communities",Homes England,REV GRNTS TO LOCAL AUTHORITIES,Investment,GREAT YARMOUTH BOROUGH COUNCIL,22/12/2023," £2,027.00 ",PUB,None,Grants
"Department for Levelling Up, Housing and Communities",Homes England,REV GRNTS TO LOCAL AUTHORITIES,Investment,GREAT YARMOUTH BOROUGH COUNCIL,22/12/2023," £2,027.00 ",PUB,None,Grants
"Department for Levelling Up, Housing and Communities",Homes England,REV GRNTS TO LOCAL AUTHORITIES,Investment,WEST NORTHAMPTONSHIRE COUNCIL,22/12/2023, £700.00 ,PUB,None,Grants
"Department for Levelling Up, Housing and Communities",Homes England,REV GRNTS TO LOCAL AUTHORITIES,Investment,WEST NORTHAMPTONSHIRE COUNCIL,22/12/2023, £700.00 ,PUB,None,Grants
"Department for Levelling Up, Housing and Communities",Homes England,REV GRNTS TO LOCAL AUTHORITIES,Investment,WEST NORTHAMPTONSHIRE COUNCIL,22/12/2023, £700.00 ,PUB,None,Grants
"Department for Levelling Up, Housing and Communities",Homes England,REV GRNTS TO LOCAL AUTHORITIES,Investment,WEST NORTHAMPTONSHIRE COUNCIL,22/12/2023, £700.00 ,PUB,None,Grants
"Department for Levelling Up, Housing and Communities",Homes England,REV GRNTS TO LOCAL AUTHORITIES,Investment,WEST NORTHAMPTONSHIRE COUNCIL,22/12/2023, £700.00 ,PUB,None,Grants
"Department for Levelling Up, Housing and Communities",Homes England,REV GRNTS TO LOCAL AUTHORITIES,Investment,WEST NORTHAMPTONSHIRE COUNCIL,22/12/2023, £700.00 ,PUB,None,Grants
"Department for Levelling Up, Housing and Communities",Homes England,REV GRNTS TO LOCAL AUTHORITIES,Investment,WEST NORTHAMPTONSHIRE COUNCIL,22/12/2023, £700.00 ,PUB,None,Grants
"Department for Levelling Up, Housing and Communities",Homes England,REV GRNTS TO LOCAL AUTHORITIES,Investment,WEST NORTHAMPTONSHIRE COUNCIL,22/12/2023, £700.00 ,PUB,None,Grants
"Department for Levelling Up, Housing and Communities",Homes England,REV GRNTS TO LOCAL AUTHORITIES,Investment,WEST NORTHAMPTONSHIRE COUNCIL,22/12/2023, £700.00 ,PUB,None,Grants
"Department for Levelling Up, Housing and Communities",Homes England,REV GRNTS TO LOCAL AUTHORITIES,Investment,WEST NORTHAMPTONSHIRE COUNCIL,22/12/2023, £700.00 ,PUB,None,Grants
"Department for Levelling Up, Housing and Communities",Homes England,REV GRNTS TO LOCAL AUTHORITIES,Investment,WEST NORTHAMPTONSHIRE COUNCIL,22/12/2023, £700.00 ,PUB,None,Grants
"Department for Levelling Up, Housing and Communities",Homes England,REV GRNTS TO LOCAL AUTHORITIES,Investment,WEST NORTHAMPTONSHIRE COUNCIL,22/12/2023, £700.00 ,PUB,None,Grants
"Department for Levelling Up, Housing and Communities",Homes England,REV GRNTS TO LOCAL AUTHORITIES,Investment,WEST NORTHAMPTONSHIRE COUNCIL,22/12/2023, £700.00 ,PUB,None,Grants
"Department for Levelling Up, Housing and Communities",Homes England,REV GRNTS TO LOCAL AUTHORITIES,Investment,WEST NORTHAMPTONSHIRE COUNCIL,22/12/2023, £700.00 ,PUB,None,Grants
"Department for Levelling Up, Housing and Communities",Homes England,REV GRNTS TO LOCAL AUTHORITIES,Investment,WEST NORTHAMPTONSHIRE COUNCIL,22/12/2023, £700.00 ,PUB,None,Grants
"Department for Levelling Up, Housing and Communities",Homes England,REV GRNTS TO LOCAL AUTHORITIES,Investment,THE COUNCIL OF THE  BOROUGH OF HARROGATE,22/12/2023," £2,635.00 ",PUB,None,Grants
"Department for Levelling Up, Housing and Communities",Homes England,REV GRNTS TO LOCAL AUTHORITIES,Investment,THE COUNCIL OF THE  BOROUGH OF HARROGATE,22/12/2023," £2,635.00 ",PUB,None,Grants
"Department for Levelling Up, Housing and Communities",Homes England,REV GRNTS TO LOCAL AUTHORITIES,Investment,THE COUNCIL OF THE  BOROUGH OF HARROGATE,22/12/2023," £2,635.00 ",PUB,None,Grants
"Department for Levelling Up, Housing and Communities",Homes England,REV GRNTS TO LOCAL AUTHORITIES,Investment,RYEDALE DISTRICT COUNCIL,22/12/2023," £3,912.00 ",PUB,None,Grants
"Department for Levelling Up, Housing and Communities",Homes England,REV GRNTS TO LOCAL AUTHORITIES,Investment,NEWARK AND SHERWOOD DISTRICT COUNCIL,22/12/2023," £7,379.00 ",PUB,None,Grants
"Department for Levelling Up, Housing and Communities",Homes England,CAP GRNTS TO LOCAL AUTHORITIES,Investment,OXFORD CITY COUNCIL,11/12/2023," £45,000.00 ",PUB,None,Grants
"Department for Levelling Up, Housing and Communities",Homes England,CAP GRNTS TO LOCAL AUTHORITIES,Investment,OXFORD CITY COUNCIL,22/12/2023," £157,500.00 ",PUB,None,Grants
"Department for Levelling Up, Housing and Communities",Homes England,CAP GRNTS TO LOCAL AUTHORITIES,Investment,OXFORD CITY COUNCIL,22/12/2023," £87,500.00 ",PUB,None,Grants
"Department for Levelling Up, Housing and Communities",Homes England,CAP GRNTS TO LOCAL AUTHORITIES,Investment,CORNWALL COUNCIL,18/12/2023," £1,687,135.38 ",PUB,None,Grants
"Department for Levelling Up, Housing and Communities",Homes England,CAP GRNTS TO LOCAL AUTHORITIES,Investment,ESSEX COUNTY COUNCIL,04/12/2023," £522,849.46 ",PUB,None,Grants
"Department for Levelling Up, Housing and Communities",Homes England,CAP GRNTS TO LOCAL AUTHORITIES,Investment,ESSEX COUNTY COUNCIL,04/12/2023," £645,772.40 ",PUB,None,Grants
"Department for Levelling Up, Housing and Communities",Homes England,CAP GRNTS TO LOCAL AUTHORITIES,Investment,ESSEX COUNTY COUNCIL,04/12/2023," £2,147,077.47 ",PUB,None,Grants
"Department for Levelling Up, Housing and Communities",Homes England,CAP GRNTS TO LOCAL AUTHORITIES,Investment,ESSEX COUNTY COUNCIL,04/12/2023," £3,301,221.50 ",PUB,None,Grants
"Department for Levelling Up, Housing and Communities",Homes England,CAP GRNTS TO LOCAL AUTHORITIES,Investment,ESSEX COUNTY COUNCIL,21/12/2023," £22,422,507.74 ",PUB,None,Grants
"Department for Levelling Up, Housing and Communities",Homes England,REV GRNTS TO LOCAL AUTHORITIES,Investment,CHELMSFORD CITY COUNCIL,15/12/2023," £75,180.56 ",PUB,None,Grants
"Department for Levelling Up, Housing and Communities",Homes England,CAP GRNTS TO LOCAL AUTHORITIES,Investment,CAMBRIDGE CITY COUNCIL,12/12/2023," £366,508.63 ",PUB,None,Grants
"Department for Levelling Up, Housing and Communities",Homes England,REV GRNTS TO LOCAL AUTHORITIES,Investment,RUNNYMEDE BOROUGH COUNCIL,22/12/2023," £1,667.00 ",PUB,None,Grants
"Department for Levelling Up, Housing and Communities",Homes England,REV GRNTS TO LOCAL AUTHORITIES,Investment,RUNNYMEDE BOROUGH COUNCIL,22/12/2023," £1,667.00 ",PUB,None,Grants
"Department for Levelling Up, Housing and Communities",Homes England,REV GRNTS TO LOCAL AUTHORITIES,Investment,RUNNYMEDE BOROUGH COUNCIL,22/12/2023," £1,667.00 ",PUB,None,Grants
"Department for Levelling Up, Housing and Communities",Homes England,CAP GRNTS TO LOCAL AUTHORITIES,Investment,Tandridge District Council,20/12/2023," £112,500.00 ",PUB,None,Grants
"Department for Levelling Up, Housing and Communities",Homes England,CAP GRNTS TO LOCAL AUTHORITIES,Investment,Tandridge District Council,22/12/2023," £37,500.00 ",PUB,None,Grants
"Department for Levelling Up, Housing and Communities",Homes England,REV GRNTS TO LOCAL AUTHORITIES,Investment,WAVERLEY BOROUGH COUNCIL,22/12/2023," £1,513.00 ",PUB,None,Grants
"Department for Levelling Up, Housing and Communities",Homes England,REV GRNTS TO LOCAL AUTHORITIES,Investment,WOKING BOROUGH COUNCIL,22/12/2023," £1,281.00 ",PUB,None,Grants
"Department for Levelling Up, Housing and Communities",Homes England,REV GRNTS TO LOCAL AUTHORITIES,Investment,WOKING BOROUGH COUNCIL,22/12/2023," £1,281.00 ",PUB,None,Grants
"Department for Levelling Up, Housing and Communities",Homes England,REV GRNTS TO LOCAL AUTHORITIES,Investment,WOKING BOROUGH COUNCIL,22/12/2023," £1,281.00 ",PUB,None,Grants
"Department for Levelling Up, Housing and Communities",Homes England,REV GRNTS TO LOCAL AUTHORITIES,Investment,WOKING BOROUGH COUNCIL,22/12/2023," £1,281.00 ",PUB,None,Grants
"Department for Levelling Up, Housing and Communities",Homes England,REV GRNTS TO LOCAL AUTHORITIES,Investment,WOKING BOROUGH COUNCIL,22/12/2023," £1,281.00 ",PUB,None,Grants
"Department for Levelling Up, Housing and Communities",Homes England,REV GRNTS TO LOCAL AUTHORITIES,Investment,WOKING BOROUGH COUNCIL,22/12/2023," £1,281.00 ",PUB,None,Grants
"Department for Levelling Up, Housing and Communities",Homes England,REV GRNTS TO LOCAL AUTHORITIES,Investment,WOKING BOROUGH COUNCIL,22/12/2023," £1,281.00 ",PUB,None,Grants
"Department for Levelling Up, Housing and Communities",Homes England,REV GRNTS TO LOCAL AUTHORITIES,Investment,WOKING BOROUGH COUNCIL,22/12/2023," £9,406.00 ",PUB,None,Grants
"Department for Levelling Up, Housing and Communities",Homes England,REV GRNTS TO LOCAL AUTHORITIES,Investment,WOKING BOROUGH COUNCIL,22/12/2023," £1,281.00 ",PUB,None,Grants
"Department for Levelling Up, Housing and Communities",Homes England,CAP GRNTS TO LOCAL AUTHORITIES,Investment,RUGBY BOROUGH COUNCIL,22/12/2023," £5,100,000.00 ",PUB,None,Grants
"Department for Levelling Up, Housing and Communities",Homes England,CAPITAL GRANTS TO RPs,Investment,BOLTON AT HOME LIMITED,07/12/2023," £9,000.00 ",LAR,None,Grants
"Department for Levelling Up, Housing and Communities",Homes England,CAPITAL GRANTS TO RPs,Investment,BOLTON AT HOME LIMITED,07/12/2023," £9,000.00 ",LAR,None,Grants
"Department for Levelling Up, Housing and Communities",Homes England,CAPITAL GRANTS TO RPs,Investment,FIRST CHOICE HOMES OLDHAM LIMITED,01/12/2023," £9,000.00 ",LAR,None,Grants
"Department for Levelling Up, Housing and Communities",Homes England,CAPITAL GRANTS TO RPs,Investment,FIRST CHOICE HOMES OLDHAM LIMITED,01/12/2023," £9,000.00 ",LAR,None,Grants
"Department for Levelling Up, Housing and Communities",Homes England,CAPITAL GRANTS TO RPs,Investment,HEART OF MEDWAY HOUSING ASSOCIATION LTD,07/12/2023," £315,000.00 ",LAR,None,Grants
"Department for Levelling Up, Housing and Communities",Homes England,CAPITAL GRANTS TO RPs,Investment,HEART OF MEDWAY HOUSING ASSOCIATION LTD,07/12/2023," £202,500.00 ",LAR,None,Grants
"Department for Levelling Up, Housing and Communities",Homes England,CAPITAL GRANTS TO RPs,Investment,KARBON HOMES LIMITED - ISOS HOUSING LIMITED,21/12/2023," £43,750.00 ",LAR,None,Grants
"Department for Levelling Up, Housing and Communities",Homes England,CAPITAL GRANTS TO RPs,Investment,REGENDA LIMITED,07/12/2023," £9,000.00 ",LAR,None,Grants
"Department for Levelling Up, Housing and Communities",Homes England,REV GRNTS TO LOCAL AUTHORITIES,Investment,ACTION HOUSING AND SUPPORT,22/12/2023," £1,579.00 ",MED,None,Grants
"Department for Levelling Up, Housing and Communities",Homes England,REV GRNTS TO LOCAL AUTHORITIES,Investment,ACTION HOUSING AND SUPPORT,22/12/2023," £1,579.00 ",MED,None,Grants
"Department for Levelling Up, Housing and Communities",Homes England,REV GRNTS TO LOCAL AUTHORITIES,Investment,ACTION HOUSING AND SUPPORT,22/12/2023," £1,361.00 ",MED,None,Grants
"Department for Levelling Up, Housing and Communities",Homes England,REV GRNTS TO LOCAL AUTHORITIES,Investment,ACTION HOUSING AND SUPPORT,22/12/2023, £817.00 ,MED,None,Grants
"Department for Levelling Up, Housing and Communities",Homes England,REV GRNTS TO LOCAL AUTHORITIES,Investment,ACTION HOUSING AND SUPPORT,22/12/2023," £1,579.00 ",MED,None,Grants
"Department for Levelling Up, Housing and Communities",Homes England,REV GRNTS TO LOCAL AUTHORITIES,Investment,ACTION HOUSING AND SUPPORT,22/12/2023," £1,072.00 ",MED,None,Grants
"Department for Levelling Up, Housing and Communities",Homes England,REV GRNTS TO LOCAL AUTHORITIES,Investment,ACTION HOUSING AND SUPPORT,22/12/2023," £1,579.00 ",MED,None,Grants
"Department for Levelling Up, Housing and Communities",Homes England,REV GRNTS TO LOCAL AUTHORITIES,Investment,ACTION HOUSING AND SUPPORT,22/12/2023," £1,362.00 ",MED,None,Grants
"Department for Levelling Up, Housing and Communities",Homes England,REV GRNTS TO LOCAL AUTHORITIES,Investment,ACTION HOUSING AND SUPPORT,22/12/2023, £817.00 ,MED,None,Grants
"Department for Levelling Up, Housing and Communities",Homes England,REV GRNTS TO LOCAL AUTHORITIES,Investment,ACTION HOUSING AND SUPPORT,22/12/2023, £817.00 ,MED,None,Grants
"Department for Levelling Up, Housing and Communities",Homes England,REV GRNTS TO LOCAL AUTHORITIES,Investment,ACTION HOUSING AND SUPPORT,22/12/2023, £817.00 ,MED,None,Grants
"Department for Levelling Up, Housing and Communities",Homes England,REV GRNTS TO LOCAL AUTHORITIES,Investment,ACTION HOUSING AND SUPPORT,22/12/2023," £1,579.00 ",MED,None,Grants
"Department for Levelling Up, Housing and Communities",Homes England,REV GRNTS TO LOCAL AUTHORITIES,Investment,ACTION HOUSING AND SUPPORT,22/12/2023, £817.00 ,MED,None,Grants
"Department for Levelling Up, Housing and Communities",Homes England,REV GRNTS TO LOCAL AUTHORITIES,Investment,ACTION HOUSING AND SUPPORT,22/12/2023, £817.00 ,MED,None,Grants
"Department for Levelling Up, Housing and Communities",Homes England,REV GRNTS TO LOCAL AUTHORITIES,Investment,ACTION HOUSING AND SUPPORT,22/12/2023, £817.00 ,MED,None,Grants
"Department for Levelling Up, Housing and Communities",Homes England,CAPITAL GRANTS TO RPs,Investment,Foundation,22/12/2023," £40,500.00 ",SMA,None,Grants
"Department for Levelling Up, Housing and Communities",Homes England,REV GRNTS TO LOCAL AUTHORITIES,Investment,HUMANKIND CHARITY,22/12/2023," £1,947.00 ",LAR,None,Grants
"Department for Levelling Up, Housing and Communities",Homes England,REV GRNTS TO LOCAL AUTHORITIES,Investment,HUMANKIND CHARITY,22/12/2023," £3,895.00 ",LAR,None,Grants
"Department for Levelling Up, Housing and Communities",Homes England,REV GRNTS TO LOCAL AUTHORITIES,Investment,HUMANKIND CHARITY,22/12/2023," £1,947.00 ",LAR,None,Grants
"Department for Levelling Up, Housing and Communities",Homes England,REV GRNTS TO LOCAL AUTHORITIES,Investment,HUMANKIND CHARITY,22/12/2023," £1,947.00 ",LAR,None,Grants
"Department for Levelling Up, Housing and Communities",Homes England,REV GRNTS TO LOCAL AUTHORITIES,Investment,KEYSTAGE C.I.C.,22/12/2023," £1,352.00 ",MIC,None,Grants
"Department for Levelling Up, Housing and Communities",Homes England,REV GRNTS TO LOCAL AUTHORITIES,Investment,KEYSTAGE C.I.C.,22/12/2023," £1,577.00 ",MIC,None,Grants
"Department for Levelling Up, Housing and Communities",Homes England,REV GRNTS TO LOCAL AUTHORITIES,Investment,KEYSTAGE C.I.C.,22/12/2023," £1,577.00 ",MIC,None,Grants
"Department for Levelling Up, Housing and Communities",Homes England,REV GRNTS TO LOCAL AUTHORITIES,Investment,KEYSTAGE C.I.C.,22/12/2023," £8,530.00 ",MIC,None,Grants
"Department for Levelling Up, Housing and Communities",Homes England,REV GRNTS TO LOCAL AUTHORITIES,Investment,KEYSTAGE C.I.C.,22/12/2023," £1,352.00 ",MIC,None,Grants
"Department for Levelling Up, Housing and Communities",Homes England,REV GRNTS TO LOCAL AUTHORITIES,Investment,KEYSTAGE C.I.C.,22/12/2023," £1,578.00 ",MIC,None,Grants
"Department for Levelling Up, Housing and Communities",Homes England,REV GRNTS TO LOCAL AUTHORITIES,Investment,KEYSTAGE C.I.C.,22/12/2023," £1,352.00 ",MIC,None,Grants
"Department for Levelling Up, Housing and Communities",Homes England,REV GRNTS TO LOCAL AUTHORITIES,Investment,KEYSTAGE C.I.C.,22/12/2023," £1,577.00 ",MIC,None,Grants
"Department for Levelling Up, Housing and Communities",Homes England,REV GRNTS TO LOCAL AUTHORITIES,Investment,KEYSTAGE C.I.C.,22/12/2023," £1,578.00 ",MIC,None,Grants
"Department for Levelling Up, Housing and Communities",Homes England,REV GRNTS TO LOCAL AUTHORITIES,Investment,KEYSTAGE C.I.C.,22/12/2023," £1,577.00 ",MIC,None,Grants
"Department for Levelling Up, Housing and Communities",Homes England,CAPITAL GRANTS TO RPs,Investment,THE GUINNESS PARTNERSHIP LIMITED,22/12/2023," £9,000.00 ",LAR,None,Grants
"Department for Levelling Up, Housing and Communities",Homes England,CAPITAL GRANTS TO RPs,Investment,THE GUINNESS PARTNERSHIP LIMITED,22/12/2023," £9,000.00 ",LAR,None,Grants
"Department for Levelling Up, Housing and Communities",Homes England,REV GRNTS TO LOCAL AUTHORITIES,Investment,ST RICHARD OF CHICHESTER CHRSTIAN CARE,22/12/2023," £2,507.00 ",MED,None,Grants
"Department for Levelling Up, Housing and Communities",Homes England,REV GRNTS TO LOCAL AUTHORITIES,Investment,ST RICHARD OF CHICHESTER CHRSTIAN CARE,22/12/2023," £5,018.00 ",MED,None,Grants
"Department for Levelling Up, Housing and Communities",Homes England,REVENUE GRANTS TO RPs,Investment,HOMELESS ACTION RESOURCE PROJECT LIMITED,22/12/2023," £104,012.00 ",MED,None,Grants
"Department for Levelling Up, Housing and Communities",Homes England,REVENUE GRANTS TO RPs,Investment,HOMELESS ACTION RESOURCE PROJECT LIMITED,21/12/2023," £4,522.00 ",MED,None,Grants
"Department for Levelling Up, Housing and Communities",Homes England,CAPITAL GRANTS TO RPs,Investment,HOMELESS ACTION RESOURCE PROJECT LIMITED,22/12/2023," £12,191.00 ",MED,None,Grants
"Department for Levelling Up, Housing and Communities",Homes England,CAPITAL GRANTS TO RPs,Investment,EMH HOUSING & REGENERATION LTD,18/12/2023," £9,000.00 ",MED,None,Grants
"Department for Levelling Up, Housing and Communities",Homes England,REV GRNTS TO LOCAL AUTHORITIES,Investment,EMH HOUSING & REGENERATION LTD,22/12/2023," £2,124.00 ",MED,None,Grants
"Department for Levelling Up, Housing and Communities",Homes England,REV GRNTS TO LOCAL AUTHORITIES,Investment,EMH HOUSING & REGENERATION LTD,22/12/2023," £37,284.00 ",MED,None,Grants
"Department for Levelling Up, Housing and Communities",Homes England,REV GRNTS TO LOCAL AUTHORITIES,Investment,EMH HOUSING & REGENERATION LTD,22/12/2023," £2,124.00 ",MED,None,Grants
"Department for Levelling Up, Housing and Communities",Homes England,REV GRNTS TO LOCAL AUTHORITIES,Investment,EMH HOUSING & REGENERATION LTD,22/12/2023," £2,124.00 ",MED,None,Grants
"Department for Levelling Up, Housing and Communities",Homes England,REV GRNTS TO LOCAL AUTHORITIES,Investment,EMH HOUSING & REGENERATION LTD,22/12/2023," £2,124.00 ",MED,None,Grants
"Department for Levelling Up, Housing and Communities",Homes England,REV GRNTS TO LOCAL AUTHORITIES,Investment,EMH HOUSING & REGENERATION LTD,22/12/2023," £2,124.00 ",MED,None,Grants
"Department for Levelling Up, Housing and Communities",Homes England,REV GRNTS TO LOCAL AUTHORITIES,Investment,EMH HOUSING & REGENERATION LTD,22/12/2023," £2,124.00 ",MED,None,Grants
"Department for Levelling Up, Housing and Communities",Homes England,REV GRNTS TO LOCAL AUTHORITIES,Investment,DEPAUL HOUSING SERVICES,22/12/2023," £1,203.00 ",SMA,None,Grants
"Department for Levelling Up, Housing and Communities",Homes England,REV GRNTS TO LOCAL AUTHORITIES,Investment,DEPAUL HOUSING SERVICES,22/12/2023," £1,203.00 ",SMA,None,Grants
"Department for Levelling Up, Housing and Communities",Homes England,REV GRNTS TO LOCAL AUTHORITIES,Investment,DEPAUL HOUSING SERVICES,22/12/2023," £1,203.00 ",SMA,None,Grants
"Department for Levelling Up, Housing and Communities",Homes England,CAPITAL GRANTS TO RPs,Investment,DEPAUL HOUSING SERVICES,22/12/2023," £18,677.00 ",SMA,None,Grants
"Department for Levelling Up, Housing and Communities",Homes England,REV GRNTS TO LOCAL AUTHORITIES,Investment,DEPAUL HOUSING SERVICES,22/12/2023," £1,203.00 ",SMA,None,Grants
"Department for Levelling Up, Housing and Communities",Homes England,CAPITAL GRANTS TO RPs,Investment,DEPAUL HOUSING SERVICES,22/12/2023," £18,677.00 ",SMA,None,Grants
"Department for Levelling Up, Housing and Communities",Homes England,REV GRNTS TO LOCAL AUTHORITIES,Investment,HAVEN FIRST,22/12/2023," £1,668.00 ",MED,None,Grants
"Department for Levelling Up, Housing and Communities",Homes England,REV GRNTS TO LOCAL AUTHORITIES,Investment,HAVEN FIRST,22/12/2023," £1,668.00 ",MED,None,Grants
"Department for Levelling Up, Housing and Communities",Homes England,CAPITAL GRANTS TO RPs,Investment,SOVEREIGN HOUSING ASSOCIATION LTD,01/12/2023," £2,500,000.00 ",LAR,None,Grants
"Department for Levelling Up, Housing and Communities",Homes England,CAPITAL GRANTS TO RPs,Investment,SOVEREIGN HOUSING ASSOCIATION LTD,06/12/2023," £79,000.00 ",LAR,None,Grants
"Department for Levelling Up, Housing and Communities",Homes England,CAPITAL GRANTS TO RPs,Investment,SOVEREIGN HOUSING ASSOCIATION LTD,18/12/2023," £78,000.00 ",LAR,None,Grants
"Department for Levelling Up, Housing and Communities",Homes England,CAPITAL GRANTS TO RPs,Investment,SOVEREIGN HOUSING ASSOCIATION LTD,18/12/2023," £59,000.00 ",LAR,None,Grants
"Department for Levelling Up, Housing and Communities",Homes England,CAPITAL GRANTS TO RPs,Investment,SOVEREIGN HOUSING ASSOCIATION LTD,22/12/2023," £62,000.00 ",LAR,None,Grants
"Department for Levelling Up, Housing and Communities",Homes England,CAPITAL GRANTS TO RPs,Investment,KARBON HOMES,07/12/2023," £49,000.00 ",LAR,None,Grants
"Department for Levelling Up, Housing and Communities",Homes England,CAPITAL GRANTS TO RPs,Investment,KARBON HOMES,07/12/2023," £26,950.00 ",LAR,None,Grants
"Department for Levelling Up, Housing and Communities",Homes England,CAPITAL GRANTS TO RPs,Investment,CASTLES & COASTS HOUSING ASSOCIATION,01/12/2023," £159,000.00 ",MED,None,Grants
"Department for Levelling Up, Housing and Communities",Homes England,CAPITAL GRANTS TO RPs,Investment,CASTLES & COASTS HOUSING ASSOCIATION,01/12/2023," £180,000.00 ",MED,None,Grants
"Department for Levelling Up, Housing and Communities",Homes England,CAPITAL GRANTS TO RPs,Investment,CASTLES & COASTS HOUSING ASSOCIATION,22/12/2023," £135,000.00 ",MED,None,Grants
"Department for Levelling Up, Housing and Communities",Homes England,CAPITAL GRANTS TO RPs,Investment,BERNICIA GROUP,22/12/2023," £124,000.00 ",LAR,None,Grants
"Department for Levelling Up, Housing and Communities",Homes England,CAPITAL GRANTS TO RPs,Investment,BERNICIA GROUP,22/12/2023," £250,000.00 ",LAR,None,Grants
"Department for Levelling Up, Housing and Communities",Homes England,CAPITAL GRANTS TO RPs,Investment,BERNICIA GROUP,22/12/2023," £248,000.00 ",LAR,None,Grants
"Department for Levelling Up, Housing and Communities",Homes England,CAPITAL GRANTS TO RPs,Investment,BERNICIA GROUP,22/12/2023," £200,000.00 ",LAR,None,Grants
"Department for Levelling Up, Housing and Communities",Homes England,CAPITAL GRANTS TO RPs,Investment,BERNICIA GROUP,22/12/2023," £248,000.00 ",LAR,None,Grants
"Department for Levelling Up, Housing and Communities",Homes England,CAPITAL GRANTS TO RPs,Investment,BERNICIA GROUP,22/12/2023," £372,000.00 ",LAR,None,Grants
"Department for Levelling Up, Housing and Communities",Homes England,CAPITAL GRANTS TO RPs,Investment,LIVEWEST HOMES LIMITED,11/12/2023," £2,500,000.00 ",LAR,None,Grants
"Department for Levelling Up, Housing and Communities",Homes England,CAPITAL GRANTS TO RPs,Investment,LIVEWEST HOMES LIMITED,22/12/2023," £78,750.00 ",LAR,None,Grants
"Department for Levelling Up, Housing and Communities",Homes England,CAPITAL GRANTS TO RPs,Investment,LIVEWEST HOMES LIMITED,22/12/2023," £24,500.00 ",LAR,None,Grants
"Department for Levelling Up, Housing and Communities",Homes England,REV GRNTS TO LOCAL AUTHORITIES,Investment,P3 HOUSING LTD,22/12/2023," £10,250.00 ",LAR,None,Grants
"Department for Levelling Up, Housing and Communities",Homes England,REV GRNTS TO LOCAL AUTHORITIES,Investment,P3 HOUSING LTD,22/12/2023," £1,708.00 ",LAR,None,Grants
"Department for Levelling Up, Housing and Communities",Homes England,REV GRNTS TO LOCAL AUTHORITIES,Investment,P3 HOUSING LTD,22/12/2023," £1,708.00 ",LAR,None,Grants
"Department for Levelling Up, Housing and Communities",Homes England,REV GRNTS TO LOCAL AUTHORITIES,Investment,P3 HOUSING LTD,22/12/2023," £1,709.00 ",LAR,None,Grants
"Department for Levelling Up, Housing and Communities",Homes England,REV GRNTS TO LOCAL AUTHORITIES,Investment,P3 HOUSING LTD,22/12/2023," £1,708.00 ",LAR,None,Grants
"Department for Levelling Up, Housing and Communities",Homes England,REV GRNTS TO LOCAL AUTHORITIES,Investment,P3 HOUSING LTD,22/12/2023," £1,708.00 ",LAR,None,Grants
"Department for Levelling Up, Housing and Communities",Homes England,REV GRNTS TO LOCAL AUTHORITIES,Investment,P3 HOUSING LTD,22/12/2023," £44,875.00 ",LAR,None,Grants
"Department for Levelling Up, Housing and Communities",Homes England,REV GRNTS TO LOCAL AUTHORITIES,Investment,P3 HOUSING LTD,22/12/2023, £736.00 ,LAR,None,Grants
"Department for Levelling Up, Housing and Communities",Homes England,CAPITAL GRANTS TO RPs,Investment,LEGAL & GENERAL AFFORDABLE HOMES LTD,22/12/2023," £3,634,962.00 ",LAR,None,Grants
"Department for Levelling Up, Housing and Communities",Homes England,CAPITAL GRANTS TO RPs,Investment,TORUS62 LIMITED,14/12/2023," £16,258,657.00 ",LAR,None,Grants
"Department for Levelling Up, Housing and Communities",Homes England,REV GRNTS TO LOCAL AUTHORITIES,Investment,TORUS62 LIMITED,22/12/2023," £1,182.00 ",LAR,None,Grants
"Department for Levelling Up, Housing and Communities",Homes England,REV GRNTS TO LOCAL AUTHORITIES,Investment,TORUS62 LIMITED,22/12/2023," £1,182.00 ",LAR,None,Grants
"Department for Levelling Up, Housing and Communities",Homes England,REV GRNTS TO LOCAL AUTHORITIES,Investment,TORUS62 LIMITED,22/12/2023," £17,910.00 ",LAR,None,Grants
"Department for Levelling Up, Housing and Communities",Homes England,REV GRNTS TO LOCAL AUTHORITIES,Investment,TORUS62 LIMITED,22/12/2023," £1,182.00 ",LAR,None,Grants
"Department for Levelling Up, Housing and Communities",Homes England,REV GRNTS TO LOCAL AUTHORITIES,Investment,TORUS62 LIMITED,22/12/2023," £1,182.00 ",LAR,None,Grants
"Department for Levelling Up, Housing and Communities",Homes England,REV GRNTS TO LOCAL AUTHORITIES,Investment,TORUS62 LIMITED,22/12/2023," £1,182.00 ",LAR,None,Grants
"Department for Levelling Up, Housing and Communities",Homes England,REV GRNTS TO LOCAL AUTHORITIES,Investment,TORUS62 LIMITED,22/12/2023," £1,182.00 ",LAR,None,Grants
"Department for Levelling Up, Housing and Communities",Homes England,REV GRNTS TO LOCAL AUTHORITIES,Investment,TORUS62 LIMITED,22/12/2023," £1,182.00 ",LAR,None,Grants
"Department for Levelling Up, Housing and Communities",Homes England,REV GRNTS TO LOCAL AUTHORITIES,Investment,TORUS62 LIMITED,22/12/2023," £1,182.00 ",LAR,None,Grants
"Department for Levelling Up, Housing and Communities",Homes England,REV GRNTS TO LOCAL AUTHORITIES,Investment,TORUS62 LIMITED,22/12/2023," £20,292.00 ",LAR,None,Grants
"Department for Levelling Up, Housing and Communities",Homes England,REV GRNTS TO LOCAL AUTHORITIES,Investment,TORUS62 LIMITED,22/12/2023," £1,182.00 ",LAR,None,Grants
"Department for Levelling Up, Housing and Communities",Homes England,REV GRNTS TO LOCAL AUTHORITIES,Investment,TORUS62 LIMITED,22/12/2023," £1,182.00 ",LAR,None,Grants
"Department for Levelling Up, Housing and Communities",Homes England,CAPITAL GRANTS TO RPs,Investment,TORUS62 LIMITED,22/12/2023," £9,000.00 ",LAR,None,Grants
"Department for Levelling Up, Housing and Communities",Homes England,CAPITAL GRANTS TO RPs,Investment,TORUS62 LIMITED,22/12/2023," £9,000.00 ",LAR,None,Grants
"Department for Levelling Up, Housing and Communities",Homes England,REV GRNTS TO LOCAL AUTHORITIES,Investment,BCP COUNCIL,05/12/2023," £3,682.00 ",PUB,None,Grants
"Department for Levelling Up, Housing and Communities",Homes England,REV GRNTS TO LOCAL AUTHORITIES,Investment,BCP COUNCIL,15/12/2023," £1,800.00 ",PUB,None,Grants
"Department for Levelling Up, Housing and Communities",Homes England,REV GRNTS TO LOCAL AUTHORITIES,Investment,BCP COUNCIL,15/12/2023," £1,384.00 ",PUB,None,Grants
"Department for Levelling Up, Housing and Communities",Homes England,REV GRNTS TO LOCAL AUTHORITIES,Investment,BCP COUNCIL,18/12/2023," £1,412.00 ",PUB,None,Grants
"Department for Levelling Up, Housing and Communities",Homes England,REV GRNTS TO LOCAL AUTHORITIES,Investment,BCP COUNCIL,19/12/2023," £1,411.00 ",PUB,None,Grants
"Department for Levelling Up, Housing and Communities",Homes England,REV GRNTS TO LOCAL AUTHORITIES,Investment,BCP COUNCIL,22/12/2023," £1,411.00 ",PUB,None,Grants
"Department for Levelling Up, Housing and Communities",Homes England,REV GRNTS TO LOCAL AUTHORITIES,Investment,BCP COUNCIL,22/12/2023," £1,411.00 ",PUB,None,Grants
"Department for Levelling Up, Housing and Communities",Homes England,REV GRNTS TO LOCAL AUTHORITIES,Investment,BCP COUNCIL,22/12/2023," £1,155.00 ",PUB,None,Grants
"Department for Levelling Up, Housing and Communities",Homes England,REV GRNTS TO LOCAL AUTHORITIES,Investment,BCP COUNCIL,22/12/2023," £1,411.00 ",PUB,None,Grants
"Department for Levelling Up, Housing and Communities",Homes England,REV GRNTS TO LOCAL AUTHORITIES,Investment,BCP COUNCIL,22/12/2023," £1,155.00 ",PUB,None,Grants
"Department for Levelling Up, Housing and Communities",Homes England,REV GRNTS TO LOCAL AUTHORITIES,Investment,BCP COUNCIL,22/12/2023," £1,155.00 ",PUB,None,Grants
"Department for Levelling Up, Housing and Communities",Homes England,REV GRNTS TO LOCAL AUTHORITIES,Investment,BCP COUNCIL,22/12/2023," £1,411.00 ",PUB,None,Grants
"Department for Levelling Up, Housing and Communities",Homes England,REV GRNTS TO LOCAL AUTHORITIES,Investment,BCP COUNCIL,22/12/2023," £1,411.00 ",PUB,None,Grants
"Department for Levelling Up, Housing and Communities",Homes England,REV GRNTS TO LOCAL AUTHORITIES,Investment,BCP COUNCIL,22/12/2023," £1,411.00 ",PUB,None,Grants
"Department for Levelling Up, Housing and Communities",Homes England,REV GRNTS TO LOCAL AUTHORITIES,Investment,BCP COUNCIL,22/12/2023," £1,155.00 ",PUB,None,Grants
"Department for Levelling Up, Housing and Communities",Homes England,REV GRNTS TO LOCAL AUTHORITIES,Investment,BCP COUNCIL,22/12/2023," £4,234.00 ",PUB,None,Grants
"Department for Levelling Up, Housing and Communities",Homes England,REV GRNTS TO LOCAL AUTHORITIES,Investment,BCP COUNCIL,22/12/2023," £1,411.00 ",PUB,None,Grants
"Department for Levelling Up, Housing and Communities",Homes England,REV GRNTS TO LOCAL AUTHORITIES,Investment,BCP COUNCIL,22/12/2023," £1,411.00 ",PUB,None,Grants
"Department for Levelling Up, Housing and Communities",Homes England,REV GRNTS TO LOCAL AUTHORITIES,Investment,BCP COUNCIL,22/12/2023," £1,411.00 ",PUB,None,Grants
"Department for Levelling Up, Housing and Communities",Homes England,REV GRNTS TO LOCAL AUTHORITIES,Investment,BCP COUNCIL,22/12/2023," £1,411.00 ",PUB,None,Grants
"Department for Levelling Up, Housing and Communities",Homes England,REV GRNTS TO LOCAL AUTHORITIES,Investment,BCP COUNCIL,22/12/2023," £1,155.00 ",PUB,None,Grants
"Department for Levelling Up, Housing and Communities",Homes England,REV GRNTS TO LOCAL AUTHORITIES,Investment,BCP COUNCIL,22/12/2023," £1,411.00 ",PUB,None,Grants
"Department for Levelling Up, Housing and Communities",Homes England,REV GRNTS TO LOCAL AUTHORITIES,Investment,BCP COUNCIL,22/12/2023," £1,155.00 ",PUB,None,Grants
"Department for Levelling Up, Housing and Communities",Homes England,REV GRNTS TO LOCAL AUTHORITIES,Investment,BCP COUNCIL,22/12/2023," £1,411.00 ",PUB,None,Grants
"Department for Levelling Up, Housing and Communities",Homes England,REV GRNTS TO LOCAL AUTHORITIES,Investment,BCP COUNCIL,22/12/2023," £1,411.00 ",PUB,None,Grants
"Department for Levelling Up, Housing and Communities",Homes England,REV GRNTS TO LOCAL AUTHORITIES,Investment,BCP COUNCIL,22/12/2023," £1,411.00 ",PUB,None,Grants
"Department for Levelling Up, Housing and Communities",Homes England,REV GRNTS TO LOCAL AUTHORITIES,Investment,BCP COUNCIL,22/12/2023," £1,411.00 ",PUB,None,Grants
"Department for Levelling Up, Housing and Communities",Homes England,REV GRNTS TO LOCAL AUTHORITIES,Investment,BCP COUNCIL,22/12/2023," £1,411.00 ",PUB,None,Grants
"Department for Levelling Up, Housing and Communities",Homes England,REV GRNTS TO LOCAL AUTHORITIES,Investment,BCP COUNCIL,22/12/2023," £1,411.00 ",PUB,None,Grants
"Department for Levelling Up, Housing and Communities",Homes England,REV GRNTS TO LOCAL AUTHORITIES,Investment,BCP COUNCIL,22/12/2023," £1,411.00 ",PUB,None,Grants
"Department for Levelling Up, Housing and Communities",Homes England,REV GRNTS TO LOCAL AUTHORITIES,Investment,BCP COUNCIL,22/12/2023," £1,411.00 ",PUB,None,Grants
"Department for Levelling Up, Housing and Communities",Homes England,REV GRNTS TO LOCAL AUTHORITIES,Investment,BCP COUNCIL,22/12/2023," £1,155.00 ",PUB,None,Grants
"Department for Levelling Up, Housing and Communities",Homes England,REV GRNTS TO LOCAL AUTHORITIES,Investment,BCP COUNCIL,22/12/2023," £1,411.00 ",PUB,None,Grants
"Department for Levelling Up, Housing and Communities",Homes England,REV GRNTS TO LOCAL AUTHORITIES,Investment,BCP COUNCIL,22/12/2023," £1,155.00 ",PUB,None,Grants
"Department for Levelling Up, Housing and Communities",Homes England,REV GRNTS TO LOCAL AUTHORITIES,Investment,BCP COUNCIL,22/12/2023," £1,155.00 ",PUB,None,Grants
"Department for Levelling Up, Housing and Communities",Homes England,REV GRNTS TO LOCAL AUTHORITIES,Investment,BCP COUNCIL,22/12/2023," £2,822.00 ",PUB,None,Grants
"Department for Levelling Up, Housing and Communities",Homes England,REV GRNTS TO LOCAL AUTHORITIES,Investment,BCP COUNCIL,22/12/2023," £1,411.00 ",PUB,None,Grants
"Department for Levelling Up, Housing and Communities",Homes England,REV GRNTS TO LOCAL AUTHORITIES,Investment,BCP COUNCIL,22/12/2023," £1,155.00 ",PUB,None,Grants
"Department for Levelling Up, Housing and Communities",Homes England,REV GRNTS TO LOCAL AUTHORITIES,Investment,BCP COUNCIL,22/12/2023," £1,411.00 ",PUB,None,Grants
"Department for Levelling Up, Housing and Communities",Homes England,REV GRNTS TO LOCAL AUTHORITIES,Investment,BCP COUNCIL,22/12/2023," £1,411.00 ",PUB,None,Grants
"Department for Levelling Up, Housing and Communities",Homes England,REV GRNTS TO LOCAL AUTHORITIES,Investment,BCP COUNCIL,22/12/2023," £1,411.00 ",PUB,None,Grants
"Department for Levelling Up, Housing and Communities",Homes England,REV GRNTS TO LOCAL AUTHORITIES,Investment,BCP COUNCIL,22/12/2023," £1,411.00 ",PUB,None,Grants
"Department for Levelling Up, Housing and Communities",Homes England,REV GRNTS TO LOCAL AUTHORITIES,Investment,BCP COUNCIL,22/12/2023," £1,411.00 ",PUB,None,Grants
"Department for Levelling Up, Housing and Communities",Homes England,CAPITAL GRANTS TO RPs,Investment,CITIZEN HOUSING GROUP LTD,21/12/2023," £16,200.00 ",LAR,None,Grants
"Department for Levelling Up, Housing and Communities",Homes England,CAPITAL GRANTS TO RPs,Investment,CITIZEN HOUSING GROUP LTD,22/12/2023," £27,000.00 ",LAR,None,Grants
"Department for Levelling Up, Housing and Communities",Homes England,CAPITAL GRANTS TO RPs,Investment,CITIZEN HOUSING GROUP LTD,22/12/2023," £371,250.00 ",LAR,None,Grants
"Department for Levelling Up, Housing and Communities",Homes England,CAPITAL GRANTS TO RPs,Investment,The Joseph Rowntree Foundation,20/12/2023," £330,000.00 ",LAR,None,Grants
"Department for Levelling Up, Housing and Communities",Homes England,CAPITAL GRANTS TO RPs,Investment,The Joseph Rowntree Foundation,20/12/2023," £200,000.00 ",LAR,None,Grants
"Department for Levelling Up, Housing and Communities",Homes England,REV GRNTS TO LOCAL AUTHORITIES,Investment,SUNDERLAND CITY COUNCIL,22/12/2023," £3,575.00 ",PUB,None,Grants
"Department for Levelling Up, Housing and Communities",Homes England,REV GRNTS TO LOCAL AUTHORITIES,Investment,SUNDERLAND CITY COUNCIL,22/12/2023, £893.00 ,PUB,None,Grants
"Department for Levelling Up, Housing and Communities",Homes England,REV GRNTS TO LOCAL AUTHORITIES,Investment,SUNDERLAND CITY COUNCIL,22/12/2023," £1,708.00 ",PUB,None,Grants
"Department for Levelling Up, Housing and Communities",Homes England,REV GRNTS TO LOCAL AUTHORITIES,Investment,SUNDERLAND CITY COUNCIL,22/12/2023," £1,708.00 ",PUB,None,Grants
"Department for Levelling Up, Housing and Communities",Homes England,REV GRNTS TO LOCAL AUTHORITIES,Investment,SUNDERLAND CITY COUNCIL,22/12/2023, £893.00 ,PUB,None,Grants
"Department for Levelling Up, Housing and Communities",Homes England,REV GRNTS TO LOCAL AUTHORITIES,Investment,SUNDERLAND CITY COUNCIL,22/12/2023," £1,708.00 ",PUB,None,Grants
"Department for Levelling Up, Housing and Communities",Homes England,REV GRNTS TO LOCAL AUTHORITIES,Investment,SUNDERLAND CITY COUNCIL,22/12/2023," £1,708.00 ",PUB,None,Grants
"Department for Levelling Up, Housing and Communities",Homes England,REV GRNTS TO LOCAL AUTHORITIES,Investment,SUNDERLAND CITY COUNCIL,22/12/2023," £1,708.00 ",PUB,None,Grants
"Department for Levelling Up, Housing and Communities",Homes England,CAPITAL GRANTS TO RPs,Investment,RESI HOMES LIMITED,22/12/2023," £405,000.00 ",SMA,None,Grants
"Department for Levelling Up, Housing and Communities",Homes England,CAPITAL GRANTS TO RPs,Investment,RESI HOMES LIMITED,22/12/2023," £135,000.00 ",SMA,None,Grants
"Department for Levelling Up, Housing and Communities",Homes England,CAPITAL GRANTS TO RPs,Investment,RESI HOMES LIMITED,22/12/2023," £45,000.00 ",SMA,None,Grants
"Department for Levelling Up, Housing and Communities",Homes England,CAPITAL GRANTS TO RPs,Investment,RESI HOMES LIMITED,22/12/2023," £315,000.00 ",SMA,None,Grants
"Department for Levelling Up, Housing and Communities",Homes England,CAPITAL GRANTS TO RPs,Investment,RESI HOMES LIMITED,22/12/2023," £540,000.00 ",SMA,None,Grants
"Department for Levelling Up, Housing and Communities",Homes England,REV GRNTS TO LOCAL AUTHORITIES,Investment,CHELMSFORD CITY COUNCIL,22/12/2023," £6,500.00 ",PUB,None,Grants
"Department for Levelling Up, Housing and Communities",Homes England,REV GRNTS TO LOCAL AUTHORITIES,Investment,DORSET COUNCIL,22/12/2023," £15,112.00 ",PUB,None,Grants
"Department for Levelling Up, Housing and Communities",Homes England,REV GRNTS TO LOCAL AUTHORITIES,Investment,DORSET COUNCIL,22/12/2023," £1,766.00 ",PUB,None,Grants
"Department for Levelling Up, Housing and Communities",Homes England,REV GRNTS TO LOCAL AUTHORITIES,Investment,DORSET COUNCIL,22/12/2023," £1,996.00 ",PUB,None,Grants
"Department for Levelling Up, Housing and Communities",Homes England,REV GRNTS TO LOCAL AUTHORITIES,Investment,DORSET COUNCIL,22/12/2023," £1,995.00 ",PUB,None,Grants
"Department for Levelling Up, Housing and Communities",Homes England,REV GRNTS TO LOCAL AUTHORITIES,Investment,DORSET COUNCIL,22/12/2023," £1,647.00 ",PUB,None,Grants
"Department for Levelling Up, Housing and Communities",Homes England,REV GRNTS TO LOCAL AUTHORITIES,Investment,DORSET COUNCIL,22/12/2023," £1,766.00 ",PUB,None,Grants
"Department for Levelling Up, Housing and Communities",Homes England,REV GRNTS TO LOCAL AUTHORITIES,Investment,DORSET COUNCIL,22/12/2023," £1,766.00 ",PUB,None,Grants
"Department for Levelling Up, Housing and Communities",Homes England,REV GRNTS TO LOCAL AUTHORITIES,Investment,DORSET COUNCIL,22/12/2023," £1,995.00 ",PUB,None,Grants
"Department for Levelling Up, Housing and Communities",Homes England,REV GRNTS TO LOCAL AUTHORITIES,Investment,DORSET COUNCIL,22/12/2023," £1,766.00 ",PUB,None,Grants
"Department for Levelling Up, Housing and Communities",Homes England,REV GRNTS TO LOCAL AUTHORITIES,Investment,DORSET COUNCIL,22/12/2023," £1,996.00 ",PUB,None,Grants
"Department for Levelling Up, Housing and Communities",Homes England,REV GRNTS TO LOCAL AUTHORITIES,Investment,DORSET COUNCIL,22/12/2023," £1,996.00 ",PUB,None,Grants
"Department for Levelling Up, Housing and Communities",Homes England,REV GRNTS TO LOCAL AUTHORITIES,Investment,DORSET COUNCIL,22/12/2023," £1,647.00 ",PUB,None,Grants
"Department for Levelling Up, Housing and Communities",Homes England,REV GRNTS TO LOCAL AUTHORITIES,Investment,DORSET COUNCIL,22/12/2023," £1,766.00 ",PUB,None,Grants
"Department for Levelling Up, Housing and Communities",Homes England,REV GRNTS TO LOCAL AUTHORITIES,Investment,DORSET COUNCIL,22/12/2023," £1,766.00 ",PUB,None,Grants
"Department for Levelling Up, Housing and Communities",Homes England,REV GRNTS TO LOCAL AUTHORITIES,Investment,DORSET COUNCIL,22/12/2023," £1,996.00 ",PUB,None,Grants
"Department for Levelling Up, Housing and Communities",Homes England,REV GRNTS TO LOCAL AUTHORITIES,Investment,DORSET COUNCIL,22/12/2023," £1,995.00 ",PUB,None,Grants
"Department for Levelling Up, Housing and Communities",Homes England,REV GRNTS TO LOCAL AUTHORITIES,Investment,DORSET COUNCIL,22/12/2023," £1,647.00 ",PUB,None,Grants
"Department for Levelling Up, Housing and Communities",Homes England,REV GRNTS TO LOCAL AUTHORITIES,Investment,DORSET COUNCIL,22/12/2023," £1,996.00 ",PUB,None,Grants
"Department for Levelling Up, Housing and Communities",Homes England,REV GRNTS TO LOCAL AUTHORITIES,Investment,DORSET COUNCIL,22/12/2023," £1,766.00 ",PUB,None,Grants
"Department for Levelling Up, Housing and Communities",Homes England,REV GRNTS TO LOCAL AUTHORITIES,Investment,DORSET COUNCIL,22/12/2023," £1,766.00 ",PUB,None,Grants
"Department for Levelling Up, Housing and Communities",Homes England,REV GRNTS TO LOCAL AUTHORITIES,Investment,DORSET COUNCIL,22/12/2023," £1,996.00 ",PUB,None,Grants
"Department for Levelling Up, Housing and Communities",Homes England,REV GRNTS TO LOCAL AUTHORITIES,Investment,DORSET COUNCIL,22/12/2023," £1,995.00 ",PUB,None,Grants
"Department for Levelling Up, Housing and Communities",Homes England,REV GRNTS TO LOCAL AUTHORITIES,Investment,DORSET COUNCIL,22/12/2023," £1,647.00 ",PUB,None,Grants
"Department for Levelling Up, Housing and Communities",Homes England,REV GRNTS TO LOCAL AUTHORITIES,Investment,DORSET COUNCIL,22/12/2023," £1,766.00 ",PUB,None,Grants
"Department for Levelling Up, Housing and Communities",Homes England,REV GRNTS TO LOCAL AUTHORITIES,Investment,TELFORD & WREKIN COUNCIL,22/12/2023," £3,316.00 ",PUB,None,Grants
"Department for Levelling Up, Housing and Communities",Homes England,REV GRNTS TO LOCAL AUTHORITIES,Investment,TELFORD & WREKIN COUNCIL,22/12/2023, £602.00 ,PUB,None,Grants
"Department for Levelling Up, Housing and Communities",Homes England,REV GRNTS TO LOCAL AUTHORITIES,Investment,TELFORD & WREKIN COUNCIL,22/12/2023," £2,574.00 ",PUB,None,Grants
"Department for Levelling Up, Housing and Communities",Homes England,REV GRNTS TO LOCAL AUTHORITIES,Investment,TELFORD & WREKIN COUNCIL,22/12/2023, £602.00 ,PUB,None,Grants
"Department for Levelling Up, Housing and Communities",Homes England,REV GRNTS TO LOCAL AUTHORITIES,Investment,TELFORD & WREKIN COUNCIL,22/12/2023," £2,574.00 ",PUB,None,Grants
"Department for Levelling Up, Housing and Communities",Homes England,REV GRNTS TO LOCAL AUTHORITIES,Investment,TELFORD & WREKIN COUNCIL,22/12/2023, £601.00 ,PUB,None,Grants
"Department for Levelling Up, Housing and Communities",Homes England,REV GRNTS TO LOCAL AUTHORITIES,Investment,TELFORD & WREKIN COUNCIL,22/12/2023," £13,741.00 ",PUB,None,Grants
"Department for Levelling Up, Housing and Communities",Homes England,REV GRNTS TO LOCAL AUTHORITIES,Investment,TELFORD & WREKIN COUNCIL,22/12/2023, £602.00 ,PUB,None,Grants
"Department for Levelling Up, Housing and Communities",Homes England,REV GRNTS TO LOCAL AUTHORITIES,Investment,TELFORD & WREKIN COUNCIL,22/12/2023," £2,762.00 ",PUB,None,Grants
"Department for Levelling Up, Housing and Communities",Homes England,REV GRNTS TO LOCAL AUTHORITIES,Investment,TELFORD & WREKIN COUNCIL,22/12/2023, £601.00 ,PUB,None,Grants
"Department for Levelling Up, Housing and Communities",Homes England,REV GRNTS TO LOCAL AUTHORITIES,Investment,TELFORD & WREKIN COUNCIL,22/12/2023," £3,316.00 ",PUB,None,Grants
"Department for Levelling Up, Housing and Communities",Homes England,REV GRNTS TO LOCAL AUTHORITIES,Investment,TELFORD & WREKIN COUNCIL,22/12/2023, £602.00 ,PUB,None,Grants
"Department for Levelling Up, Housing and Communities",Homes England,REV GRNTS TO LOCAL AUTHORITIES,Investment,TELFORD & WREKIN COUNCIL,22/12/2023," £2,574.00 ",PUB,None,Grants
"Department for Levelling Up, Housing and Communities",Homes England,REV GRNTS TO LOCAL AUTHORITIES,Investment,TELFORD & WREKIN COUNCIL,22/12/2023, £602.00 ,PUB,None,Grants
"Department for Levelling Up, Housing and Communities",Homes England,REV GRNTS TO LOCAL AUTHORITIES,Investment,TELFORD & WREKIN COUNCIL,22/12/2023, £602.00 ,PUB,None,Grants
"Department for Levelling Up, Housing and Communities",Homes England,REV GRNTS TO LOCAL AUTHORITIES,Investment,TELFORD & WREKIN COUNCIL,22/12/2023, £602.00 ,PUB,None,Grants
"Department for Levelling Up, Housing and Communities",Homes England,REV GRNTS TO LOCAL AUTHORITIES,Investment,TELFORD & WREKIN COUNCIL,22/12/2023," £2,574.00 ",PUB,None,Grants
"Department for Levelling Up, Housing and Communities",Homes England,REV GRNTS TO LOCAL AUTHORITIES,Investment,TELFORD & WREKIN COUNCIL,22/12/2023, £602.00 ,PUB,None,Grants
"Department for Levelling Up, Housing and Communities",Homes England,REV GRNTS TO LOCAL AUTHORITIES,Investment,TELFORD & WREKIN COUNCIL,22/12/2023," £2,574.00 ",PUB,None,Grants
"Department for Levelling Up, Housing and Communities",Homes England,CAPITAL GRANTS TO RPs,Investment,LUMEN HOUSING LIMITED,06/12/2023," £12,250.00 ",SMA,None,Grants
"Department for Levelling Up, Housing and Communities",Homes England,CAPITAL GRANTS TO RPs,Investment,LUMEN HOUSING LIMITED,08/12/2023," £12,250.00 ",SMA,None,Grants
"Department for Levelling Up, Housing and Communities",Homes England,CAPITAL GRANTS TO RPs,Investment,LUMEN HOUSING LIMITED,08/12/2023," £12,600.00 ",SMA,None,Grants
"Department for Levelling Up, Housing and Communities",Homes England,REV GRNTS TO LOCAL AUTHORITIES,Investment,STRATFORD ON AVON DISTRICT COUNCIL,22/12/2023," £1,000.00 ",PUB,None,Grants
"Department for Levelling Up, Housing and Communities",Homes England,REV GRNTS TO LOCAL AUTHORITIES,Investment,STRATFORD ON AVON DISTRICT COUNCIL,22/12/2023," £1,000.00 ",PUB,None,Grants
"Department for Levelling Up, Housing and Communities",Homes England,REV GRNTS TO LOCAL AUTHORITIES,Investment,STRATFORD ON AVON DISTRICT COUNCIL,22/12/2023," £1,000.00 ",PUB,None,Grants
"Department for Levelling Up, Housing and Communities",Homes England,REV GRNTS TO LOCAL AUTHORITIES,Investment,STRATFORD ON AVON DISTRICT COUNCIL,22/12/2023," £1,000.00 ",PUB,None,Grants
"Department for Levelling Up, Housing and Communities",Homes England,REV GRNTS TO LOCAL AUTHORITIES,Investment,PETERBOROUGH CITY COUNCIL,22/12/2023," £10,354.00 ",PUB,None,Grants
"Department for Levelling Up, Housing and Communities",Homes England,CAP GRNTS TO LOCAL AUTHORITIES,Investment,HASTINGS BOROUGH COUNCIL,14/12/2023," £18,750.00 ",PUB,None,Grants
"Department for Levelling Up, Housing and Communities",Homes England,CAP GRNTS TO LOCAL AUTHORITIES,Investment,HASTINGS BOROUGH COUNCIL,14/12/2023," £18,750.00 ",PUB,None,Grants
"Department for Levelling Up, Housing and Communities",Homes England,CAP GRNTS TO LOCAL AUTHORITIES,Investment,HASTINGS BOROUGH COUNCIL,15/12/2023," £56,250.00 ",PUB,None,Grants
"Department for Levelling Up, Housing and Communities",Homes England,CAP GRNTS TO LOCAL AUTHORITIES,Investment,HASTINGS BOROUGH COUNCIL,15/12/2023," £56,250.00 ",PUB,None,Grants
"Department for Levelling Up, Housing and Communities",Homes England,CAP GRNTS TO LOCAL AUTHORITIES,Investment,HASTINGS BOROUGH COUNCIL,19/12/2023," £22,000.00 ",PUB,None,Grants
"Department for Levelling Up, Housing and Communities",Homes England,CAP GRNTS TO LOCAL AUTHORITIES,Investment,HASTINGS BOROUGH COUNCIL,19/12/2023," £22,000.00 ",PUB,None,Grants
"Department for Levelling Up, Housing and Communities",Homes England,CAP GRNTS TO LOCAL AUTHORITIES,Investment,HASTINGS BOROUGH COUNCIL,19/12/2023," £22,000.00 ",PUB,None,Grants
"Department for Levelling Up, Housing and Communities",Homes England,CAP GRNTS TO LOCAL AUTHORITIES,Investment,HASTINGS BOROUGH COUNCIL,19/12/2023," £22,000.00 ",PUB,None,Grants
"Department for Levelling Up, Housing and Communities",Homes England,REV GRNTS TO LOCAL AUTHORITIES,Investment,BEDFORD BOROUGH COUNCIL,22/12/2023," £80,750.00 ",PUB,None,Grants
"Department for Levelling Up, Housing and Communities",Homes England,REV GRNTS TO LOCAL AUTHORITIES,Investment,TUNBRIDGE WELLS BOROUGH COUNCIL,22/12/2023," £10,945.00 ",PUB,None,Grants
"Department for Levelling Up, Housing and Communities",Homes England,REV GRNTS TO LOCAL AUTHORITIES,Investment,ROTHER DISTRICT COUNCIL,22/12/2023," £2,100.00 ",PUB,None,Grants
"Department for Levelling Up, Housing and Communities",Homes England,REV GRNTS TO LOCAL AUTHORITIES,Investment,ROTHER DISTRICT COUNCIL,22/12/2023, £734.00 ,PUB,None,Grants
"Department for Levelling Up, Housing and Communities",Homes England,REV GRNTS TO LOCAL AUTHORITIES,Investment,ROTHER DISTRICT COUNCIL,22/12/2023," £2,100.00 ",PUB,None,Grants
"Department for Levelling Up, Housing and Communities",Homes England,REV GRNTS TO LOCAL AUTHORITIES,Investment,ROTHER DISTRICT COUNCIL,22/12/2023, £938.00 ,PUB,None,Grants
"Department for Levelling Up, Housing and Communities",Homes England,REV GRNTS TO LOCAL AUTHORITIES,Investment,ROTHER DISTRICT COUNCIL,22/12/2023," £2,100.00 ",PUB,None,Grants
"Department for Levelling Up, Housing and Communities",Homes England,REV GRNTS TO LOCAL AUTHORITIES,Investment,ROTHER DISTRICT COUNCIL,22/12/2023," £2,100.00 ",PUB,None,Grants
"Department for Levelling Up, Housing and Communities",Homes England,REV GRNTS TO LOCAL AUTHORITIES,Investment,ROTHER DISTRICT COUNCIL,22/12/2023, £851.00 ,PUB,None,Grants
"Department for Levelling Up, Housing and Communities",Homes England,REV GRNTS TO LOCAL AUTHORITIES,Investment,ROTHER DISTRICT COUNCIL,22/12/2023," £10,750.00 ",PUB,None,Grants
"Department for Levelling Up, Housing and Communities",Homes England,REV GRNTS TO LOCAL AUTHORITIES,Investment,ROTHER DISTRICT COUNCIL,22/12/2023, £938.00 ,PUB,None,Grants
"Department for Levelling Up, Housing and Communities",Homes England,REV GRNTS TO LOCAL AUTHORITIES,Investment,TORVISTA HOMES LIMITED,22/12/2023," £1,250.00 ",LAR,None,Grants
"Department for Levelling Up, Housing and Communities",Homes England,REV GRNTS TO LOCAL AUTHORITIES,Investment,TORVISTA HOMES LIMITED,22/12/2023," £1,250.00 ",LAR,None,Grants
"Department for Levelling Up, Housing and Communities",Homes England,REV GRNTS TO LOCAL AUTHORITIES,Investment,TORVISTA HOMES LIMITED,22/12/2023," £1,250.00 ",LAR,None,Grants
"Department for Levelling Up, Housing and Communities",Homes England,REV GRNTS TO LOCAL AUTHORITIES,Investment,TORVISTA HOMES LIMITED,22/12/2023," £1,250.00 ",LAR,None,Grants
"Department for Levelling Up, Housing and Communities",Homes England,REV GRNTS TO LOCAL AUTHORITIES,Investment,TORVISTA HOMES LIMITED,22/12/2023," £1,250.00 ",LAR,None,Grants
"Department for Levelling Up, Housing and Communities",Homes England,REV GRNTS TO LOCAL AUTHORITIES,Investment,TORVISTA HOMES LIMITED,22/12/2023," £1,250.00 ",LAR,None,Grants
"Department for Levelling Up, Housing and Communities",Homes England,REV GRNTS TO LOCAL AUTHORITIES,Investment,TORVISTA HOMES LIMITED,22/12/2023," £1,250.00 ",LAR,None,Grants
"Department for Levelling Up, Housing and Communities",Homes England,REV GRNTS TO LOCAL AUTHORITIES,Investment,TORVISTA HOMES LIMITED,22/12/2023," £1,250.00 ",LAR,None,Grants
"Department for Levelling Up, Housing and Communities",Homes England,REV GRNTS TO LOCAL AUTHORITIES,Investment,TORVISTA HOMES LIMITED,22/12/2023," £1,250.00 ",LAR,None,Grants
"Department for Levelling Up, Housing and Communities",Homes England,REV GRNTS TO LOCAL AUTHORITIES,Investment,TORVISTA HOMES LIMITED,22/12/2023," £1,250.00 ",LAR,None,Grants
"Department for Levelling Up, Housing and Communities",Homes England,REV GRNTS TO LOCAL AUTHORITIES,Investment,TORVISTA HOMES LIMITED,22/12/2023," £1,250.00 ",LAR,None,Grants
"Department for Levelling Up, Housing and Communities",Homes England,REV GRNTS TO LOCAL AUTHORITIES,Investment,TORVISTA HOMES LIMITED,22/12/2023," £1,250.00 ",LAR,None,Grants
"Department for Levelling Up, Housing and Communities",Homes England,REV GRNTS TO LOCAL AUTHORITIES,Investment,TORVISTA HOMES LIMITED,22/12/2023," £1,250.00 ",LAR,None,Grants
"Department for Levelling Up, Housing and Communities",Homes England,REV GRNTS TO LOCAL AUTHORITIES,Investment,TORVISTA HOMES LIMITED,22/12/2023," £1,250.00 ",LAR,None,Grants
"Department for Levelling Up, Housing and Communities",Homes England,CAP GRNTS TO LOCAL AUTHORITIES,Investment,REIGATE & BANSTEAD BOROUGH COUNCIL,15/12/2023," £19,000.00 ",PUB,None,Grants
"Department for Levelling Up, Housing and Communities",Homes England,CAP GRNTS TO LOCAL AUTHORITIES,Investment,REIGATE & BANSTEAD BOROUGH COUNCIL,20/12/2023," £16,625.00 ",PUB,None,Grants
"Department for Levelling Up, Housing and Communities",Homes England,CAP GRNTS TO LOCAL AUTHORITIES,Investment,REIGATE & BANSTEAD BOROUGH COUNCIL,22/12/2023," £11,875.00 ",PUB,None,Grants
"Department for Levelling Up, Housing and Communities",Homes England,REV GRNTS TO LOCAL AUTHORITIES,Investment,WEST NORTHAMPTONSHIRE COUNCIL,22/12/2023," £1,050.00 ",PUB,None,Grants
"Department for Levelling Up, Housing and Communities",Homes England,REV GRNTS TO LOCAL AUTHORITIES,Investment,WEST NORTHAMPTONSHIRE COUNCIL,22/12/2023," £1,050.00 ",PUB,None,Grants
"Department for Levelling Up, Housing and Communities",Homes England,REV GRNTS TO LOCAL AUTHORITIES,Investment,WEST NORTHAMPTONSHIRE COUNCIL,22/12/2023," £1,050.00 ",PUB,None,Grants
"Department for Levelling Up, Housing and Communities",Homes England,REV GRNTS TO LOCAL AUTHORITIES,Investment,WEST NORTHAMPTONSHIRE COUNCIL,22/12/2023," £1,418.00 ",PUB,None,Grants
"Department for Levelling Up, Housing and Communities",Homes England,REV GRNTS TO LOCAL AUTHORITIES,Investment,WEST NORTHAMPTONSHIRE COUNCIL,22/12/2023," £1,050.00 ",PUB,None,Grants
"Department for Levelling Up, Housing and Communities",Homes England,REV GRNTS TO LOCAL AUTHORITIES,Investment,WEST NORTHAMPTONSHIRE COUNCIL,22/12/2023," £1,050.00 ",PUB,None,Grants
"Department for Levelling Up, Housing and Communities",Homes England,REV GRNTS TO LOCAL AUTHORITIES,Investment,WEST NORTHAMPTONSHIRE COUNCIL,22/12/2023," £1,050.00 ",PUB,None,Grants
"Department for Levelling Up, Housing and Communities",Homes England,REV GRNTS TO LOCAL AUTHORITIES,Investment,WEST NORTHAMPTONSHIRE COUNCIL,22/12/2023," £1,050.00 ",PUB,None,Grants
"Department for Levelling Up, Housing and Communities",Homes England,REV GRNTS TO LOCAL AUTHORITIES,Investment,WEST NORTHAMPTONSHIRE COUNCIL,22/12/2023," £1,050.00 ",PUB,None,Grants
"Department for Levelling Up, Housing and Communities",Homes England,REV GRNTS TO LOCAL AUTHORITIES,Investment,WEST NORTHAMPTONSHIRE COUNCIL,22/12/2023," £1,625.00 ",PUB,None,Grants
"Department for Levelling Up, Housing and Communities",Homes England,REV GRNTS TO LOCAL AUTHORITIES,Investment,WEST NORTHAMPTONSHIRE COUNCIL,22/12/2023," £1,050.00 ",PUB,None,Grants
"Department for Levelling Up, Housing and Communities",Homes England,REV GRNTS TO LOCAL AUTHORITIES,Investment,WEST NORTHAMPTONSHIRE COUNCIL,22/12/2023, £906.00 ,PUB,None,Grants
"Department for Levelling Up, Housing and Communities",Homes England,REV GRNTS TO LOCAL AUTHORITIES,Investment,WEST NORTHAMPTONSHIRE COUNCIL,22/12/2023," £1,050.00 ",PUB,None,Grants
"Department for Levelling Up, Housing and Communities",Homes England,REV GRNTS TO LOCAL AUTHORITIES,Investment,WEST NORTHAMPTONSHIRE COUNCIL,22/12/2023, £906.00 ,PUB,None,Grants
"Department for Levelling Up, Housing and Communities",Homes England,REV GRNTS TO LOCAL AUTHORITIES,Investment,WEST NORTHAMPTONSHIRE COUNCIL,22/12/2023," £1,625.00 ",PUB,None,Grants
"Department for Levelling Up, Housing and Communities",Homes England,REV GRNTS TO LOCAL AUTHORITIES,Investment,WEST NORTHAMPTONSHIRE COUNCIL,22/12/2023," £1,050.00 ",PUB,None,Grants
"Department for Levelling Up, Housing and Communities",Homes England,REV GRNTS TO LOCAL AUTHORITIES,Investment,WEST NORTHAMPTONSHIRE COUNCIL,22/12/2023," £1,050.00 ",PUB,None,Grants
"Department for Levelling Up, Housing and Communities",Homes England,REV GRNTS TO LOCAL AUTHORITIES,Investment,WEST NORTHAMPTONSHIRE COUNCIL,22/12/2023," £1,050.00 ",PUB,None,Grants
"Department for Levelling Up, Housing and Communities",Homes England,REV GRNTS TO LOCAL AUTHORITIES,Investment,WEST NORTHAMPTONSHIRE COUNCIL,22/12/2023," £1,625.00 ",PUB,None,Grants
"Department for Levelling Up, Housing and Communities",Homes England,REV GRNTS TO LOCAL AUTHORITIES,Investment,WEST NORTHAMPTONSHIRE COUNCIL,22/12/2023," £1,418.00 ",PUB,None,Grants
"Department for Levelling Up, Housing and Communities",Homes England,REV GRNTS TO LOCAL AUTHORITIES,Investment,LICHFIELD DISTRICT COUNCIL,22/12/2023, £747.00 ,PUB,None,Grants
"Department for Levelling Up, Housing and Communities",Homes England,REV GRNTS TO LOCAL AUTHORITIES,Investment,LICHFIELD DISTRICT COUNCIL,22/12/2023, £747.00 ,PUB,None,Grants
"Department for Levelling Up, Housing and Communities",Homes England,REV GRNTS TO LOCAL AUTHORITIES,Investment,LICHFIELD DISTRICT COUNCIL,22/12/2023, £747.00 ,PUB,None,Grants
"Department for Levelling Up, Housing and Communities",Homes England,REV GRNTS TO LOCAL AUTHORITIES,Investment,LICHFIELD DISTRICT COUNCIL,22/12/2023, £747.00 ,PUB,None,Grants
"Department for Levelling Up, Housing and Communities",Homes England,REV GRNTS TO LOCAL AUTHORITIES,Investment,ISLE OF WIGHT COUNCIL,22/12/2023," £1,650.00 ",PUB,None,Grants
"Department for Levelling Up, Housing and Communities",Homes England,REV GRNTS TO LOCAL AUTHORITIES,Investment,ISLE OF WIGHT COUNCIL,22/12/2023," £1,650.00 ",PUB,None,Grants
"Department for Levelling Up, Housing and Communities",Homes England,REV GRNTS TO LOCAL AUTHORITIES,Investment,ISLE OF WIGHT COUNCIL,22/12/2023," £1,650.00 ",PUB,None,Grants
"Department for Levelling Up, Housing and Communities",Homes England,REV GRNTS TO LOCAL AUTHORITIES,Investment,ISLE OF WIGHT COUNCIL,22/12/2023," £1,650.00 ",PUB,None,Grants
"Department for Levelling Up, Housing and Communities",Homes England,REV GRNTS TO LOCAL AUTHORITIES,Investment,ISLE OF WIGHT COUNCIL,22/12/2023," £1,650.00 ",PUB,None,Grants
"Department for Levelling Up, Housing and Communities",Homes England,ECONOMIC CONSULTANCY PANEL,Development,AMION CONSULTING LTD,08/12/2023," £3,104.10 ",SMA,80131800,Real estate management services
"Department for Levelling Up, Housing and Communities",Homes England,OTHER PROFESSIONAL FEES,Development,AMION CONSULTING LTD,12/12/2023," £1,500.00 ",SMA,80131800,Real estate management services
"Department for Levelling Up, Housing and Communities",Homes England,LEGAL FEES (PROGRAMME - RDEL),Development,ADDLESHAW GODDARD,20/12/2023," £24,204.72 ",LAR,80121600,Business law services
"Department for Levelling Up, Housing and Communities",Homes England,SECONDED STAFF COSTS,Sras,MHCLG,15/12/2023," £34,156.01 ",PUB,80111600,Temporary personnel services
"Department for Levelling Up, Housing and Communities",Homes England,MASTERPLANNING FEES,Development,ATKINSREALIS UK LIMITED,08/12/2023," £33,300.00 ",LAR,81101500,Civil Engineering
"Department for Levelling Up, Housing and Communities",Homes England,MISC PROFESSIONAL FEES,Development,ATKINSREALIS UK LIMITED,12/12/2023," £5,238.00 ",LAR,77101500,Environmental auditing
"Department for Levelling Up, Housing and Communities",Homes England,MISC PROFESSIONAL FEES,Development,ATKINSREALIS UK LIMITED,12/12/2023," £11,238.00 ",LAR,77101500,Environmental auditing
"Department for Levelling Up, Housing and Communities",Homes England,TRAINING COURSES & CONFERENCES,Chief Risk Officer,AWICS,19/12/2023, £68.00 ,MIC,86101800,In service training and manpower development
"Department for Levelling Up, Housing and Communities",Homes England,TRAINING COURSES & CONFERENCES,Chief Risk Officer,AWICS,19/12/2023," £1,967.99 ",MIC,86101800,In service training and manpower development
"Department for Levelling Up, Housing and Communities",Homes England,MISC PROFESSIONAL FEES,Chief Operating Officer,ACAS,08/12/2023," £1,080.00 ",PUB,86101800,In service training and manpower development
"Department for Levelling Up, Housing and Communities",Homes England,OTHER PROFESSIONAL FEES,Development,ASHLEY HELME ASSOCIATES LTD,08/12/2023, £345.00 ,SMA,81101500,Civil Engineering
"Department for Levelling Up, Housing and Communities",Homes England,ESTATE GENERAL MAINTENANCE,"Markets, Partners & Places",Agriscapes Ltd,20/12/2023," £7,230.40 ",MIC,72101500,Building maintenance and repair services
"Department for Levelling Up, Housing and Communities",Homes England,CAR LEASING - HIRE CHARGES,Corporate Allocations,LEASEPLAN UK LIMITED,18/12/2023," £2,857.37 ",LAR,25101500,Passenger motor vehicles
"Department for Levelling Up, Housing and Communities",Homes England,CAR LEASING - HIRE CHARGES,Corporate Allocations,LEASEPLAN UK LIMITED,18/12/2023," £3,418.97 ",LAR,25101500,Passenger motor vehicles
"Department for Levelling Up, Housing and Communities",Homes England,CAR LEASING - HIRE CHARGES,Corporate Allocations,LEASEPLAN UK LIMITED,18/12/2023," £2,230.38 ",LAR,25101500,Passenger motor vehicles
"Department for Levelling Up, Housing and Communities",Homes England,CAR LEASING - HIRE CHARGES,Corporate Allocations,LEASEPLAN UK LIMITED,18/12/2023," £2,840.62 ",LAR,25101500,Passenger motor vehicles
"Department for Levelling Up, Housing and Communities",Homes England,LUHBF Loans Additions,Investment,ASCOT HOMES (D'URTON) LTD,15/12/2023," £75,588.00 ",MIC,None,Loans
"Department for Levelling Up, Housing and Communities",Homes England,CAR LEASING - HIRE CHARGES,Corporate Allocations,ALPHABET (GB) LTD,05/12/2023, £691.27 ,LAR,25101500,Passenger motor vehicles
"Department for Levelling Up, Housing and Communities",Homes England,CAR LEASING - HIRE CHARGES,Corporate Allocations,ALPHABET (GB) LTD,05/12/2023," £6,550.84 ",LAR,25101500,Passenger motor vehicles
"Department for Levelling Up, Housing and Communities",Homes England,CAR LEASING - HIRE CHARGES,Corporate Allocations,ALPHABET (GB) LTD,19/12/2023, £827.52 ,LAR,25101500,Passenger motor vehicles
"Department for Levelling Up, Housing and Communities",Homes England,CAR LEASING - HIRE CHARGES,Corporate Allocations,ALPHABET (GB) LTD,19/12/2023," £7,142.54 ",LAR,25101500,Passenger motor vehicles
"Department for Levelling Up, Housing and Communities",Homes England,CAR LEASING - HIRE CHARGES,Corporate Allocations,ALPHABET (GB) LTD,21/12/2023," £3,472.89 ",LAR,25101500,Passenger motor vehicles
"Department for Levelling Up, Housing and Communities",Homes England,CAR LEASING - HIRE CHARGES,Corporate Allocations,ALPHABET (GB) LTD,21/12/2023," £4,300.42 ",LAR,25101500,Passenger motor vehicles
"Department for Levelling Up, Housing and Communities",Homes England,SUBS TO OTHER BODIES,Chief Risk Officer,ANTI MONEY LAUNDERING PROFESSIONALS LTD,19/12/2023, £968.40 ,MIC,94101600,Professional associations
"Department for Levelling Up, Housing and Communities",Homes England,ESTATE GENERAL MAINTENANCE,Development,Andy Loos LTD,18/12/2023, £406.56 ,MED,72101500,Building maintenance and repair services
"Department for Levelling Up, Housing and Communities",Homes England,ESTATE GENERAL MAINTENANCE,Development,AEWC LIMITED,06/12/2023, £540.00 ,SMA,72101500,Building maintenance and repair services
"Department for Levelling Up, Housing and Communities",Homes England,ESTATE GENERAL MAINTENANCE,Development,AEWC LIMITED,06/12/2023," £4,740.00 ",SMA,72101500,Building maintenance and repair services
"Department for Levelling Up, Housing and Communities",Homes England,ESTATE GENERAL MAINTENANCE,Development,AINSTY TIMBER MARKETING LTD T/A ATM,01/12/2023," £2,818.12 ",MED,72101500,Building maintenance and repair services
"Department for Levelling Up, Housing and Communities",Homes England,CONTRACT WORKS,Development,AINSTY TIMBER MARKETING LTD T/A ATM,20/12/2023," £9,386.04 ",MED,72102900,Facility maintenance and repair services
"Department for Levelling Up, Housing and Communities",Homes England,ESTATE GENERAL MAINTENANCE,Development,AINSTY TIMBER MARKETING LTD T/A ATM,20/12/2023," £10,250.16 ",MED,72101500,Building maintenance and repair services
"Department for Levelling Up, Housing and Communities",Homes England,AGENCY STAFF,Chief Customer Office,ALEXANDER MANN SOLUTIONS LIMITED,04/12/2023," £2,322.18 ",LAR,80111600,Temporary personnel services
"Department for Levelling Up, Housing and Communities",Homes England,AGENCY STAFF,Chief Operating Officer,ALEXANDER MANN SOLUTIONS LIMITED,04/12/2023," £1,512.14 ",LAR,80111600,Temporary personnel services
"Department for Levelling Up, Housing and Communities",Homes England,AGENCY STAFF,Cido,ALEXANDER MANN SOLUTIONS LIMITED,04/12/2023," £4,725.42 ",LAR,80111600,Temporary personnel services
"Department for Levelling Up, Housing and Communities",Homes England,AGENCY STAFF,Cido,ALEXANDER MANN SOLUTIONS LIMITED,04/12/2023," £4,090.44 ",LAR,80111600,Temporary personnel services
"Department for Levelling Up, Housing and Communities",Homes England,AGENCY STAFF,Cido,ALEXANDER MANN SOLUTIONS LIMITED,04/12/2023," £2,665.14 ",LAR,80111600,Temporary personnel services
"Department for Levelling Up, Housing and Communities",Homes England,AGENCY STAFF,Cido,ALEXANDER MANN SOLUTIONS LIMITED,04/12/2023," £4,725.42 ",LAR,80111600,Temporary personnel services
"Department for Levelling Up, Housing and Communities",Homes England,AGENCY STAFF,Cido,ALEXANDER MANN SOLUTIONS LIMITED,04/12/2023," £4,090.44 ",LAR,80111600,Temporary personnel services
"Department for Levelling Up, Housing and Communities",Homes England,MISC PROFESSIONAL FEES,Chief Customer Office,ALEXANDER MANN SOLUTIONS LIMITED,04/12/2023," £1,575.12 ",LAR,80111600,Temporary personnel services
"Department for Levelling Up, Housing and Communities",Homes England,MISC PROFESSIONAL FEES,Chief Customer Office,ALEXANDER MANN SOLUTIONS LIMITED,04/12/2023," £1,575.12 ",LAR,80111600,Temporary personnel services
"Department for Levelling Up, Housing and Communities",Homes England,MISC PROFESSIONAL FEES,Chief Customer Office,ALEXANDER MANN SOLUTIONS LIMITED,04/12/2023," £2,835.24 ",LAR,80111600,Temporary personnel services
"Department for Levelling Up, Housing and Communities",Homes England,STAFF RECRUITMENT COSTS,Chief Customer Office,ALEXANDER MANN SOLUTIONS LIMITED,04/12/2023," £3,383.70 ",LAR,80111700,Temporary personnel services
"Department for Levelling Up, Housing and Communities",Homes England,MISC PROFESSIONAL FEES,Chief Customer Office,ALEXANDER MANN SOLUTIONS LIMITED,04/12/2023," £1,575.12 ",LAR,80111600,Temporary personnel services
"Department for Levelling Up, Housing and Communities",Homes England,MISC PROFESSIONAL FEES,Chief Customer Office,ALEXANDER MANN SOLUTIONS LIMITED,04/12/2023," £1,575.12 ",LAR,80111600,Temporary personnel services
"Department for Levelling Up, Housing and Communities",Homes England,AGENCY STAFF,Chief Risk Officer,ALEXANDER MANN SOLUTIONS LIMITED,04/12/2023," £9,930.42 ",LAR,80111600,Temporary personnel services
"Department for Levelling Up, Housing and Communities",Homes England,AGENCY STAFF,Cido,ALEXANDER MANN SOLUTIONS LIMITED,04/12/2023," £3,545.09 ",LAR,80111600,Temporary personnel services
"Department for Levelling Up, Housing and Communities",Homes England,AGENCY STAFF,Cido,ALEXANDER MANN SOLUTIONS LIMITED,04/12/2023," £1,499.83 ",LAR,80111600,Temporary personnel services
"Department for Levelling Up, Housing and Communities",Homes England,AGENCY STAFF,Cido,ALEXANDER MANN SOLUTIONS LIMITED,04/12/2023," £2,999.66 ",LAR,80111600,Temporary personnel services
"Department for Levelling Up, Housing and Communities",Homes England,AGENCY STAFF,Cido,ALEXANDER MANN SOLUTIONS LIMITED,04/12/2023," £4,260.90 ",LAR,80111600,Temporary personnel services
"Department for Levelling Up, Housing and Communities",Homes England,AGENCY STAFF,Cido,ALEXANDER MANN SOLUTIONS LIMITED,04/12/2023," £3,024.29 ",LAR,80111600,Temporary personnel services
"Department for Levelling Up, Housing and Communities",Homes England,AGENCY STAFF,Cido,ALEXANDER MANN SOLUTIONS LIMITED,04/12/2023," £3,465.30 ",LAR,80111600,Temporary personnel services
"Department for Levelling Up, Housing and Communities",Homes England,AGENCY STAFF,"Markets, Partners & Places",ALEXANDER MANN SOLUTIONS LIMITED,04/12/2023," £2,583.60 ",LAR,80111600,Temporary personnel services
"Department for Levelling Up, Housing and Communities",Homes England,AGENCY STAFF,Cido,ALEXANDER MANN SOLUTIONS LIMITED,04/12/2023," £2,999.66 ",LAR,80111600,Temporary personnel services
"Department for Levelling Up, Housing and Communities",Homes England,AGENCY STAFF,Corporate Resources,ALEXANDER MANN SOLUTIONS LIMITED,04/12/2023," £2,653.92 ",LAR,80111600,Temporary personnel services
"Department for Levelling Up, Housing and Communities",Homes England,AGENCY STAFF,Cido,ALEXANDER MANN SOLUTIONS LIMITED,04/12/2023," £4,090.44 ",LAR,80111600,Temporary personnel services
"Department for Levelling Up, Housing and Communities",Homes England,AGENCY STAFF,Cido,ALEXANDER MANN SOLUTIONS LIMITED,04/12/2023," £5,330.28 ",LAR,80111600,Temporary personnel services
"Department for Levelling Up, Housing and Communities",Homes England,AGENCY STAFF,Cido,ALEXANDER MANN SOLUTIONS LIMITED,04/12/2023," £4,644.36 ",LAR,80111600,Temporary personnel services
"Department for Levelling Up, Housing and Communities",Homes England,AGENCY STAFF,Cido,ALEXANDER MANN SOLUTIONS LIMITED,04/12/2023," £3,150.30 ",LAR,80111600,Temporary personnel services
"Department for Levelling Up, Housing and Communities",Homes England,AGENCY STAFF,Cido,ALEXANDER MANN SOLUTIONS LIMITED,04/12/2023," £5,113.08 ",LAR,80111600,Temporary personnel services
"Department for Levelling Up, Housing and Communities",Homes England,MISC PROFESSIONAL FEES,Chief Customer Office,ALEXANDER MANN SOLUTIONS LIMITED,04/12/2023," £1,575.12 ",LAR,80111600,Temporary personnel services
"Department for Levelling Up, Housing and Communities",Homes England,MISC PROFESSIONAL FEES,Chief Customer Office,ALEXANDER MANN SOLUTIONS LIMITED,04/12/2023," £2,835.24 ",LAR,80111600,Temporary personnel services
"Department for Levelling Up, Housing and Communities",Homes England,AGENCY STAFF,Cido,ALEXANDER MANN SOLUTIONS LIMITED,04/12/2023," £2,402.14 ",LAR,80111600,Temporary personnel services
"Department for Levelling Up, Housing and Communities",Homes England,AGENCY STAFF,Cido,ALEXANDER MANN SOLUTIONS LIMITED,04/12/2023," £6,930.60 ",LAR,80111600,Temporary personnel services
"Department for Levelling Up, Housing and Communities",Homes England,AGENCY STAFF,Cido,ALEXANDER MANN SOLUTIONS LIMITED,04/12/2023," £3,780.36 ",LAR,80111600,Temporary personnel services
"Department for Levelling Up, Housing and Communities",Homes England,AGENCY STAFF,Cido,ALEXANDER MANN SOLUTIONS LIMITED,04/12/2023," £4,003.56 ",LAR,80111600,Temporary personnel services
"Department for Levelling Up, Housing and Communities",Homes England,MISC PROFESSIONAL FEES,Chief Customer Office,ALEXANDER MANN SOLUTIONS LIMITED,04/12/2023," £1,575.12 ",LAR,80111600,Temporary personnel services
"Department for Levelling Up, Housing and Communities",Homes England,AGENCY STAFF,Cido,ALEXANDER MANN SOLUTIONS LIMITED,04/12/2023," £5,235.42 ",LAR,80111600,Temporary personnel services
"Department for Levelling Up, Housing and Communities",Homes England,MISC PROFESSIONAL FEES,Chief Customer Office,ALEXANDER MANN SOLUTIONS LIMITED,05/12/2023," £3,748.86 ",LAR,80111600,Temporary personnel services
"Department for Levelling Up, Housing and Communities",Homes England,AGENCY STAFF,Chief Customer Office,ALEXANDER MANN SOLUTIONS LIMITED,05/12/2023," £3,465.30 ",LAR,80111600,Temporary personnel services
"Department for Levelling Up, Housing and Communities",Homes England,AGENCY STAFF,Cido,ALEXANDER MANN SOLUTIONS LIMITED,05/12/2023," £10,226.16 ",LAR,80111600,Temporary personnel services
"Department for Levelling Up, Housing and Communities",Homes England,AGENCY STAFF,Cido,ALEXANDER MANN SOLUTIONS LIMITED,05/12/2023," £1,799.81 ",LAR,80111600,Temporary personnel services
"Department for Levelling Up, Housing and Communities",Homes England,AGENCY STAFF,Development,ALEXANDER MANN SOLUTIONS LIMITED,06/12/2023," £3,317.40 ",LAR,80111600,Temporary personnel services
"Department for Levelling Up, Housing and Communities",Homes England,AGENCY STAFF,Development,ALEXANDER MANN SOLUTIONS LIMITED,06/12/2023," £3,317.40 ",LAR,80111600,Temporary personnel services
"Department for Levelling Up, Housing and Communities",Homes England,MISC PROFESSIONAL FEES,Investment,ALEXANDER MANN SOLUTIONS LIMITED,06/12/2023," £2,520.24 ",LAR,80111600,Temporary personnel services
"Department for Levelling Up, Housing and Communities",Homes England,AGENCY STAFF,Development,ALEXANDER MANN SOLUTIONS LIMITED,06/12/2023," £3,317.40 ",LAR,80111600,Temporary personnel services
"Department for Levelling Up, Housing and Communities",Homes England,AGENCY STAFF,Development,ALEXANDER MANN SOLUTIONS LIMITED,06/12/2023," £3,780.36 ",LAR,80111600,Temporary personnel services
"Department for Levelling Up, Housing and Communities",Homes England,MISC PROFESSIONAL FEES,Investment,ALEXANDER MANN SOLUTIONS LIMITED,06/12/2023," £7,056.67 ",LAR,80111600,Temporary personnel services
"Department for Levelling Up, Housing and Communities",Homes England,AGENCY STAFF,Development,ALEXANDER MANN SOLUTIONS LIMITED,06/12/2023," £6,634.80 ",LAR,80111600,Temporary personnel services
"Department for Levelling Up, Housing and Communities",Homes England,AGENCY STAFF,Cido,ALEXANDER MANN SOLUTIONS LIMITED,08/12/2023," £3,749.58 ",LAR,80111600,Temporary personnel services
"Department for Levelling Up, Housing and Communities",Homes England,AGENCY STAFF,Cido,ALEXANDER MANN SOLUTIONS LIMITED,08/12/2023," £2,158.60 ",LAR,80111600,Temporary personnel services
"Department for Levelling Up, Housing and Communities",Homes England,AGENCY STAFF,Cido,ALEXANDER MANN SOLUTIONS LIMITED,08/12/2023," £9,817.09 ",LAR,80111600,Temporary personnel services
"Department for Levelling Up, Housing and Communities",Homes England,AGENCY STAFF,Cido,ALEXANDER MANN SOLUTIONS LIMITED,08/12/2023," £6,930.60 ",LAR,80111600,Temporary personnel services
"Department for Levelling Up, Housing and Communities",Homes England,AGENCY STAFF,Cido,ALEXANDER MANN SOLUTIONS LIMITED,08/12/2023," £3,749.58 ",LAR,80111600,Temporary personnel services
"Department for Levelling Up, Housing and Communities",Homes England,AGENCY STAFF,Chief Risk Officer,ALEXANDER MANN SOLUTIONS LIMITED,11/12/2023," £9,930.42 ",LAR,80111600,Temporary personnel services
"Department for Levelling Up, Housing and Communities",Homes England,AGENCY STAFF,Cido,ALEXANDER MANN SOLUTIONS LIMITED,11/12/2023," £3,238.26 ",LAR,80111600,Temporary personnel services
"Department for Levelling Up, Housing and Communities",Homes England,AGENCY STAFF,Cido,ALEXANDER MANN SOLUTIONS LIMITED,11/12/2023," £4,431.36 ",LAR,80111600,Temporary personnel services
"Department for Levelling Up, Housing and Communities",Homes England,AGENCY STAFF,Cido,ALEXANDER MANN SOLUTIONS LIMITED,11/12/2023," £3,749.58 ",LAR,80111600,Temporary personnel services
"Department for Levelling Up, Housing and Communities",Homes England,AGENCY STAFF,Cido,ALEXANDER MANN SOLUTIONS LIMITED,11/12/2023," £2,999.66 ",LAR,80111600,Temporary personnel services
"Department for Levelling Up, Housing and Communities",Homes England,AGENCY STAFF,Cido,ALEXANDER MANN SOLUTIONS LIMITED,11/12/2023," £4,260.90 ",LAR,80111600,Temporary personnel services
"Department for Levelling Up, Housing and Communities",Homes England,AGENCY STAFF,Cido,ALEXANDER MANN SOLUTIONS LIMITED,11/12/2023," £3,465.30 ",LAR,80111600,Temporary personnel services
"Department for Levelling Up, Housing and Communities",Homes England,MISC PROFESSIONAL FEES,Chief Customer Office,ALEXANDER MANN SOLUTIONS LIMITED,11/12/2023," £3,748.86 ",LAR,80111600,Temporary personnel services
"Department for Levelling Up, Housing and Communities",Homes England,AGENCY STAFF,Cido,ALEXANDER MANN SOLUTIONS LIMITED,11/12/2023," £3,597.66 ",LAR,80111600,Temporary personnel services
"Department for Levelling Up, Housing and Communities",Homes England,AGENCY STAFF,Cido,ALEXANDER MANN SOLUTIONS LIMITED,11/12/2023," £2,999.66 ",LAR,80111600,Temporary personnel services
"Department for Levelling Up, Housing and Communities",Homes England,AGENCY STAFF,Corporate Resources,ALEXANDER MANN SOLUTIONS LIMITED,11/12/2023," £3,317.40 ",LAR,80111600,Temporary personnel services
"Department for Levelling Up, Housing and Communities",Homes England,AGENCY STAFF,Development,ALEXANDER MANN SOLUTIONS LIMITED,11/12/2023," £3,780.36 ",LAR,80111600,Temporary personnel services
"Department for Levelling Up, Housing and Communities",Homes England,AGENCY STAFF,Cido,ALEXANDER MANN SOLUTIONS LIMITED,11/12/2023," £6,918.00 ",LAR,80111600,Temporary personnel services
"Department for Levelling Up, Housing and Communities",Homes England,AGENCY STAFF,Cido,ALEXANDER MANN SOLUTIONS LIMITED,11/12/2023," £3,408.72 ",LAR,80111600,Temporary personnel services
"Department for Levelling Up, Housing and Communities",Homes England,AGENCY STAFF,Cido,ALEXANDER MANN SOLUTIONS LIMITED,11/12/2023," £3,408.72 ",LAR,80111600,Temporary personnel services
"Department for Levelling Up, Housing and Communities",Homes England,AGENCY STAFF,Cido,ALEXANDER MANN SOLUTIONS LIMITED,11/12/2023," £2,322.18 ",LAR,80111600,Temporary personnel services
"Department for Levelling Up, Housing and Communities",Homes England,AGENCY STAFF,Cido,ALEXANDER MANN SOLUTIONS LIMITED,11/12/2023," £3,150.30 ",LAR,80111600,Temporary personnel services
"Department for Levelling Up, Housing and Communities",Homes England,AGENCY STAFF,Chief Executive Office,ALEXANDER MANN SOLUTIONS LIMITED,11/12/2023," £41,294.09 ",LAR,80111600,Temporary personnel services
"Department for Levelling Up, Housing and Communities",Homes England,AGENCY STAFF,Cido,ALEXANDER MANN SOLUTIONS LIMITED,11/12/2023," £6,135.70 ",LAR,80111600,Temporary personnel services
"Department for Levelling Up, Housing and Communities",Homes England,AGENCY STAFF,Cido,ALEXANDER MANN SOLUTIONS LIMITED,11/12/2023," £3,465.30 ",LAR,80111600,Temporary personnel services
"Department for Levelling Up, Housing and Communities",Homes England,AGENCY STAFF,Cido,ALEXANDER MANN SOLUTIONS LIMITED,11/12/2023," £3,202.85 ",LAR,80111600,Temporary personnel services
"Department for Levelling Up, Housing and Communities",Homes England,MISC PROFESSIONAL FEES,Chief Customer Office,ALEXANDER MANN SOLUTIONS LIMITED,12/12/2023," £1,575.12 ",LAR,80111600,Temporary personnel services
"Department for Levelling Up, Housing and Communities",Homes England,STAFF RECRUITMENT COSTS,Chief Customer Office,ALEXANDER MANN SOLUTIONS LIMITED,12/12/2023," £3,383.70 ",LAR,80111700,Temporary personnel services
"Department for Levelling Up, Housing and Communities",Homes England,AGENCY STAFF,Cido,ALEXANDER MANN SOLUTIONS LIMITED,12/12/2023," £7,560.72 ",LAR,80111600,Temporary personnel services
"Department for Levelling Up, Housing and Communities",Homes England,AGENCY STAFF,Cido,ALEXANDER MANN SOLUTIONS LIMITED,13/12/2023," £3,024.29 ",LAR,80111600,Temporary personnel services
"Department for Levelling Up, Housing and Communities",Homes England,MISC PROFESSIONAL FEES,Chief Customer Office,ALEXANDER MANN SOLUTIONS LIMITED,13/12/2023," £2,835.24 ",LAR,80111600,Temporary personnel services
"Department for Levelling Up, Housing and Communities",Homes England,AGENCY STAFF,Cido,ALEXANDER MANN SOLUTIONS LIMITED,13/12/2023," £7,560.72 ",LAR,80111600,Temporary personnel services
"Department for Levelling Up, Housing and Communities",Homes England,AGENCY STAFF,Cido,ALEXANDER MANN SOLUTIONS LIMITED,15/12/2023," £3,465.30 ",LAR,80111600,Temporary personnel services
"Department for Levelling Up, Housing and Communities",Homes England,MISC PROFESSIONAL FEES,Chief Customer Office,ALEXANDER MANN SOLUTIONS LIMITED,15/12/2023," £1,575.12 ",LAR,80111600,Temporary personnel services
"Department for Levelling Up, Housing and Communities",Homes England,MISC PROFESSIONAL FEES,Chief Customer Office,ALEXANDER MANN SOLUTIONS LIMITED,15/12/2023," £1,575.12 ",LAR,80111600,Temporary personnel services
"Department for Levelling Up, Housing and Communities",Homes England,MISC PROFESSIONAL FEES,Chief Customer Office,ALEXANDER MANN SOLUTIONS LIMITED,15/12/2023," £2,835.24 ",LAR,80111600,Temporary personnel services
"Department for Levelling Up, Housing and Communities",Homes England,AGENCY STAFF,Cido,ALEXANDER MANN SOLUTIONS LIMITED,15/12/2023," £10,710.96 ",LAR,80111600,Temporary personnel services
"Department for Levelling Up, Housing and Communities",Homes England,MISC PROFESSIONAL FEES,Chief Customer Office,ALEXANDER MANN SOLUTIONS LIMITED,15/12/2023, £945.07 ,LAR,80111600,Temporary personnel services
"Department for Levelling Up, Housing and Communities",Homes England,MISC PROFESSIONAL FEES,Chief Customer Office,ALEXANDER MANN SOLUTIONS LIMITED,15/12/2023," £1,575.12 ",LAR,80111600,Temporary personnel services
"Department for Levelling Up, Housing and Communities",Homes England,MISC PROFESSIONAL FEES,Chief Customer Office,ALEXANDER MANN SOLUTIONS LIMITED,15/12/2023," £1,575.12 ",LAR,80111600,Temporary personnel services
"Department for Levelling Up, Housing and Communities",Homes England,AGENCY STAFF,Development,ALEXANDER MANN SOLUTIONS LIMITED,18/12/2023," £5,851.38 ",LAR,80111600,Temporary personnel services
"Department for Levelling Up, Housing and Communities",Homes England,AGENCY STAFF,Development,ALEXANDER MANN SOLUTIONS LIMITED,18/12/2023," £11,702.76 ",LAR,80111600,Temporary personnel services
"Department for Levelling Up, Housing and Communities",Homes England,AGENCY STAFF,Development,ALEXANDER MANN SOLUTIONS LIMITED,18/12/2023," £5,851.38 ",LAR,80111600,Temporary personnel services
"Department for Levelling Up, Housing and Communities",Homes England,AGENCY STAFF,Development,ALEXANDER MANN SOLUTIONS LIMITED,18/12/2023," £5,851.38 ",LAR,80111600,Temporary personnel services
"Department for Levelling Up, Housing and Communities",Homes England,AGENCY STAFF,Development,ALEXANDER MANN SOLUTIONS LIMITED,18/12/2023," £5,851.38 ",LAR,80111600,Temporary personnel services
"Department for Levelling Up, Housing and Communities",Homes England,AGENCY STAFF,Cido,ALEXANDER MANN SOLUTIONS LIMITED,18/12/2023," £3,238.26 ",LAR,80111600,Temporary personnel services
"Department for Levelling Up, Housing and Communities",Homes England,AGENCY STAFF,Cido,ALEXANDER MANN SOLUTIONS LIMITED,18/12/2023," £3,749.58 ",LAR,80111600,Temporary personnel services
"Department for Levelling Up, Housing and Communities",Homes England,AGENCY STAFF,Cido,ALEXANDER MANN SOLUTIONS LIMITED,18/12/2023," £2,999.66 ",LAR,80111600,Temporary personnel services
"Department for Levelling Up, Housing and Communities",Homes England,AGENCY STAFF,Cido,ALEXANDER MANN SOLUTIONS LIMITED,18/12/2023," £4,260.90 ",LAR,80111600,Temporary personnel services
"Department for Levelling Up, Housing and Communities",Homes England,AGENCY STAFF,Cido,ALEXANDER MANN SOLUTIONS LIMITED,18/12/2023," £3,465.30 ",LAR,80111600,Temporary personnel services
"Department for Levelling Up, Housing and Communities",Homes England,AGENCY STAFF,Cido,ALEXANDER MANN SOLUTIONS LIMITED,18/12/2023," £3,597.66 ",LAR,80111600,Temporary personnel services
"Department for Levelling Up, Housing and Communities",Homes England,AGENCY STAFF,Development,ALEXANDER MANN SOLUTIONS LIMITED,18/12/2023," £5,851.38 ",LAR,80111600,Temporary personnel services
"Department for Levelling Up, Housing and Communities",Homes England,AGENCY STAFF,Cido,ALEXANDER MANN SOLUTIONS LIMITED,18/12/2023," £3,374.63 ",LAR,80111600,Temporary personnel services
"Department for Levelling Up, Housing and Communities",Homes England,AGENCY STAFF,Corporate Resources,ALEXANDER MANN SOLUTIONS LIMITED,18/12/2023," £3,317.40 ",LAR,80111600,Temporary personnel services
"Department for Levelling Up, Housing and Communities",Homes England,AGENCY STAFF,Cido,ALEXANDER MANN SOLUTIONS LIMITED,18/12/2023," £3,459.00 ",LAR,80111600,Temporary personnel services
"Department for Levelling Up, Housing and Communities",Homes England,AGENCY STAFF,Chief Customer Office,ALEXANDER MANN SOLUTIONS LIMITED,18/12/2023," £3,465.30 ",LAR,80111600,Temporary personnel services
"Department for Levelling Up, Housing and Communities",Homes England,AGENCY STAFF,Chief Customer Office,ALEXANDER MANN SOLUTIONS LIMITED,18/12/2023," £3,465.30 ",LAR,80111600,Temporary personnel services
"Department for Levelling Up, Housing and Communities",Homes England,AGENCY STAFF,Cido,ALEXANDER MANN SOLUTIONS LIMITED,18/12/2023," £4,536.43 ",LAR,80111600,Temporary personnel services
"Department for Levelling Up, Housing and Communities",Homes England,AGENCY STAFF,Cido,ALEXANDER MANN SOLUTIONS LIMITED,18/12/2023," £2,322.18 ",LAR,80111600,Temporary personnel services
"Department for Levelling Up, Housing and Communities",Homes England,MISC PROFESSIONAL FEES,Investment,ALEXANDER MANN SOLUTIONS LIMITED,18/12/2023," £2,016.19 ",LAR,80111600,Temporary personnel services
"Department for Levelling Up, Housing and Communities",Homes England,AGENCY STAFF,Cido,ALEXANDER MANN SOLUTIONS LIMITED,18/12/2023," £3,150.30 ",LAR,80111600,Temporary personnel services
"Department for Levelling Up, Housing and Communities",Homes England,AGENCY STAFF,Chief Executive Office,ALEXANDER MANN SOLUTIONS LIMITED,18/12/2023," £9,716.26 ",LAR,80111600,Temporary personnel services
"Department for Levelling Up, Housing and Communities",Homes England,AGENCY STAFF,Cido,ALEXANDER MANN SOLUTIONS LIMITED,18/12/2023," £5,113.08 ",LAR,80111600,Temporary personnel services
"Department for Levelling Up, Housing and Communities",Homes England,MISC PROFESSIONAL FEES,Chief Customer Office,ALEXANDER MANN SOLUTIONS LIMITED,18/12/2023," £2,835.24 ",LAR,80111600,Temporary personnel services
"Department for Levelling Up, Housing and Communities",Homes England,AGENCY STAFF,Cido,ALEXANDER MANN SOLUTIONS LIMITED,18/12/2023," £6,405.70 ",LAR,80111600,Temporary personnel services
"Department for Levelling Up, Housing and Communities",Homes England,AGENCY STAFF,Cido,ALEXANDER MANN SOLUTIONS LIMITED,18/12/2023," £3,465.30 ",LAR,80111600,Temporary personnel services
"Department for Levelling Up, Housing and Communities",Homes England,AGENCY STAFF,Cido,ALEXANDER MANN SOLUTIONS LIMITED,18/12/2023," £4,003.56 ",LAR,80111600,Temporary personnel services
"Department for Levelling Up, Housing and Communities",Homes England,AGENCY STAFF,Cido,ALEXANDER MANN SOLUTIONS LIMITED,18/12/2023," £10,470.84 ",LAR,80111600,Temporary personnel services
"Department for Levelling Up, Housing and Communities",Homes England,AGENCY STAFF,Chief Risk Officer,ALEXANDER MANN SOLUTIONS LIMITED,19/12/2023," £9,930.42 ",LAR,80111600,Temporary personnel services
"Department for Levelling Up, Housing and Communities",Homes England,AGENCY STAFF,Cido,ALEXANDER MANN SOLUTIONS LIMITED,19/12/2023," £3,024.29 ",LAR,80111600,Temporary personnel services
"Department for Levelling Up, Housing and Communities",Homes England,AGENCY STAFF,Cido,ALEXANDER MANN SOLUTIONS LIMITED,19/12/2023," £3,408.72 ",LAR,80111600,Temporary personnel services
"Department for Levelling Up, Housing and Communities",Homes England,AGENCY STAFF,Cido,ALEXANDER MANN SOLUTIONS LIMITED,19/12/2023," £7,499.16 ",LAR,80111600,Temporary personnel services
"Department for Levelling Up, Housing and Communities",Homes England,STAFF RECRUITMENT COSTS,Investment,ALEXANDER MANN SOLUTIONS LIMITED,20/12/2023," £4,410.42 ",LAR,80111700,Temporary personnel services
"Department for Levelling Up, Housing and Communities",Homes England,STAFF RECRUITMENT COSTS,Investment,ALEXANDER MANN SOLUTIONS LIMITED,20/12/2023," £4,410.42 ",LAR,80111700,Temporary personnel services
"Department for Levelling Up, Housing and Communities",Homes England,MISC PROFESSIONAL FEES,Investment,ALEXANDER MANN SOLUTIONS LIMITED,20/12/2023," £5,544.48 ",LAR,80111600,Temporary personnel services
"Department for Levelling Up, Housing and Communities",Homes England,MISC PROFESSIONAL FEES,Chief Customer Office,ALEXANDER MANN SOLUTIONS LIMITED,20/12/2023," £3,748.86 ",LAR,80111600,Temporary personnel services
"Department for Levelling Up, Housing and Communities",Homes England,AGENCY STAFF,Development,ALEXANDER MANN SOLUTIONS LIMITED,20/12/2023," £11,341.08 ",LAR,80111600,Temporary personnel services
"Department for Levelling Up, Housing and Communities",Homes England,STAFF RECRUITMENT COSTS,Investment,ALEXANDER MANN SOLUTIONS LIMITED,20/12/2023," £4,410.42 ",LAR,80111700,Temporary personnel services
"Department for Levelling Up, Housing and Communities",Homes England,MISC PROFESSIONAL FEES,Investment,ALEXANDER MANN SOLUTIONS LIMITED,20/12/2023," £3,465.30 ",LAR,80111600,Temporary personnel services
"Department for Levelling Up, Housing and Communities",Homes England,AGENCY STAFF,Development,ALEXANDER MANN SOLUTIONS LIMITED,20/12/2023," £2,985.66 ",LAR,80111600,Temporary personnel services
"Department for Levelling Up, Housing and Communities",Homes England,MISC PROFESSIONAL FEES,Chief Customer Office,ALEXANDER MANN SOLUTIONS LIMITED,21/12/2023," £1,575.12 ",LAR,80111600,Temporary personnel services
"Department for Levelling Up, Housing and Communities",Homes England,MISC PROFESSIONAL FEES,Chief Customer Office,ALEXANDER MANN SOLUTIONS LIMITED,21/12/2023," £2,268.19 ",LAR,80111600,Temporary personnel services
"Department for Levelling Up, Housing and Communities",Homes England,STAFF RECRUITMENT COSTS,Chief Customer Office,ALEXANDER MANN SOLUTIONS LIMITED,21/12/2023," £6,767.40 ",LAR,80111700,Temporary personnel services
"Department for Levelling Up, Housing and Communities",Homes England,MISC PROFESSIONAL FEES,Chief Customer Office,ALEXANDER MANN SOLUTIONS LIMITED,21/12/2023," £1,575.12 ",LAR,80111600,Temporary personnel services
"Department for Levelling Up, Housing and Communities",Homes England,MISC PROFESSIONAL FEES,Chief Customer Office,ALEXANDER MANN SOLUTIONS LIMITED,21/12/2023," £1,575.12 ",LAR,80111600,Temporary personnel services
"Department for Levelling Up, Housing and Communities",Homes England,MISC PROFESSIONAL FEES,Chief Customer Office,ALEXANDER MANN SOLUTIONS LIMITED,21/12/2023," £3,150.24 ",LAR,80111600,Temporary personnel services
"Department for Levelling Up, Housing and Communities",Homes England,AGENCY STAFF,Cido,ALEXANDER MANN SOLUTIONS LIMITED,22/12/2023," £3,024.29 ",LAR,80111600,Temporary personnel services
"Department for Levelling Up, Housing and Communities",Homes England,AGENCY STAFF,Cido,ALEXANDER MANN SOLUTIONS LIMITED,22/12/2023," £3,465.30 ",LAR,80111600,Temporary personnel services
"Department for Levelling Up, Housing and Communities",Homes England,AGENCY STAFF,Cido,ALEXANDER MANN SOLUTIONS LIMITED,22/12/2023," £3,597.66 ",LAR,80111600,Temporary personnel services
"Department for Levelling Up, Housing and Communities",Homes England,AGENCY STAFF,Cido,ALEXANDER MANN SOLUTIONS LIMITED,22/12/2023," £4,032.38 ",LAR,80111600,Temporary personnel services
"Department for Levelling Up, Housing and Communities",Homes England,STAFF RECRUITMENT COSTS,Investment,ALEXANDER MANN SOLUTIONS LIMITED,22/12/2023," £4,410.42 ",LAR,80111700,Temporary personnel services
"Department for Levelling Up, Housing and Communities",Homes England,MISC PROFESSIONAL FEES,Investment,ALEXANDER MANN SOLUTIONS LIMITED,22/12/2023," £3,465.30 ",LAR,80111600,Temporary personnel services
"Department for Levelling Up, Housing and Communities",Homes England,AGENCY STAFF,Cido,ALEXANDER MANN SOLUTIONS LIMITED,22/12/2023," £3,465.30 ",LAR,80111600,Temporary personnel services
"Department for Levelling Up, Housing and Communities",Homes England,AGENCY STAFF,Cido,ALEXANDER MANN SOLUTIONS LIMITED,22/12/2023," £6,804.65 ",LAR,80111600,Temporary personnel services
"Department for Levelling Up, Housing and Communities",Homes England,MISC PROFESSIONAL FEES,Sras,ALMA ECONOMICS LIMITED,11/12/2023," £16,014.00 ",MIC,80131800,Real estate management services
"Department for Levelling Up, Housing and Communities",Homes England,MISC PROFESSIONAL FEES,Sras,ALMA ECONOMICS LIMITED,12/12/2023," £16,014.00 ",MIC,80131800,Real estate management services
"Department for Levelling Up, Housing and Communities",Homes England,ESTATE GENERAL MAINTENANCE,Development,AGA GROUP ENVIRO-FIX LIMITED,06/12/2023, £540.00 ,SMA,72101500,Building maintenance and repair services
"Department for Levelling Up, Housing and Communities",Homes England,CAR LEASING - HIRE CHARGES,Corporate Allocations,ARVAL UK LIMITED,05/12/2023, £196.44 ,LAR,25101500,Passenger motor vehicles
"Department for Levelling Up, Housing and Communities",Homes England,CAR LEASING - HIRE CHARGES,Corporate Allocations,ARVAL UK LIMITED,05/12/2023, £272.47 ,LAR,25101500,Passenger motor vehicles
"Department for Levelling Up, Housing and Communities",Homes England,CAR LEASING - HIRE CHARGES,Corporate Allocations,ARVAL UK LIMITED,05/12/2023, £165.12 ,LAR,25101500,Passenger motor vehicles
"Department for Levelling Up, Housing and Communities",Homes England,CAR LEASING - HIRE CHARGES,Corporate Allocations,ARVAL UK LIMITED,05/12/2023, £224.97 ,LAR,25101500,Passenger motor vehicles
"Department for Levelling Up, Housing and Communities",Homes England,CAR LEASING - HIRE CHARGES,Corporate Allocations,ARVAL UK LIMITED,05/12/2023, £183.42 ,LAR,25101500,Passenger motor vehicles
"Department for Levelling Up, Housing and Communities",Homes England,CAR LEASING - HIRE CHARGES,Corporate Allocations,ARVAL UK LIMITED,05/12/2023, £248.68 ,LAR,25101500,Passenger motor vehicles
"Department for Levelling Up, Housing and Communities",Homes England,CAR LEASING - HIRE CHARGES,Corporate Allocations,ARVAL UK LIMITED,05/12/2023, £196.82 ,LAR,25101500,Passenger motor vehicles
"Department for Levelling Up, Housing and Communities",Homes England,CAR LEASING - HIRE CHARGES,Corporate Allocations,ARVAL UK LIMITED,05/12/2023, £262.07 ,LAR,25101500,Passenger motor vehicles
"Department for Levelling Up, Housing and Communities",Homes England,CAR LEASING - HIRE CHARGES,Corporate Allocations,ARVAL UK LIMITED,05/12/2023, £175.78 ,LAR,25101500,Passenger motor vehicles
"Department for Levelling Up, Housing and Communities",Homes England,CAR LEASING - HIRE CHARGES,Corporate Allocations,ARVAL UK LIMITED,05/12/2023, £262.62 ,LAR,25101500,Passenger motor vehicles
"Department for Levelling Up, Housing and Communities",Homes England,CAR LEASING - HIRE CHARGES,Corporate Allocations,ARVAL UK LIMITED,05/12/2023, £102.12 ,LAR,25101500,Passenger motor vehicles
"Department for Levelling Up, Housing and Communities",Homes England,CAR LEASING - HIRE CHARGES,Corporate Allocations,ARVAL UK LIMITED,05/12/2023, £168.24 ,LAR,25101500,Passenger motor vehicles
"Department for Levelling Up, Housing and Communities",Homes England,CAR LEASING - HIRE CHARGES,Corporate Allocations,ARVAL UK LIMITED,05/12/2023, £130.99 ,LAR,25101500,Passenger motor vehicles
"Department for Levelling Up, Housing and Communities",Homes England,CAR LEASING - HIRE CHARGES,Corporate Allocations,ARVAL UK LIMITED,05/12/2023, £184.40 ,LAR,25101500,Passenger motor vehicles
"Department for Levelling Up, Housing and Communities",Homes England,CAR LEASING - HIRE CHARGES,Corporate Allocations,ARVAL UK LIMITED,06/12/2023, £127.58 ,LAR,25101500,Passenger motor vehicles
"Department for Levelling Up, Housing and Communities",Homes England,CAR LEASING - HIRE CHARGES,Corporate Allocations,ARVAL UK LIMITED,06/12/2023, £180.51 ,LAR,25101500,Passenger motor vehicles
"Department for Levelling Up, Housing and Communities",Homes England,CAR LEASING - HIRE CHARGES,Corporate Allocations,ARVAL UK LIMITED,06/12/2023, £50.11 ,LAR,25101500,Passenger motor vehicles
"Department for Levelling Up, Housing and Communities",Homes England,CAR LEASING - HIRE CHARGES,Corporate Allocations,ARVAL UK LIMITED,06/12/2023, £388.44 ,LAR,25101500,Passenger motor vehicles
"Department for Levelling Up, Housing and Communities",Homes England,CONTRACT WORKS,Development,A BUCKLER (HAULAGE) LTD,04/12/2023," £64,582.32 ",SMA,72141500,Land preparation services
"Department for Levelling Up, Housing and Communities",Homes England,AGENCY STAFF,Chief Customer Office,ALLEN LANE LIMITED,01/12/2023," £2,640.00 ",LAR,80111600,Temporary personnel services
"Department for Levelling Up, Housing and Communities",Homes England,AGENCY STAFF,Chief Customer Office,ALLEN LANE LIMITED,01/12/2023," £7,590.00 ",LAR,80111600,Temporary personnel services
"Department for Levelling Up, Housing and Communities",Homes England,AGENCY STAFF,Chief Customer Office,ALLEN LANE LIMITED,01/12/2023," £3,795.00 ",LAR,80111600,Temporary personnel services
"Department for Levelling Up, Housing and Communities",Homes England,AGENCY STAFF,Chief Customer Office,ALLEN LANE LIMITED,01/12/2023," £4,547.64 ",LAR,80111600,Temporary personnel services
"Department for Levelling Up, Housing and Communities",Homes England,AGENCY STAFF,Chief Customer Office,ALLEN LANE LIMITED,12/12/2023," £2,640.00 ",LAR,80111600,Temporary personnel services
"Department for Levelling Up, Housing and Communities",Homes England,AGENCY STAFF,Chief Customer Office,ALLEN LANE LIMITED,12/12/2023," £10,164.00 ",LAR,80111600,Temporary personnel services
"Department for Levelling Up, Housing and Communities",Homes England,AGENCY STAFF,Chief Customer Office,ALLEN LANE LIMITED,12/12/2023," £3,795.00 ",LAR,80111600,Temporary personnel services
"Department for Levelling Up, Housing and Communities",Homes England,AGENCY STAFF,Chief Customer Office,ALLEN LANE LIMITED,12/12/2023," £3,795.00 ",LAR,80111600,Temporary personnel services
"Department for Levelling Up, Housing and Communities",Homes England,AGENCY STAFF,Chief Customer Office,ALLEN LANE LIMITED,12/12/2023," £4,306.32 ",LAR,80111600,Temporary personnel services
"Department for Levelling Up, Housing and Communities",Homes England,AGENCY STAFF,Chief Customer Office,ALLEN LANE LIMITED,13/12/2023," £3,795.00 ",LAR,80111600,Temporary personnel services
"Department for Levelling Up, Housing and Communities",Homes England,AGENCY STAFF,Chief Customer Office,ALLEN LANE LIMITED,13/12/2023," £3,720.00 ",LAR,80111600,Temporary personnel services
"Department for Levelling Up, Housing and Communities",Homes England,AGENCY STAFF,Chief Customer Office,ALLEN LANE LIMITED,18/12/2023," £1,980.00 ",LAR,80111600,Temporary personnel services
"Department for Levelling Up, Housing and Communities",Homes England,AGENCY STAFF,Chief Customer Office,ALLEN LANE LIMITED,18/12/2023," £3,795.00 ",LAR,80111600,Temporary personnel services
"Department for Levelling Up, Housing and Communities",Homes England,AGENCY STAFF,Chief Customer Office,ALLEN LANE LIMITED,18/12/2023," £3,795.00 ",LAR,80111600,Temporary personnel services
"Department for Levelling Up, Housing and Communities",Homes England,AGENCY STAFF,Chief Customer Office,ALLEN LANE LIMITED,22/12/2023," £2,640.00 ",LAR,80111600,Temporary personnel services
"Department for Levelling Up, Housing and Communities",Homes England,AGENCY STAFF,Chief Customer Office,ALLEN LANE LIMITED,22/12/2023," £3,036.00 ",LAR,80111600,Temporary personnel services
"Department for Levelling Up, Housing and Communities",Homes England,AGENCY STAFF,Chief Customer Office,ALLEN LANE LIMITED,22/12/2023," £3,795.00 ",LAR,80111600,Temporary personnel services
"Department for Levelling Up, Housing and Communities",Homes England,AGENCY STAFF,Chief Customer Office,ALLEN LANE LIMITED,22/12/2023," £3,795.00 ",LAR,80111600,Temporary personnel services
"Department for Levelling Up, Housing and Communities",Homes England,AGENCY STAFF,Chief Customer Office,ALLEN LANE LIMITED,22/12/2023," £2,640.00 ",LAR,80111600,Temporary personnel services
"Department for Levelling Up, Housing and Communities",Homes England,ESTATE GENERAL MAINTENANCE,Development,AIREDALE FORESTRY,04/12/2023, £653.28 ,SMA,72101500,Building maintenance and repair services
"Department for Levelling Up, Housing and Communities",Homes England,ESTATE GENERAL MAINTENANCE,Development,AIREDALE FORESTRY,07/12/2023, £439.44 ,SMA,72101500,Building maintenance and repair services
"Department for Levelling Up, Housing and Communities",Homes England,ESTATE GENERAL MAINTENANCE,Development,AIREDALE FORESTRY,07/12/2023, £292.55 ,SMA,72101500,Building maintenance and repair services
"Department for Levelling Up, Housing and Communities",Homes England,LUHBF Loans Additions,Investment,APPERLEY VIEW LTD,07/12/2023," £149,367.84 ",MIC,None,Loans
"Department for Levelling Up, Housing and Communities",Homes England,BESPOKE DEVELOPMENT SUPPORT,Cido,ASSIST KNOWLEDGE DEVELOPMENT LTD,01/12/2023, £300.00 ,SMA,94101600,Professional associations
"Department for Levelling Up, Housing and Communities",Homes England,BESPOKE DEVELOPMENT SUPPORT,Cido,ASSIST KNOWLEDGE DEVELOPMENT LTD,01/12/2023," £3,013.20 ",SMA,86101800,In service training and manpower development
"Department for Levelling Up, Housing and Communities",Homes England,L&OD STRATEGIC - HR USE ONLY,Chief Operating Officer,ASSIST KNOWLEDGE DEVELOPMENT LTD,19/12/2023, £300.00 ,SMA,86101800,In service training and manpower development
"Department for Levelling Up, Housing and Communities",Homes England,LEGAL FEES (PROGRAMME - CDEL),"Markets, Partners & Places",ASHFORDS,15/12/2023," £8,400.00 ",LAR,80121600,Business law services
"Department for Levelling Up, Housing and Communities",Homes England,LEGAL FEES (PROGRAMME - RDEL),Investment,ASHFORDS,21/12/2023, £900.00 ,LAR,80121600,Business law services
"Department for Levelling Up, Housing and Communities",Homes England,MISC PROFESSIONAL FEES,Development,DESIGN MIDLANDS LIMITED,04/12/2023," £6,000.00 ",SMA,80131800,Real estate management services
"Department for Levelling Up, Housing and Communities",Homes England,MASTERPLANNING FEES,Development,DESIGN MIDLANDS LIMITED,19/12/2023," £2,400.00 ",SMA,81101500,Civil Engineering
"Department for Levelling Up, Housing and Communities",Homes England,OTHER PROFESSIONAL FEES,Development,DESIGN MIDLANDS LIMITED,22/12/2023," £2,400.00 ",SMA,80131800,Real estate management services
"Department for Levelling Up, Housing and Communities",Homes England,CAR LEASING - HIRE CHARGES,Corporate Allocations,ARNOLD CLARK FINANCE LIMITED,06/12/2023,-£726.07 ,LAR,25101500,Passenger motor vehicles
"Department for Levelling Up, Housing and Communities",Homes England,CAR LEASING - HIRE CHARGES,Corporate Allocations,ARNOLD CLARK FINANCE LIMITED,06/12/2023,-£574.33 ,LAR,25101500,Passenger motor vehicles
"Department for Levelling Up, Housing and Communities",Homes England,CAR LEASING - HIRE CHARGES,Corporate Allocations,ARNOLD CLARK FINANCE LIMITED,06/12/2023, £175.21 ,LAR,25101500,Passenger motor vehicles
"Department for Levelling Up, Housing and Communities",Homes England,CAR LEASING - HIRE CHARGES,Corporate Allocations,ARNOLD CLARK FINANCE LIMITED,06/12/2023, £207.56 ,LAR,25101500,Passenger motor vehicles
"Department for Levelling Up, Housing and Communities",Homes England,CAR LEASING - HIRE CHARGES,Corporate Allocations,ARNOLD CLARK FINANCE LIMITED,06/12/2023, £236.67 ,LAR,25101500,Passenger motor vehicles
"Department for Levelling Up, Housing and Communities",Homes England,CAR LEASING - HIRE CHARGES,Corporate Allocations,ARNOLD CLARK FINANCE LIMITED,06/12/2023, £285.78 ,LAR,25101500,Passenger motor vehicles
"Department for Levelling Up, Housing and Communities",Homes England,CAR LEASING - HIRE CHARGES,Corporate Allocations,ARNOLD CLARK FINANCE LIMITED,06/12/2023, £162.29 ,LAR,25101500,Passenger motor vehicles
"Department for Levelling Up, Housing and Communities",Homes England,CAR LEASING - HIRE CHARGES,Corporate Allocations,ARNOLD CLARK FINANCE LIMITED,06/12/2023, £233.69 ,LAR,25101500,Passenger motor vehicles
"Department for Levelling Up, Housing and Communities",Homes England,CAR LEASING - HIRE CHARGES,Corporate Allocations,ARNOLD CLARK FINANCE LIMITED,06/12/2023, £370.59 ,LAR,25101500,Passenger motor vehicles
"Department for Levelling Up, Housing and Communities",Homes England,CAR LEASING - HIRE CHARGES,Corporate Allocations,ARNOLD CLARK FINANCE LIMITED,21/12/2023,"-£1,616.12 ",LAR,25101500,Passenger motor vehicles
"Department for Levelling Up, Housing and Communities",Homes England,CAR LEASING - HIRE CHARGES,Corporate Allocations,ARNOLD CLARK FINANCE LIMITED,21/12/2023,"-£1,212.40 ",LAR,25101500,Passenger motor vehicles
"Department for Levelling Up, Housing and Communities",Homes England,CAR LEASING - HIRE CHARGES,Corporate Allocations,ARNOLD CLARK FINANCE LIMITED,21/12/2023, £37.54 ,LAR,25101500,Passenger motor vehicles
"Department for Levelling Up, Housing and Communities",Homes England,CAR LEASING - HIRE CHARGES,Corporate Allocations,ARNOLD CLARK FINANCE LIMITED,21/12/2023, £274.75 ,LAR,25101500,Passenger motor vehicles
"Department for Levelling Up, Housing and Communities",Homes England,CAR LEASING - HIRE CHARGES,Corporate Allocations,ARNOLD CLARK FINANCE LIMITED,21/12/2023, £191.18 ,LAR,25101500,Passenger motor vehicles
"Department for Levelling Up, Housing and Communities",Homes England,CAR LEASING - HIRE CHARGES,Corporate Allocations,ARNOLD CLARK FINANCE LIMITED,21/12/2023, £217.98 ,LAR,25101500,Passenger motor vehicles
"Department for Levelling Up, Housing and Communities",Homes England,CAR LEASING - HIRE CHARGES,Corporate Allocations,ARNOLD CLARK FINANCE LIMITED,21/12/2023, £189.65 ,LAR,25101500,Passenger motor vehicles
"Department for Levelling Up, Housing and Communities",Homes England,CAR LEASING - HIRE CHARGES,Corporate Allocations,ARNOLD CLARK FINANCE LIMITED,21/12/2023, £231.76 ,LAR,25101500,Passenger motor vehicles
"Department for Levelling Up, Housing and Communities",Homes England,CAR LEASING - HIRE CHARGES,Corporate Allocations,ARNOLD CLARK FINANCE LIMITED,21/12/2023, £20.94 ,LAR,25101500,Passenger motor vehicles
"Department for Levelling Up, Housing and Communities",Homes England,CAR LEASING - HIRE CHARGES,Corporate Allocations,ARNOLD CLARK FINANCE LIMITED,21/12/2023, £365.20 ,LAR,25101500,Passenger motor vehicles
"Department for Levelling Up, Housing and Communities",Homes England,CAR LEASING - HIRE CHARGES,Corporate Allocations,ARNOLD CLARK FINANCE LIMITED,21/12/2023, £41.93 ,LAR,25101500,Passenger motor vehicles
"Department for Levelling Up, Housing and Communities",Homes England,CAR LEASING - HIRE CHARGES,Corporate Allocations,ARNOLD CLARK FINANCE LIMITED,21/12/2023, £461.78 ,LAR,25101500,Passenger motor vehicles
"Department for Levelling Up, Housing and Communities",Homes England,CAR LEASING - HIRE CHARGES,Corporate Allocations,ARNOLD CLARK FINANCE LIMITED,21/12/2023," £2,463.05 ",LAR,25101500,Passenger motor vehicles
"Department for Levelling Up, Housing and Communities",Homes England,CAR LEASING - HIRE CHARGES,Corporate Allocations,ARNOLD CLARK FINANCE LIMITED,21/12/2023," £3,139.85 ",LAR,25101500,Passenger motor vehicles
"Department for Levelling Up, Housing and Communities",Homes England,MANAGEMENT COSTS,Development,AutoKare Cambridge,01/12/2023, £933.00 ,SMA,80131800,Real estate management services
"Department for Levelling Up, Housing and Communities",Homes England,PENSION SCHEME FEES,Chief Operating Officer,Aviva Life Services UK Limited,21/12/2023," £16,500.00 ",LAR,84131700,Pension funds
"Department for Levelling Up, Housing and Communities",Homes England,PROF FEES LOANS CAPITALISED,Investment,BERWIN LEIGHTON PAISNER,01/12/2023," £44,167.20 ",LAR,80121600,Business law services
"Department for Levelling Up, Housing and Communities",Homes England,LEGAL FEES (PROGRAMME - CDEL),Development,BERWIN LEIGHTON PAISNER,12/12/2023,"-£2,920.80 ",LAR,80121600,Business law services
"Department for Levelling Up, Housing and Communities",Homes England,LEGAL FEES (PROGRAMME - RDEL),Development,BERWIN LEIGHTON PAISNER,12/12/2023,"-£6,798.60 ",LAR,80121600,Business law services
"Department for Levelling Up, Housing and Communities",Homes England,LEGAL FEES (PROGRAMME - RDEL),Investment,BERWIN LEIGHTON PAISNER,12/12/2023," £1,800.00 ",LAR,80121600,Business law services
"Department for Levelling Up, Housing and Communities",Homes England,LEGAL FEES (PROGRAMME - RDEL),Investment,BERWIN LEIGHTON PAISNER,12/12/2023," £4,909.80 ",LAR,80121600,Business law services
"Department for Levelling Up, Housing and Communities",Homes England,LEGAL FEES (PROGRAMME - RDEL),Investment,BERWIN LEIGHTON PAISNER,12/12/2023," £4,500.00 ",LAR,80121600,Business law services
"Department for Levelling Up, Housing and Communities",Homes England,LEGAL FEES (PROGRAMME - RDEL),Development,BERWIN LEIGHTON PAISNER,15/12/2023," £6,995.04 ",LAR,80121600,Business law services
"Department for Levelling Up, Housing and Communities",Homes England,LEGAL FEES (PROGRAMME - CDEL),Development,BERWIN LEIGHTON PAISNER,18/12/2023," £23,952.00 ",LAR,80121600,Business law services
"Department for Levelling Up, Housing and Communities",Homes England,LEGAL FEES (PROGRAMME - RDEL),Investment,BERWIN LEIGHTON PAISNER,18/12/2023," £3,900.00 ",LAR,80121600,Business law services
"Department for Levelling Up, Housing and Communities",Homes England,PROF FEES LOANS CAPITALISED,Investment,BERWIN LEIGHTON PAISNER,19/12/2023," £3,832.80 ",LAR,80121600,Business law services
"Department for Levelling Up, Housing and Communities",Homes England,LEGAL FEES (PROGRAMME - RDEL),Development,BERWIN LEIGHTON PAISNER,20/12/2023," £37,200.00 ",LAR,80121600,Business law services
"Department for Levelling Up, Housing and Communities",Homes England,DISPOSAL FEES - LEGAL,"Markets, Partners & Places",BERWIN LEIGHTON PAISNER,21/12/2023," £2,734.80 ",LAR,80121600,Business law services
"Department for Levelling Up, Housing and Communities",Homes England,MISC PROFESSIONAL FEES,Investment,BROWNE JACOBSON LLP,01/12/2023, £480.00 ,LAR,80121600,Business law services
"Department for Levelling Up, Housing and Communities",Homes England,LEGAL FEES (PROGRAMME - RDEL),Development,BROWNE JACOBSON LLP,04/12/2023, £45.00 ,LAR,80121600,Business law services
"Department for Levelling Up, Housing and Communities",Homes England,LEGAL FEES (PROGRAMME - RDEL),Development,BROWNE JACOBSON LLP,04/12/2023," £2,400.00 ",LAR,80121600,Business law services
"Department for Levelling Up, Housing and Communities",Homes England,LEGAL FEES (PROGRAMME - RDEL),"Markets, Partners & Places",BROWNE JACOBSON LLP,04/12/2023," £3,600.00 ",LAR,80121600,Business law services
"Department for Levelling Up, Housing and Communities",Homes England,LEGAL FEES (PROGRAMME - RDEL),Development,BROWNE JACOBSON LLP,04/12/2023," £5,391.19 ",LAR,80121600,Business law services
"Department for Levelling Up, Housing and Communities",Homes England,LEGAL FEES (PROGRAMME - RDEL),Investment,BROWNE JACOBSON LLP,05/12/2023, £960.00 ,LAR,80121600,Business law services
"Department for Levelling Up, Housing and Communities",Homes England,LEGAL FEES (PROGRAMME - RDEL),"Markets, Partners & Places",BROWNE JACOBSON LLP,06/12/2023," £3,247.20 ",LAR,80121600,Business law services
"Department for Levelling Up, Housing and Communities",Homes England,DISPOSAL FEES - LEGAL,Development,BROWNE JACOBSON LLP,07/12/2023," £18,017.71 ",LAR,80121600,Business law services
"Department for Levelling Up, Housing and Communities",Homes England,LEGAL FEES (PROGRAMME - RDEL),"Markets, Partners & Places",BROWNE JACOBSON LLP,07/12/2023," £1,800.00 ",LAR,80121600,Business law services
"Department for Levelling Up, Housing and Communities",Homes England,LEGAL FEES (PROGRAMME - RDEL),"Markets, Partners & Places",BROWNE JACOBSON LLP,07/12/2023," £2,880.00 ",LAR,80121600,Business law services
"Department for Levelling Up, Housing and Communities",Homes England,LEGAL FEES (PROGRAMME - RDEL),"Markets, Partners & Places",BROWNE JACOBSON LLP,07/12/2023," £1,440.00 ",LAR,80121600,Business law services
"Department for Levelling Up, Housing and Communities",Homes England,LEGAL FEES (PROGRAMME - RDEL),Development,BROWNE JACOBSON LLP,08/12/2023," £19,191.97 ",LAR,80121600,Business law services
"Department for Levelling Up, Housing and Communities",Homes England,MISC PROFESSIONAL FEES,Development,BROWNE JACOBSON LLP,11/12/2023," £3,764.35 ",LAR,80121600,Business law services
"Department for Levelling Up, Housing and Communities",Homes England,MISC PROFESSIONAL FEES,Development,BROWNE JACOBSON LLP,11/12/2023," £3,712.70 ",LAR,80121600,Business law services
"Department for Levelling Up, Housing and Communities",Homes England,MISC PROFESSIONAL FEES,Development,BROWNE JACOBSON LLP,11/12/2023," £1,631.68 ",LAR,80121600,Business law services
"Department for Levelling Up, Housing and Communities",Homes England,MISC PROFESSIONAL FEES,Development,BROWNE JACOBSON LLP,11/12/2023," £1,625.68 ",LAR,80121600,Business law services
"Department for Levelling Up, Housing and Communities",Homes England,LEGAL FEES (PROGRAMME - RDEL),Development,BROWNE JACOBSON LLP,12/12/2023, £2.00 ,LAR,80121600,Business law services
"Department for Levelling Up, Housing and Communities",Homes England,LEGAL FEES (PROGRAMME - RDEL),Development,BROWNE JACOBSON LLP,12/12/2023," £12,097.16 ",LAR,80121600,Business law services
"Department for Levelling Up, Housing and Communities",Homes England,LEGAL FEES (PROGRAMME - CDEL),Development,BROWNE JACOBSON LLP,15/12/2023, £4.00 ,LAR,80121600,Business law services
"Department for Levelling Up, Housing and Communities",Homes England,LEGAL FEES (PROGRAMME - CDEL),Development,BROWNE JACOBSON LLP,15/12/2023," £11,809.21 ",LAR,80121600,Business law services
"Department for Levelling Up, Housing and Communities",Homes England,DISPOSAL FEES - LEGAL,Development,BROWNE JACOBSON LLP,15/12/2023," £2,400.00 ",LAR,80121600,Business law services
"Department for Levelling Up, Housing and Communities",Homes England,LEGAL FEES (PROGRAMME - CDEL),Development,BROWNE JACOBSON LLP,15/12/2023, £6.00 ,LAR,80121600,Business law services
"Department for Levelling Up, Housing and Communities",Homes England,LEGAL FEES (PROGRAMME - CDEL),Development,BROWNE JACOBSON LLP,15/12/2023," £29,691.40 ",LAR,80121600,Business law services
"Department for Levelling Up, Housing and Communities",Homes England,MISC PROFESSIONAL FEES,Investment,BROWNE JACOBSON LLP,21/12/2023, £960.00 ,LAR,80121600,Business law services
"Department for Levelling Up, Housing and Communities",Homes England,LEGAL FEES (PROGRAMME - RDEL),Development,BROWNE JACOBSON LLP,22/12/2023," £2,880.00 ",LAR,80121600,Business law services
"Department for Levelling Up, Housing and Communities",Homes England,LEGAL FEES (PROGRAMME - RDEL),Development,BROWNE JACOBSON LLP,22/12/2023, £400.20 ,LAR,80121600,Business law services
"Department for Levelling Up, Housing and Communities",Homes England,MISC PROFESSIONAL FEES,Development,BUILDING DESIGN PARTNERSHIP,05/12/2023," £6,784.68 ",LAR,81101500,Civil Engineering
"Department for Levelling Up, Housing and Communities",Homes England,RI - MONIITORING SURVEYOR FEES,Investment,BUILDING DESIGN PARTNERSHIP,05/12/2023," £2,310.00 ",LAR,81101500,Civil Engineering
"Department for Levelling Up, Housing and Communities",Homes England,RI - MONIITORING SURVEYOR FEES,Investment,BUILDING DESIGN PARTNERSHIP,05/12/2023," £2,760.00 ",LAR,81101500,Civil Engineering
"Department for Levelling Up, Housing and Communities",Homes England,LANDSCAPE ARCHITECT FEES,Development,DESIGN WEST,06/12/2023," £6,000.00 ",SMA,77101700,Environmental advisory services 
"Department for Levelling Up, Housing and Communities",Homes England,ENGINEERING CONSULTANTS,Development,STANTEC UK LIMITED,06/12/2023," £9,379.20 ",LAR,81101500,Civil Engineering
"Department for Levelling Up, Housing and Communities",Homes England,PLANNING APPLICATIONS,"Markets, Partners & Places",STANTEC UK LIMITED,15/12/2023," £86,714.40 ",LAR,80131800,Real estate management services
"Department for Levelling Up, Housing and Communities",Homes England,OTHER PROFESSIONAL FEES,Development,STANTEC UK LIMITED,19/12/2023," £7,546.50 ",LAR,81101500,Civil Engineering
"Department for Levelling Up, Housing and Communities",Homes England,OTHER PROFESSIONAL FEES,"Markets, Partners & Places",STANTEC UK LIMITED,19/12/2023," £1,800.00 ",LAR,77101500,Environmental auditing
"Department for Levelling Up, Housing and Communities",Homes England,OTHER PROFESSIONAL FEES,Development,STANTEC UK LIMITED,20/12/2023," £68,556.00 ",LAR,80131800,Real estate management services
"Department for Levelling Up, Housing and Communities",Homes England,AGENCY STAFF,Cido,BADENOCH & CLARK,06/12/2023," £4,114.26 ",LAR,80111600,Temporary personnel services
"Department for Levelling Up, Housing and Communities",Homes England,AGENCY STAFF,Cido,BADENOCH & CLARK,15/12/2023," £4,114.26 ",LAR,80111600,Temporary personnel services
"Department for Levelling Up, Housing and Communities",Homes England,AGENCY STAFF,Cido,BADENOCH & CLARK,20/12/2023," £4,114.26 ",LAR,80111600,Temporary personnel services
"Department for Levelling Up, Housing and Communities",Homes England,RI - MONIITORING SURVEYOR FEES,Investment,RIDER LEVETT BUCKNALL UK LTD,01/12/2023," £1,569.60 ",LAR,81101500,Civil Engineering
"Department for Levelling Up, Housing and Communities",Homes England,RI - MONIITORING SURVEYOR FEES,Investment,RIDER LEVETT BUCKNALL UK LTD,13/12/2023," £1,680.00 ",LAR,81101500,Civil Engineering
"Department for Levelling Up, Housing and Communities",Homes England,RI - MONIITORING SURVEYOR FEES,Investment,RIDER LEVETT BUCKNALL UK LTD,13/12/2023," £2,880.00 ",LAR,81101500,Civil Engineering
"Department for Levelling Up, Housing and Communities",Homes England,RI - MONIITORING SURVEYOR FEES,Investment,RIDER LEVETT BUCKNALL UK LTD,13/12/2023," £2,880.00 ",LAR,81101500,Civil Engineering
"Department for Levelling Up, Housing and Communities",Homes England,DISPOSAL FEES - PROPERTY AGENT,"Markets, Partners & Places",RIDER LEVETT BUCKNALL UK LTD,15/12/2023," £1,440.00 ",LAR,80131600,Sale of property and building
"Department for Levelling Up, Housing and Communities",Homes England,RI - MONIITORING SURVEYOR FEES,Investment,RIDER LEVETT BUCKNALL UK LTD,19/12/2023," £1,680.00 ",LAR,81101500,Civil Engineering
"Department for Levelling Up, Housing and Communities",Homes England,RI - MONIITORING SURVEYOR FEES,Investment,RIDER LEVETT BUCKNALL UK LTD,22/12/2023," £1,380.00 ",LAR,81101500,Civil Engineering
"Department for Levelling Up, Housing and Communities",Homes England,HOME WORKERS,Cido,BRITISH TELECOMMUNICATIONS PLC,13/12/2023," £1,052.40 ",LAR,83111500,Local and long distance telephone communications
"Department for Levelling Up, Housing and Communities",Homes England,ST FUND LOANS ADDITIONS,Investment,BALLYMORE DEANSTON LIMITED,11/12/2023," £1,056,738.04 ",SMA,None,Loans
"Department for Levelling Up, Housing and Communities",Homes England,ESTATE GENERAL MAINTENANCE,Development,BURN FENCING LTD,22/12/2023, £564.00 ,SMA,72101500,Building maintenance and repair services
"Department for Levelling Up, Housing and Communities",Homes England,MISC PROFESSIONAL FEES,Development,BIG OLD HOUSE,07/12/2023," £5,489.04 ",MIC,80131800,Real estate management services
"Department for Levelling Up, Housing and Communities",Homes England,ESTATE GENERAL MAINTENANCE,Development,BRYAN LECOCHE LTD,06/12/2023," £2,536.92 ",SMA,72101500,Building maintenance and repair services
"Department for Levelling Up, Housing and Communities",Homes England,PROPERTY SERVICES,Development,BJB Professional Services Ltd,15/12/2023," £4,800.00 ",MED,80131800,Real estate management services
"Department for Levelling Up, Housing and Communities",Homes England,STAMP DUTY,Development,BROWNE JACOBSON,19/12/2023," £417,277.00 ",LAR,None,Acquisition
"Department for Levelling Up, Housing and Communities",Homes England,COST OF ACQUISITION,Development,BROWNE JACOBSON,19/12/2023," £8,555,555.00 ",LAR,None,Acquisition
"Department for Levelling Up, Housing and Communities",Homes England,LT FUND LOANS (PS) ADDITIONS,Investment,BRITISH LAND,20/12/2023," £711,189.97 ",SMA,None,Loans
"Department for Levelling Up, Housing and Communities",Homes England,TRAINING COURSES & CONFERENCES,Investment,BPP PROFESSIONAL EDUCATION,05/12/2023, £704.40 ,LAR,86101800,In service training and manpower development
"Department for Levelling Up, Housing and Communities",Homes England,TRAINING COURSES & CONFERENCES,Investment,BPP PROFESSIONAL EDUCATION,05/12/2023, £704.40 ,LAR,86101800,In service training and manpower development
"Department for Levelling Up, Housing and Communities",Homes England,TRAINING COURSES & CONFERENCES,Investment,BPP PROFESSIONAL EDUCATION,05/12/2023, £704.40 ,LAR,86101800,In service training and manpower development
